{"text_format":"1","workbook":"xlsx","n_sheets":36,"sheets":["القائمة الرئيسية","تبويب انشاء فاتورة","تبويب العملاء","تبويب الموردين","الفاتورة رقم 1","الفاتورة رقم 2","الفاتورة رقم 3","الفاتورة الفرعية","العملاء","ارشيف العملاء","المخزن","كشف حساب عميل","تبويب التنيلات للعملاء","مجمع حساب العملاء الاعدادات","الموردين","ارشيف الموردين","كشف حساب مورد","سحب وتنزيل الموردين","مجمع حساب الموردين الاعدادات","استعلام عن اسعار عميل","الاستعلام عن اسعار مورد","فاتورة مورد فرعية","فاتورة مورد 1","رقم الفواتير","اسعار لعملاء","تبويب انشاء فاتورة مورد","اسعار الموردين","طباعة ظرف فاتورة عملاء 1","اعدادات رقم الفاتورة","حسن","سحب العملاء","مرتجع العملاء","تنزيل نقد العملاء","بحث عن فاتورة داخل الارشيف","رقم فاتورة الموردين","اعدادات رقم فاتورة الموردين"],"not_rendered":{"charts":0,"images":1,"macros":1,"external_links":1,"defined_names":18,"comments":0,"pivot_tables":0},"unopened":[],"bounds":{"document_bytes":16777216,"sheet_cells":100000,"rows_first":2000,"rows_last":500,"rows_between":2000,"halvings":0,"cell_chars":16384,"cell_head_chars":4096},"cells_cut":0,"cells_raw":0,"read":"whole","date_system":"1900"}

{"sheet":"القائمة الرئيسية","index":0,"n_rows":0,"n_cols":0,"rows_kept":0,"cut":false,"hidden":false,"merged":[]}

{"sheet":"تبويب انشاء فاتورة","index":1,"n_rows":0,"n_cols":0,"rows_kept":0,"cut":false,"hidden":true,"merged":[]}

{"sheet":"تبويب العملاء","index":2,"n_rows":0,"n_cols":0,"rows_kept":0,"cut":false,"hidden":true,"merged":[]}

{"sheet":"تبويب الموردين","index":3,"n_rows":0,"n_cols":0,"rows_kept":0,"cut":false,"hidden":true,"merged":[]}

{"sheet":"الفاتورة رقم 1","index":4,"n_rows":74,"n_cols":47,"rows_kept":74,"cut":false,"hidden":false,"merged":[[5,0,6,0],[7,0,8,0],[9,0,10,0],[11,0,12,0],[1,1,1,6],[2,1,2,2],[2,3,2,5],[3,0,4,0],[3,1,4,1],[3,2,3,3],[3,4,4,4],[3,5,4,5],[3,6,4,6],[13,0,14,0],[15,0,16,0],[17,0,18,0],[70,1,70,6],[71,1,71,6],[2,45,2,46],[3,39,4,39],[3,40,3,41],[3,42,4,42],[3,43,4,43],[3,45,4,45],[3,46,4,46],[71,39,71,44],[73,1,73,6],[73,39,73,44],[1,39,1,44],[2,39,2,40],[2,41,2,43],[72,1,72,6],[3,7,4,7],[3,8,4,8],[2,7,2,8],[3,44,4,44],[72,39,72,44],[70,39,70,44]]}
[]
["اجمالي الفاتورة","اذن صرف",null,null,null,null,null,"رقم الفاتورة",{"$f":"'رقم الفواتير'!A2","v":348},"تسعير",null,null,null,null,null,null,null,null,null,null,null,null,null,null,null,null,null,null,null,null,null,null,null,null,null,null,null,null,null,"اذن صرف",null,null,null,null,null,"رقم الفاتورة",319]
[{"$f":"I71","v":5056},"الاسم",null,"حسن",null,null,"التاريخ","2021-03-25T21:16:36.740",null,"حسن",null,null,null,null,null,null,null,null,null,null,null,null,null,null,null,{"$f":"A14","v":5056},null,null,null,null,null,null,null,null,null,null,null,null,null,"الاسم",null,null,null,null,"التاريخ","2021-03-25T21:16:36.740"]
["قديم","م","المقاس",null,"الصنف","العدد","سعر المتر","متر م","اجمالي",null,null,null,null,null,{"$f":"G3","v":"التاريخ"},{"$f":"B3","v":"الاسم"},{"$f":"H2","v":"رقم الفاتورة"},{"$f":"A2","v":"اجمالي الفاتورة"},{"$f":"A4","v":"قديم"},{"$f":"A8","v":"تنزيل"},{"$f":"A12","v":"صافي الفاتورة"},null,null,null,null,null,null,null,null,null,null,null,null,null,null,null,null,null,null,"م","المقاس",null,"الصنف","العدد","سعر المتر","متر م","اجمالي"]
[null,null,"العرض ","الطول",null,null,null,null,null,null,null,null,null,null,{"$f":"H3","v":"2021-03-25T21:16:36.740"},{"$f":"J3","v":"حسن"},{"$f":"I2","v":348},{"$f":"I71","v":5056},{"$f":"I72","v":0},{"$f":"I73","v":0},{"$f":"I74","v":5056},null,null,null,null,null,null,null,null,null,null,null,null,null,null,null,null,null,null,null,"العرض ","الطول"]
[null,null,2,2.8,"بدر",5,{"$f":"IF(E6=\"\",\"\",SUMPRODUCT(SUMIF(INDIRECT(\"'\"&$J$3&\"'!\"&\"a2:a1000\"),$E6,INDIRECT(\"'\"&$J$3&\"'!\"&\"b2:b1000\"))))","v":80},{"$f":"F6*D6*C6","v":28},{"$f":"IFERROR(G6*F6*(D6*C6),\"\")","v":2240},null,null,null,null,null,{"$f":"O5","v":"2021-03-25T21:16:36.740"},{"$f":"P5","v":"حسن"},{"$f":"Q4&Q5","v":"رقم الفاتورة348"},{"$f":"R5","v":5056},{"$f":"T5","v":0},null,null,null,null,null,null,null,null,null,null,null,null,null,null,null,null,null,null,null,null,null,null,null,null,null,"",0,""]
[null,{"$f":"IF(C7=\"\",\"\",SUBTOTAL(3,$C$6:C7))","v":2},1.6,2.2000000000000002,"بدر",10,{"$f":"IF(E7=\"\",\"\",SUMPRODUCT(SUMIF(INDIRECT(\"'\"&$J$3&\"'!\"&\"a2:a1000\"),$E7,INDIRECT(\"'\"&$J$3&\"'!\"&\"b2:b1000\"))))","v":80},{"$f":"F7*D7*C7","v":35.200000000000003},{"$f":"IFERROR(G7*F7*(D7*C7),\"\")","v":2816.0000000000005},null,null,null,null,null,null,null,null,null,null,null,null,null,null,null,null,null,null,null,null,null,null,null,null,null,null,null,null,null,null,null,null,null,null,null,"",0,""]
["تنزيل",{"$f":"IF(C8=\"\",\"\",SUBTOTAL(3,$C$6:C8))","v":""},null,null,null,null,{"$f":"IF(E8=\"\",\"\",SUMPRODUCT(SUMIF(INDIRECT(\"'\"&$J$3&\"'!\"&\"a2:a1000\"),$E8,INDIRECT(\"'\"&$J$3&\"'!\"&\"b2:b1000\"))))","v":""},{"$f":"F8*D8*C8","v":0},"",null,null,null,null,null,null,null,null,null,null,null,null,null,null,null,null,null,null,null,null,null,null,null,null,null,null,null,null,null,null,null,null,null,null,null,"",0,""]
[null,{"$f":"IF(C9=\"\",\"\",SUBTOTAL(3,$C$6:C9))","v":""},null,null,null,null,"",0,"",null,null,null,null,null,null,null,null,null,null,null,null,null,null,null,null,null,null,null,null,null,null,null,null,null,null,null,null,null,null,null,null,null,null,null,"",0,""]
[null,{"$f":"IF(C10=\"\",\"\",SUBTOTAL(3,$C$6:C10))","v":""},null,null,null,null,"",0,"",null,null,null,null,null,null,null,null,null,null,null,null,null,null,null,null,null,null,null,null,null,null,null,null,null,null,null,null,null,null,null,null,null,null,null,"",0,""]
[null,{"$f":"IF(C11=\"\",\"\",SUBTOTAL(3,$C$6:C11))","v":""},null,null,null,null,"",{"$f":"F11*D11*C11","v":0},"",null,null,null,null,null,null,null,null,null,null,null,null,null,null,null,null,null,null,null,null,null,null,null,null,null,null,null,null,null,null,null,null,null,null,null,"",0,""]
["صافي الفاتورة",{"$f":"IF(C12=\"\",\"\",SUBTOTAL(3,$C$6:C12))","v":""},null,null,null,null,"",0,"",null,null,null,null,null,null,null,null,null,null,null,null,null,null,null,null,null,null,null,null,null,null,null,null,null,null,null,null,null,null,null,null,null,null,null,"",0,""]
[null,{"$f":"IF(C13=\"\",\"\",SUBTOTAL(3,$C$6:C13))","v":""},null,null,null,null,"",null,"",null,null,null,null,null,null,null,null,null,null,null,null,null,null,null,null,null,null,null,null,null,null,null,null,null,null,null,null,null,null,null,null,null,null,null,"",0,""]
[{"$f":"I74","v":5056},{"$f":"IF(C14=\"\",\"\",SUBTOTAL(3,$C$6:C14))","v":""},null,null,null,null,"",0,"",null,null,null,null,null,null,null,null,null,null,null,null,null,null,null,null,null,null,null,null,null,null,null,null,null,null,null,null,null,null,null,null,null,null,null,"",0,""]
[null,{"$f":"IF(C15=\"\",\"\",SUBTOTAL(3,$C$6:C15))","v":""},null,null,null,null,"",0,"",null,null,null,null,null,null,null,null,null,null,null,null,null,null,null,null,null,null,null,null,null,null,null,null,null,null,null,null,null,null,null,null,null,null,null,0,""]
["متر مربع",{"$f":"IF(C16=\"\",\"\",SUBTOTAL(3,$C$6:C16))","v":""},null,null,null,null,"",0,"",null,null,null,null,null,null,null,null,null,null,null,null,null,null,null,null,null,null,null,null,null,null,null,null,null,null,null,null,null,null,null,null,null,null,null,"",0,""]
[null,{"$f":"IF(C17=\"\",\"\",SUBTOTAL(3,$C$6:C17))","v":""},null,null,null,null,"",0,"",null,null,null,null,null,null,null,null,null,null,null,null,null,null,null,null,null,null,null,null,null,null,null,null,null,null,null,null,null,null,null,null,null,null,null,"",0,""]
[{"$f":"SUM(H6:H69)","v":63.2},{"$f":"IF(C18=\"\",\"\",SUBTOTAL(3,$C$6:C18))","v":""},null,null,null,null,"",0,"",null,null,null,null,null,null,null,null,null,null,null,null,null,null,null,null,null,null,null,null,null,null,null,null,null,null,null,null,null,null,null,null,null,null,null,"",0,""]
[null,{"$f":"IF(C19=\"\",\"\",SUBTOTAL(3,$C$6:C19))","v":""},null,null,null,null,"",0,"",null,null,null,null,null,null,null,null,null,null,null,null,null,null,null,null,null,null,null,null,null,null,null,null,null,null,null,null,null,null,null,null,null,null,null,"",0,""]
[null,{"$f":"IF(C20=\"\",\"\",SUBTOTAL(3,$C$6:C20))","v":""},null,null,null,null,"",0,"",null,null,null,null,null,null,null,null,null,null,null,null,null,null,null,null,null,null,null,null,null,null,null,null,null,null,null,null,null,null,null,null,null,null,null,"",0,""]
[null,{"$f":"IF(C21=\"\",\"\",SUBTOTAL(3,$C$6:C21))","v":""},null,null,null,null,"",0,"",null,null,null,null,null,null,null,null,null,null,null,null,null,null,null,null,null,null,null,null,null,null,null,null,null,null,null,null,null,null,null,null,null,null,null,"",0,""]
[null,{"$f":"IF(C22=\"\",\"\",SUBTOTAL(3,$C$6:C22))","v":""},null,null,null,null,"",0,"",null,null,null,null,null,null,null,null,null,null,null,null,null,null,null,null,null,null,null,null,null,null,null,null,null,null,null,null,null,null,null,null,null,null,null,"",0,""]
[null,{"$f":"IF(C23=\"\",\"\",SUBTOTAL(3,$C$6:C23))","v":""},null,null,null,null,"",0,"",null,null,null,null,null,null,null,null,null,null,null,null,null,null,null,null,null,null,null,null,null,null,null,null,null,null,null,null,null,null,null,null,null,null,null,"",0,""]
[null,{"$f":"IF(C24=\"\",\"\",SUBTOTAL(3,$C$6:C24))","v":""},null,null,null,null,"",0,"",null,null,null,null,null,null,null,null,null,null,null,null,null,null,null,null,null,null,null,null,null,null,null,null,null,null,null,null,null,null,null,null,null,null,null,"",0,""]
[null,{"$f":"IF(C25=\"\",\"\",SUBTOTAL(3,$C$6:C25))","v":""},null,null,null,null,"",0,"",null,null,null,null,null,null,null,null,null,null,null,null,null,null,null,null,null,null,null,null,null,null,null,null,null,null,null,null,null,null,null,null,null,null,null,"",0,""]
[null,{"$f":"IF(C26=\"\",\"\",SUBTOTAL(3,$C$6:C26))","v":""},null,null,null,null,"",0,"",null,null,null,null,null,null,null,null,null,null,null,null,null,null,null,null,null,null,null,null,null,null,null,null,null,null,null,null,null,null,null,null,null,null,null,"",0,""]
[null,{"$f":"IF(C27=\"\",\"\",SUBTOTAL(3,$C$6:C27))","v":""},null,null,null,null,"",0,"",null,null,null,null,null,null,null,null,null,null,null,null,null,null,null,null,null,null,null,null,null,null,null,null,null,null,null,null,null,null,null,null,null,null,null,"",0,""]
[null,{"$f":"IF(C28=\"\",\"\",SUBTOTAL(3,$C$6:C28))","v":""},null,null,null,null,"",0,"",null,null,null,null,null,null,null,null,null,null,null,null,null,null,null,null,null,null,null,null,null,null,null,null,null,null,null,null,null,null,null,null,null,null,null,"",0,""]
[null,{"$f":"IF(C29=\"\",\"\",SUBTOTAL(3,$C$6:C29))","v":""},null,null,null,null,"",0,"",null,null,null,null,null,null,null,null,null,null,null,null,null,null,null,null,null,null,null,null,null,null,null,null,null,null,null,null,null,null,null,null,null,null,null,"",0,""]
[null,{"$f":"IF(C30=\"\",\"\",SUBTOTAL(3,$C$6:C30))","v":""},null,null,null,null,"",0,"",null,null,null,null,null,null,null,null,null,null,null,null,null,null,null,null,null,null,null,null,null,null,null,null,null,null,null,null,null,null,null,null,null,null,null,"",0,""]
[null,{"$f":"IF(C31=\"\",\"\",SUBTOTAL(3,$C$6:C31))","v":""},null,null,null,null,"",0,"",null,null,null,null,null,null,null,null,null,null,null,null,null,null,null,null,null,null,null,null,null,null,null,null,null,null,null,null,null,null,null,null,null,null,null,"",0,""]
[null,{"$f":"IF(C32=\"\",\"\",SUBTOTAL(3,$C$6:C32))","v":""},null,null,null,null,"",0,"",null,null,null,null,null,null,null,null,null,null,null,null,null,null,null,null,null,null,null,null,null,null,null,null,null,null,null,null,null,null,null,null,null,null,null,"",0,""]
[null,{"$f":"IF(C33=\"\",\"\",SUBTOTAL(3,$C$6:C33))","v":""},null,null,null,null,"",0,"",null,null,null,null,null,null,null,null,null,null,null,null,null,null,null,null,null,null,null,null,null,null,null,null,null,null,null,null,null,null,null,null,null,null,null,"",0,""]
[null,{"$f":"IF(C34=\"\",\"\",SUBTOTAL(3,$C$6:C34))","v":""},null,null,null,null,"",0,"",null,null,null,null,null,null,null,null,null,null,null,null,null,null,null,null,null,null,null,null,null,null,null,null,null,null,null,null,null,null,null,null,null,null,null,"",0,""]
[null,{"$f":"IF(C35=\"\",\"\",SUBTOTAL(3,$C$6:C35))","v":""},null,null,null,null,"",0,"",null,null,null,null,null,null,null,null,null,null,null,null,null,null,null,null,null,null,null,null,null,null,null,null,null,null,null,null,null,null,null,null,null,null,null,"",0,""]
[null,{"$f":"IF(C36=\"\",\"\",SUBTOTAL(3,$C$6:C36))","v":""},null,null,null,null,"",0,"",null,null,null,null,null,null,null,null,null,null,null,null,null,null,null,null,null,null,null,null,null,null,null,null,null,null,null,null,null,null,null,null,null,null,null,"",0,""]
[null,{"$f":"IF(C37=\"\",\"\",SUBTOTAL(3,$C$6:C37))","v":""},null,null,null,null,"",0,"",null,null,null,null,null,null,null,null,null,null,null,null,null,null,null,null,null,null,null,null,null,null,null,null,null,null,null,null,null,null,null,null,null,null,null,"",0,""]
[null,{"$f":"IF(C38=\"\",\"\",SUBTOTAL(3,$C$6:C38))","v":""},null,null,null,null,"",0,"",null,null,null,null,null,null,null,null,null,null,null,null,null,null,null,null,null,null,null,null,null,null,null,null,null,null,null,null,null,null,null,null,null,null,null,"",0,""]
[null,{"$f":"IF(C39=\"\",\"\",SUBTOTAL(3,$C$6:C39))","v":""},null,null,null,null,"",0,"",null,null,null,null,null,null,null,null,null,null,null,null,null,null,null,null,null,null,null,null,null,null,null,null,null,null,null,null,null,null,null,null,null,null,null,"",0,""]
[null,{"$f":"IF(C40=\"\",\"\",SUBTOTAL(3,$C$6:C40))","v":""},null,null,null,null,"",0,"",null,null,null,null,null,null,null,null,null,null,null,null,null,null,null,null,null,null,null,null,null,null,null,null,null,null,null,null,null,null,null,null,null,null,null,"",0,""]
[null,{"$f":"IF(C41=\"\",\"\",SUBTOTAL(3,$C$6:C41))","v":""},null,null,null,null,"",0,"",null,null,null,null,null,null,null,null,null,null,null,null,null,null,null,null,null,null,null,null,null,null,null,null,null,null,null,null,null,null,null,null,null,null,null,"",0,""]
[null,{"$f":"IF(C42=\"\",\"\",SUBTOTAL(3,$C$6:C42))","v":""},null,null,null,null,"",0,"",null,null,null,null,null,null,null,null,null,null,null,null,null,null,null,null,null,null,null,null,null,null,null,null,null,null,null,null,null,null,null,null,null,null,null,"",0,""]
[null,{"$f":"IF(C43=\"\",\"\",SUBTOTAL(3,$C$6:C43))","v":""},null,null,null,null,"",0,"",null,null,null,null,null,null,null,null,null,null,null,null,null,null,null,null,null,null,null,null,null,null,null,null,null,null,null,null,null,null,null,null,null,null,null,"",0,""]
[null,{"$f":"IF(C44=\"\",\"\",SUBTOTAL(3,$C$6:C44))","v":""},null,null,null,null,"",0,"",null,null,null,null,null,null,null,null,null,null,null,null,null,null,null,null,null,null,null,null,null,null,null,null,null,null,null,null,null,null,null,null,null,null,null,"",0,""]
[null,{"$f":"IF(C45=\"\",\"\",SUBTOTAL(3,$C$6:C45))","v":""},null,null,null,null,"",0,"",null,null,null,null,null,null,null,null,null,null,null,null,null,null,null,null,null,null,null,null,null,null,null,null,null,null,null,null,null,null,null,null,null,null,null,"",0,""]
[null,{"$f":"IF(C46=\"\",\"\",SUBTOTAL(3,$C$6:C46))","v":""},null,null,null,null,"",0,"",null,null,null,null,null,null,null,null,null,null,null,null,null,null,null,null,null,null,null,null,null,null,null,null,null,null,null,null,null,null,null,null,null,null,null,"",0,""]
[null,{"$f":"IF(C47=\"\",\"\",SUBTOTAL(3,$C$6:C47))","v":""},null,null,null,null,"",0,"",null,null,null,null,null,null,null,null,null,null,null,null,null,null,null,null,null,null,null,null,null,null,null,null,null,null,null,null,null,null,null,null,null,null,null,"",0,""]
[null,{"$f":"IF(C48=\"\",\"\",SUBTOTAL(3,$C$6:C48))","v":""},null,null,null,null,"",0,"",null,null,null,null,null,null,null,null,null,null,null,null,null,null,null,null,null,null,null,null,null,null,null,null,null,null,null,null,null,null,null,null,null,null,null,"",0,""]
[null,{"$f":"IF(C49=\"\",\"\",SUBTOTAL(3,$C$6:C49))","v":""},null,null,null,null,"",0,"",null,null,null,null,null,null,null,null,null,null,null,null,null,null,null,null,null,null,null,null,null,null,null,null,null,null,null,null,null,null,null,null,null,null,null,"",0,""]
[null,{"$f":"IF(C50=\"\",\"\",SUBTOTAL(3,$C$6:C50))","v":""},null,null,null,null,"",0,"",null,null,null,null,null,null,null,null,null,null,null,null,null,null,null,null,null,null,null,null,null,null,null,null,null,null,null,null,null,null,null,null,null,null,null,"",0,""]
[null,{"$f":"IF(C51=\"\",\"\",SUBTOTAL(3,$C$6:C51))","v":""},null,null,null,null,"",0,"",null,null,null,null,null,null,null,null,null,null,null,null,null,null,null,null,null,null,null,null,null,null,null,null,null,null,null,null,null,null,null,null,null,null,null,"",0,""]
[null,{"$f":"IF(C52=\"\",\"\",SUBTOTAL(3,$C$6:C52))","v":""},null,null,null,null,"",0,"",null,null,null,null,null,null,null,null,null,null,null,null,null,null,null,null,null,null,null,null,null,null,null,null,null,null,null,null,null,null,null,null,null,null,null,"",0,""]
[null,{"$f":"IF(C53=\"\",\"\",SUBTOTAL(3,$C$6:C53))","v":""},null,null,null,null,"",0,"",null,null,null,null,null,null,null,null,null,null,null,null,null,null,null,null,null,null,null,null,null,null,null,null,null,null,null,null,null,null,null,null,null,null,null,"",0,""]
[null,{"$f":"IF(C54=\"\",\"\",SUBTOTAL(3,$C$6:C54))","v":""},null,null,null,null,"",0,"",null,null,null,null,null,null,null,null,null,null,null,null,null,null,null,null,null,null,null,null,null,null,null,null,null,null,null,null,null,null,null,null,null,null,null,"",0,""]
[null,{"$f":"IF(C55=\"\",\"\",SUBTOTAL(3,$C$6:C55))","v":""},null,null,null,null,{"$f":"IF(E55=\"\",\"\",SUMPRODUCT(SUMIF(INDIRECT(\"'\"&$J$3&\"'!\"&\"a2:a1000\"),$E55,INDIRECT(\"'\"&$J$3&\"'!\"&\"b2:b1000\"))))","v":""},0,"",null,null,null,null,null,null,null,null,null,null,null,null,null,null,null,null,null,null,null,null,null,null,null,null,null,null,null,null,null,null,null,null,null,null,null,null,0]
[null,{"$f":"IF(C56=\"\",\"\",SUBTOTAL(3,$C$6:C56))","v":""},null,null,null,null,"",0,"",null,null,null,null,null,null,null,null,null,null,null,null,null,null,null,null,null,null,null,null,null,null,null,null,null,null,null,null,null,null,null,null,null,null,null,null,0]
[null,{"$f":"IF(C57=\"\",\"\",SUBTOTAL(3,$C$6:C57))","v":""},null,null,null,null,"",0,"",null,null,null,null,null,null,null,null,null,null,null,null,null,null,null,null,null,null,null,null,null,null,null,null,null,null,null,null,null,null,null,null,null,null,null,null,0]
[null,{"$f":"IF(C58=\"\",\"\",SUBTOTAL(3,$C$6:C58))","v":""},null,null,null,null,"",0,"",null,null,null,null,null,null,null,null,null,null,null,null,null,null,null,null,null,null,null,null,null,null,null,null,null,null,null,null,null,null,null,null,null,null,null,null,0]
[null,{"$f":"IF(C59=\"\",\"\",SUBTOTAL(3,$C$6:C59))","v":""},null,null,null,null,"",0,"",null,null,null,null,null,null,null,null,null,null,null,null,null,null,null,null,null,null,null,null,null,null,null,null,null,null,null,null,null,null,null,null,null,null,null,null,0]
[null,{"$f":"IF(C60=\"\",\"\",SUBTOTAL(3,$C$6:C60))","v":""},null,null,null,null,"",0,"",null,null,null,null,null,null,null,null,null,null,null,null,null,null,null,null,null,null,null,null,null,null,null,null,null,null,null,null,null,null,null,null,null,null,null,null,0]
[null,{"$f":"IF(C61=\"\",\"\",SUBTOTAL(3,$C$6:C61))","v":""},null,null,null,null,"",0,"",null,null,null,null,null,null,null,null,null,null,null,null,null,null,null,null,null,null,null,null,null,null,null,null,null,null,null,null,null,null,null,null,null,null,null,null,0]
[null,{"$f":"IF(C62=\"\",\"\",SUBTOTAL(3,$C$6:C62))","v":""},null,null,null,null,{"$f":"IF(E62=\"\",\"\",SUMPRODUCT(SUMIF(INDIRECT(\"'\"&$J$3&\"'!\"&\"a2:a1000\"),$E62,INDIRECT(\"'\"&$J$3&\"'!\"&\"b2:b1000\"))))","v":""},0,"",null,null,null,null,null,null,null,null,null,null,null,null,null,null,null,null,null,null,null,null,null,null,null,null,null,null,null,null,null,null,null,null,null,null,null,"",0,""]
[null,{"$f":"IF(C63=\"\",\"\",SUBTOTAL(3,$C$6:C63))","v":""},null,null,null,null,"",0,"",null,null,null,null,null,null,null,null,null,null,null,null,null,null,null,null,null,null,null,null,null,null,null,null,null,null,null,null,null,null,null,null,null,null,null,"",0,""]
[null,{"$f":"IF(C64=\"\",\"\",SUBTOTAL(3,$C$6:C64))","v":""},null,null,null,null,"",0,"",null,null,null,null,null,null,null,null,null,null,null,null,null,null,null,null,null,null,null,null,null,null,null,null,null,null,null,null,null,null,null,null,null,null,null,"",0,""]
[null,{"$f":"IF(C65=\"\",\"\",SUBTOTAL(3,$C$6:C65))","v":""},null,null,null,null,"",0,"",null,null,null,null,null,null,null,null,null,null,null,null,null,null,null,null,null,null,null,null,null,null,null,null,null,null,null,null,null,null,null,null,null,null,null,"",0,""]
[null,{"$f":"IF(C66=\"\",\"\",SUBTOTAL(3,$C$6:C66))","v":""},null,null,null,null,"",0,"",null,null,null,null,null,null,null,null,null,null,null,null,null,null,null,null,null,null,null,null,null,null,null,null,null,null,null,null,null,null,null,null,null,null,null,"",0,""]
[null,{"$f":"IF(C67=\"\",\"\",SUBTOTAL(3,$C$6:C67))","v":""},null,null,null,null,"",0,"",null,null,null,null,null,null,null,null,null,null,null,null,null,null,null,null,null,null,null,null,null,null,null,null,null,null,null,null,null,null,null,null,null,null,null,"",0,""]
[null,{"$f":"IF(C68=\"\",\"\",SUBTOTAL(3,$C$6:C68))","v":""},null,null,null,null,"",0,"",null,null,null,null,null,null,null,null,null,null,null,null,null,null,null,null,null,null,null,null,null,null,null,null,null,null,null,null,null,null,null,null,null,null,null,"",0,""]
[null,{"$f":"IF(C69=\"\",\"\",SUBTOTAL(3,$C$6:C69))","v":""},null,null,null,null,"",0,"",null,null,null,null,null,null,null,null,null,null,null,null,null,null,null,null,null,null,null,null,null,null,null,null,null,null,null,null,null,null,null,null,null,null,null,"",0,""]
[]
[null,"ملحوظة",null,null,null,null,null,"الاجمالي",{"$f":"SUM(I6:I69)","v":5056},null,null,null,null,null,null,null,null,null,null,null,null,null,null,null,null,null,null,null,null,null,null,null,null,null,null,null,null,null,null,"ملحوظة",null,null,null,null,null,"الاجمالي"]
[null,null,null,null,null,null,null,"القديم",{"$f":"A6","v":0},null,null,null,null,null,null,null,null,null,null,null,null,null,null,null,null,null,null,null,null,null,null,null,null,null,null,null,null,null,null,null,null,null,null,null,null,"القديم",0]
[null,null,null,null,null,null,null,"تنزيل",{"$f":"A10","v":0},null,null,null,null,null,null,null,null,null,null,null,null,null,null,null,null,null,null,null,null,null,null,null,null,null,null,null,null,null,null,null,null,null,null,null,null,"تنزيل",0]
[null,null,null,null,null,null,null,"صافي الفاتورة",{"$f":"I71+I72-I73","v":5056},null,null,null,null,null,null,null,null,null,null,null,null,null,null,null,null,null,null,null,null,null,null,null,null,null,null,null,null,null,null,null,null,null,null,null,null,"صافي الفاتورة"]

{"sheet":"الفاتورة رقم 2","index":5,"n_rows":74,"n_cols":47,"rows_kept":74,"cut":false,"hidden":true,"merged":[[5,0,6,0],[7,0,8,0],[9,0,10,0],[11,0,12,0],[1,1,1,6],[2,1,2,2],[2,3,2,5],[3,0,4,0],[3,1,4,1],[3,2,3,3],[3,4,4,4],[3,5,4,5],[3,6,4,6],[13,0,14,0],[15,0,16,0],[17,0,18,0],[70,1,70,6],[71,1,71,6],[2,45,2,46],[3,39,4,39],[3,40,3,41],[3,42,4,42],[3,43,4,43],[3,45,4,45],[3,46,4,46],[71,39,71,44],[73,1,73,6],[73,39,73,44],[1,39,1,44],[2,39,2,40],[2,41,2,43],[72,1,72,6],[3,7,4,7],[3,8,4,8],[2,7,2,8],[3,44,4,44],[72,39,72,44],[70,39,70,44]]}
[]
["اجمالي الفاتورة","اذن صرف",null,null,null,null,null,"رقم الفاتورة",{"$f":"'رقم الفواتير'!A2","v":348},"تسعير",null,null,null,null,null,null,null,null,null,null,null,null,null,null,null,null,null,null,null,null,null,null,null,null,null,null,null,null,null,"اذن صرف",null,null,null,null,null,"رقم الفاتورة",319]
[{"$f":"I71","v":0},"الاسم",null,null,null,null,"التاريخ","2021-03-25T21:16:36.740",null,"حسن",null,null,null,null,null,null,null,null,null,null,null,null,null,null,null,null,null,null,null,null,null,null,null,null,null,null,null,null,null,"الاسم",null,null,null,null,"التاريخ","2021-03-25T21:16:36.740"]
["قديم","م","المقاس",null,"الصنف","العدد","سعر المتر","متر م","اجمالي",null,null,null,null,null,"التاريخ","الاسم","رقم الفاتورة","اجمالي الفاتورة","قديم","تنزيل","صافي الفاتورة",null,null,null,null,null,null,null,null,null,null,null,null,null,null,null,null,null,null,"م","المقاس",null,"الصنف","العدد","سعر المتر","متر م","اجمالي"]
[null,null,"العرض ","الطول",null,null,null,null,null,null,null,null,null,null,{"$f":"H3","v":"2021-03-25T21:16:36.740"},{"$f":"J3","v":"حسن"},{"$f":"I2","v":348},{"$f":"A3","v":0},{"$f":"A6","v":0},{"$f":"A10","v":0},{"$f":"A14","v":0},null,null,null,null,null,null,null,null,null,null,null,null,null,null,null,null,null,null,null,"العرض ","الطول"]
[null,{"$f":"IF(C6=\"\",\"\",SUBTOTAL(3,$C$6:C6))","v":""},null,null,null,null,{"$f":"IF(E6=\"\",\"\",SUMPRODUCT(SUMIF(INDIRECT(\"'\"&$J$3&\"'!\"&\"a2:a1000\"),$E6,INDIRECT(\"'\"&$J$3&\"'!\"&\"b2:b1000\"))))","v":""},{"$f":"F6*D6*C6","v":0},{"$f":"IFERROR(G6*F6*(D6*C6),\"\")","v":""},null,null,null,null,null,{"$f":"O5","v":"2021-03-25T21:16:36.740"},{"$f":"P5","v":"حسن"},{"$f":"Q4&Q5","v":"رقم الفاتورة348"},{"$f":"R5","v":0},{"$f":"T5","v":0},null,null,null,null,null,null,null,null,null,null,null,null,null,null,null,null,null,null,null,null,null,null,null,null,null,"",0,""]
[null,{"$f":"IF(C7=\"\",\"\",SUBTOTAL(3,$C$6:C7))","v":""},null,null,null,null,{"$f":"IF(E7=\"\",\"\",SUMPRODUCT(SUMIF(INDIRECT(\"'\"&$J$3&\"'!\"&\"a2:a1000\"),$E7,INDIRECT(\"'\"&$J$3&\"'!\"&\"b2:b1000\"))))","v":""},{"$f":"F7*D7*C7","v":0},{"$f":"IFERROR(G7*F7*(D7*C7),\"\")","v":""},null,null,null,null,null,null,null,null,null,null,null,null,null,null,null,null,null,null,null,null,null,null,null,null,null,null,null,null,null,null,null,null,null,null,null,"",0,""]
["تنزيل",{"$f":"IF(C8=\"\",\"\",SUBTOTAL(3,$C$6:C8))","v":""},null,null,null,null,{"$f":"IF(E8=\"\",\"\",SUMPRODUCT(SUMIF(INDIRECT(\"'\"&$J$3&\"'!\"&\"a2:a1000\"),$E8,INDIRECT(\"'\"&$J$3&\"'!\"&\"b2:b1000\"))))","v":""},0,"",null,null,null,null,null,null,null,null,null,null,null,null,null,null,null,null,null,null,null,null,null,null,null,null,null,null,null,null,null,null,null,null,null,null,null,"",0,""]
[null,{"$f":"IF(C9=\"\",\"\",SUBTOTAL(3,$C$6:C9))","v":""},null,null,null,null,"",0,"",null,null,null,null,null,null,null,null,null,null,null,null,null,null,null,null,null,null,null,null,null,null,null,null,null,null,null,null,null,null,null,null,null,null,null,"",0,""]
[null,{"$f":"IF(C10=\"\",\"\",SUBTOTAL(3,$C$6:C10))","v":""},null,null,null,null,"",0,"",null,null,null,null,null,null,null,null,null,null,null,null,null,null,null,null,null,null,null,null,null,null,null,null,null,null,null,null,null,null,null,null,null,null,null,"",0,""]
[null,{"$f":"IF(C11=\"\",\"\",SUBTOTAL(3,$C$6:C11))","v":""},null,null,null,null,"",0,"",null,null,null,null,null,null,null,null,null,null,null,null,null,null,null,null,null,null,null,null,null,null,null,null,null,null,null,null,null,null,null,null,null,null,null,"",0,""]
["صافي الفاتورة",{"$f":"IF(C12=\"\",\"\",SUBTOTAL(3,$C$6:C12))","v":""},null,null,null,null,"",0,"",null,null,null,null,null,null,null,null,null,null,null,null,null,null,null,null,null,null,null,null,null,null,null,null,null,null,null,null,null,null,null,null,null,null,null,"",0,""]
[null,{"$f":"IF(C13=\"\",\"\",SUBTOTAL(3,$C$6:C13))","v":""},null,null,null,null,"",0,"",null,null,null,null,null,null,null,null,null,null,null,null,null,null,null,null,null,null,null,null,null,null,null,null,null,null,null,null,null,null,null,null,null,null,null,"",0,""]
[{"$f":"I74","v":0},{"$f":"IF(C14=\"\",\"\",SUBTOTAL(3,$C$6:C14))","v":""},null,null,null,null,"",0,"",null,null,null,null,null,null,null,null,null,null,null,null,null,null,null,null,null,null,null,null,null,null,null,null,null,null,null,null,null,null,null,null,null,null,null,"",0,""]
[null,{"$f":"IF(C15=\"\",\"\",SUBTOTAL(3,$C$6:C15))","v":""},null,null,null,null,"",0,"",null,null,null,null,null,null,null,null,null,null,null,null,null,null,null,null,null,null,null,null,null,null,null,null,null,null,null,null,null,null,null,null,null,null,null,"",0,""]
["متر مربع",{"$f":"IF(C16=\"\",\"\",SUBTOTAL(3,$C$6:C16))","v":""},null,null,null,null,"",0,"",null,null,null,null,null,null,null,null,null,null,null,null,null,null,null,null,null,null,null,null,null,null,null,null,null,null,null,null,null,null,null,null,null,null,null,"",0,""]
[null,{"$f":"IF(C17=\"\",\"\",SUBTOTAL(3,$C$6:C17))","v":""},null,null,null,null,"",0,"",null,null,null,null,null,null,null,null,null,null,null,null,null,null,null,null,null,null,null,null,null,null,null,null,null,null,null,null,null,null,null,null,null,null,null,"",0,""]
[{"$f":"SUM(H6:H69)","v":0},{"$f":"IF(C18=\"\",\"\",SUBTOTAL(3,$C$6:C18))","v":""},null,null,null,null,"",0,"",null,null,null,null,null,null,null,null,null,null,null,null,null,null,null,null,null,null,null,null,null,null,null,null,null,null,null,null,null,null,null,null,null,null,null,"",0,""]
[null,{"$f":"IF(C19=\"\",\"\",SUBTOTAL(3,$C$6:C19))","v":""},null,null,null,null,"",0,"",null,null,null,null,null,null,null,null,null,null,null,null,null,null,null,null,null,null,null,null,null,null,null,null,null,null,null,null,null,null,null,null,null,null,null,"",0,""]
[null,{"$f":"IF(C20=\"\",\"\",SUBTOTAL(3,$C$6:C20))","v":""},null,null,null,null,"",0,"",null,null,null,null,null,null,null,null,null,null,null,null,null,null,null,null,null,null,null,null,null,null,null,null,null,null,null,null,null,null,null,null,null,null,null,"",0,""]
[null,{"$f":"IF(C21=\"\",\"\",SUBTOTAL(3,$C$6:C21))","v":""},null,null,null,null,"",0,"",null,null,null,null,null,null,null,null,null,null,null,null,null,null,null,null,null,null,null,null,null,null,null,null,null,null,null,null,null,null,null,null,null,null,null,"",0,""]
[null,{"$f":"IF(C22=\"\",\"\",SUBTOTAL(3,$C$6:C22))","v":""},null,null,null,null,"",0,"",null,null,null,null,null,null,null,null,null,null,null,null,null,null,null,null,null,null,null,null,null,null,null,null,null,null,null,null,null,null,null,null,null,null,null,"",0,""]
[null,{"$f":"IF(C23=\"\",\"\",SUBTOTAL(3,$C$6:C23))","v":""},null,null,null,null,"",0,"",null,null,null,null,null,null,null,null,null,null,null,null,null,null,null,null,null,null,null,null,null,null,null,null,null,null,null,null,null,null,null,null,null,null,null,"",0,""]
[null,{"$f":"IF(C24=\"\",\"\",SUBTOTAL(3,$C$6:C24))","v":""},null,null,null,null,"",0,"",null,null,null,null,null,null,null,null,null,null,null,null,null,null,null,null,null,null,null,null,null,null,null,null,null,null,null,null,null,null,null,null,null,null,null,"",0,""]
[null,{"$f":"IF(C25=\"\",\"\",SUBTOTAL(3,$C$6:C25))","v":""},null,null,null,null,"",0,"",null,null,null,null,null,null,null,null,null,null,null,null,null,null,null,null,null,null,null,null,null,null,null,null,null,null,null,null,null,null,null,null,null,null,null,"",0,""]
[null,{"$f":"IF(C26=\"\",\"\",SUBTOTAL(3,$C$6:C26))","v":""},null,null,null,null,"",0,"",null,null,null,null,null,null,null,null,null,null,null,null,null,null,null,null,null,null,null,null,null,null,null,null,null,null,null,null,null,null,null,null,null,null,null,"",0,""]
[null,{"$f":"IF(C27=\"\",\"\",SUBTOTAL(3,$C$6:C27))","v":""},null,null,null,null,"",0,"",null,null,null,null,null,null,null,null,null,null,null,null,null,null,null,null,null,null,null,null,null,null,null,null,null,null,null,null,null,null,null,null,null,null,null,"",0,""]
[null,{"$f":"IF(C28=\"\",\"\",SUBTOTAL(3,$C$6:C28))","v":""},null,null,null,null,"",0,"",null,null,null,null,null,null,null,null,null,null,null,null,null,null,null,null,null,null,null,null,null,null,null,null,null,null,null,null,null,null,null,null,null,null,null,"",0,""]
[null,{"$f":"IF(C29=\"\",\"\",SUBTOTAL(3,$C$6:C29))","v":""},null,null,null,null,"",0,"",null,null,null,null,null,null,null,null,null,null,null,null,null,null,null,null,null,null,null,null,null,null,null,null,null,null,null,null,null,null,null,null,null,null,null,"",0,""]
[null,{"$f":"IF(C30=\"\",\"\",SUBTOTAL(3,$C$6:C30))","v":""},null,null,null,null,"",0,"",null,null,null,null,null,null,null,null,null,null,null,null,null,null,null,null,null,null,null,null,null,null,null,null,null,null,null,null,null,null,null,null,null,null,null,"",0,""]
[null,{"$f":"IF(C31=\"\",\"\",SUBTOTAL(3,$C$6:C31))","v":""},null,null,null,null,"",0,"",null,null,null,null,null,null,null,null,null,null,null,null,null,null,null,null,null,null,null,null,null,null,null,null,null,null,null,null,null,null,null,null,null,null,null,"",0,""]
[null,{"$f":"IF(C32=\"\",\"\",SUBTOTAL(3,$C$6:C32))","v":""},null,null,null,null,"",0,"",null,null,null,null,null,null,null,null,null,null,null,null,null,null,null,null,null,null,null,null,null,null,null,null,null,null,null,null,null,null,null,null,null,null,null,"",0,""]
[null,{"$f":"IF(C33=\"\",\"\",SUBTOTAL(3,$C$6:C33))","v":""},null,null,null,null,"",0,"",null,null,null,null,null,null,null,null,null,null,null,null,null,null,null,null,null,null,null,null,null,null,null,null,null,null,null,null,null,null,null,null,null,null,null,"",0,""]
[null,{"$f":"IF(C34=\"\",\"\",SUBTOTAL(3,$C$6:C34))","v":""},null,null,null,null,"",0,"",null,null,null,null,null,null,null,null,null,null,null,null,null,null,null,null,null,null,null,null,null,null,null,null,null,null,null,null,null,null,null,null,null,null,null,"",0,""]
[null,{"$f":"IF(C35=\"\",\"\",SUBTOTAL(3,$C$6:C35))","v":""},null,null,null,null,"",0,"",null,null,null,null,null,null,null,null,null,null,null,null,null,null,null,null,null,null,null,null,null,null,null,null,null,null,null,null,null,null,null,null,null,null,null,"",0,""]
[null,{"$f":"IF(C36=\"\",\"\",SUBTOTAL(3,$C$6:C36))","v":""},null,null,null,null,"",0,"",null,null,null,null,null,null,null,null,null,null,null,null,null,null,null,null,null,null,null,null,null,null,null,null,null,null,null,null,null,null,null,null,null,null,null,"",0,""]
[null,{"$f":"IF(C37=\"\",\"\",SUBTOTAL(3,$C$6:C37))","v":""},null,null,null,null,"",0,"",null,null,null,null,null,null,null,null,null,null,null,null,null,null,null,null,null,null,null,null,null,null,null,null,null,null,null,null,null,null,null,null,null,null,null,"",0,""]
[null,{"$f":"IF(C38=\"\",\"\",SUBTOTAL(3,$C$6:C38))","v":""},null,null,null,null,"",0,"",null,null,null,null,null,null,null,null,null,null,null,null,null,null,null,null,null,null,null,null,null,null,null,null,null,null,null,null,null,null,null,null,null,null,null,"",0,""]
[null,{"$f":"IF(C39=\"\",\"\",SUBTOTAL(3,$C$6:C39))","v":""},null,null,null,null,"",0,"",null,null,null,null,null,null,null,null,null,null,null,null,null,null,null,null,null,null,null,null,null,null,null,null,null,null,null,null,null,null,null,null,null,null,null,"",0,""]
[null,{"$f":"IF(C40=\"\",\"\",SUBTOTAL(3,$C$6:C40))","v":""},null,null,null,null,"",0,"",null,null,null,null,null,null,null,null,null,null,null,null,null,null,null,null,null,null,null,null,null,null,null,null,null,null,null,null,null,null,null,null,null,null,null,"",0,""]
[null,{"$f":"IF(C41=\"\",\"\",SUBTOTAL(3,$C$6:C41))","v":""},null,null,null,null,"",0,"",null,null,null,null,null,null,null,null,null,null,null,null,null,null,null,null,null,null,null,null,null,null,null,null,null,null,null,null,null,null,null,null,null,null,null,"",0,""]
[null,{"$f":"IF(C42=\"\",\"\",SUBTOTAL(3,$C$6:C42))","v":""},null,null,null,null,"",0,"",null,null,null,null,null,null,null,null,null,null,null,null,null,null,null,null,null,null,null,null,null,null,null,null,null,null,null,null,null,null,null,null,null,null,null,"",0,""]
[null,{"$f":"IF(C43=\"\",\"\",SUBTOTAL(3,$C$6:C43))","v":""},null,null,null,null,"",0,"",null,null,null,null,null,null,null,null,null,null,null,null,null,null,null,null,null,null,null,null,null,null,null,null,null,null,null,null,null,null,null,null,null,null,null,"",0,""]
[null,{"$f":"IF(C44=\"\",\"\",SUBTOTAL(3,$C$6:C44))","v":""},null,null,null,null,"",0,"",null,null,null,null,null,null,null,null,null,null,null,null,null,null,null,null,null,null,null,null,null,null,null,null,null,null,null,null,null,null,null,null,null,null,null,"",0,""]
[null,{"$f":"IF(C45=\"\",\"\",SUBTOTAL(3,$C$6:C45))","v":""},null,null,null,null,"",0,"",null,null,null,null,null,null,null,null,null,null,null,null,null,null,null,null,null,null,null,null,null,null,null,null,null,null,null,null,null,null,null,null,null,null,null,"",0,""]
[null,{"$f":"IF(C46=\"\",\"\",SUBTOTAL(3,$C$6:C46))","v":""},null,null,null,null,"",0,"",null,null,null,null,null,null,null,null,null,null,null,null,null,null,null,null,null,null,null,null,null,null,null,null,null,null,null,null,null,null,null,null,null,null,null,"",0,""]
[null,{"$f":"IF(C47=\"\",\"\",SUBTOTAL(3,$C$6:C47))","v":""},null,null,null,null,"",0,"",null,null,null,null,null,null,null,null,null,null,null,null,null,null,null,null,null,null,null,null,null,null,null,null,null,null,null,null,null,null,null,null,null,null,null,"",0,""]
[null,{"$f":"IF(C48=\"\",\"\",SUBTOTAL(3,$C$6:C48))","v":""},null,null,null,null,"",0,"",null,null,null,null,null,null,null,null,null,null,null,null,null,null,null,null,null,null,null,null,null,null,null,null,null,null,null,null,null,null,null,null,null,null,null,"",0,""]
[null,{"$f":"IF(C49=\"\",\"\",SUBTOTAL(3,$C$6:C49))","v":""},null,null,null,null,"",0,"",null,null,null,null,null,null,null,null,null,null,null,null,null,null,null,null,null,null,null,null,null,null,null,null,null,null,null,null,null,null,null,null,null,null,null,"",0,""]
[null,{"$f":"IF(C50=\"\",\"\",SUBTOTAL(3,$C$6:C50))","v":""},null,null,null,null,"",0,"",null,null,null,null,null,null,null,null,null,null,null,null,null,null,null,null,null,null,null,null,null,null,null,null,null,null,null,null,null,null,null,null,null,null,null,"",0,""]
[null,{"$f":"IF(C51=\"\",\"\",SUBTOTAL(3,$C$6:C51))","v":""},null,null,null,null,"",0,"",null,null,null,null,null,null,null,null,null,null,null,null,null,null,null,null,null,null,null,null,null,null,null,null,null,null,null,null,null,null,null,null,null,null,null,"",0,""]
[null,{"$f":"IF(C52=\"\",\"\",SUBTOTAL(3,$C$6:C52))","v":""},null,null,null,null,"",0,"",null,null,null,null,null,null,null,null,null,null,null,null,null,null,null,null,null,null,null,null,null,null,null,null,null,null,null,null,null,null,null,null,null,null,null,"",0,""]
[null,{"$f":"IF(C53=\"\",\"\",SUBTOTAL(3,$C$6:C53))","v":""},null,null,null,null,"",0,"",null,null,null,null,null,null,null,null,null,null,null,null,null,null,null,null,null,null,null,null,null,null,null,null,null,null,null,null,null,null,null,null,null,null,null,"",0,""]
[null,{"$f":"IF(C54=\"\",\"\",SUBTOTAL(3,$C$6:C54))","v":""},null,null,null,null,"",0,"",null,null,null,null,null,null,null,null,null,null,null,null,null,null,null,null,null,null,null,null,null,null,null,null,null,null,null,null,null,null,null,null,null,null,null,"",0,""]
[null,{"$f":"IF(C55=\"\",\"\",SUBTOTAL(3,$C$6:C55))","v":""},null,null,null,null,{"$f":"IF(E55=\"\",\"\",SUMPRODUCT(SUMIF(INDIRECT(\"'\"&$J$3&\"'!\"&\"a2:a1000\"),$E55,INDIRECT(\"'\"&$J$3&\"'!\"&\"b2:b1000\"))))","v":""},0,"",null,null,null,null,null,null,null,null,null,null,null,null,null,null,null,null,null,null,null,null,null,null,null,null,null,null,null,null,null,null,null,null,null,null,null,null,0]
[null,{"$f":"IF(C56=\"\",\"\",SUBTOTAL(3,$C$6:C56))","v":""},null,null,null,null,{"$f":"IF(E56=\"\",\"\",SUMPRODUCT(SUMIF(INDIRECT(\"'\"&$J$3&\"'!\"&\"a2:a1000\"),$E56,INDIRECT(\"'\"&$J$3&\"'!\"&\"b2:b1000\"))))","v":""},0,"",null,null,null,null,null,null,null,null,null,null,null,null,null,null,null,null,null,null,null,null,null,null,null,null,null,null,null,null,null,null,null,null,null,null,null,null,0]
[null,{"$f":"IF(C57=\"\",\"\",SUBTOTAL(3,$C$6:C57))","v":""},null,null,null,null,{"$f":"IF(E57=\"\",\"\",SUMPRODUCT(SUMIF(INDIRECT(\"'\"&$J$3&\"'!\"&\"a2:a1000\"),$E57,INDIRECT(\"'\"&$J$3&\"'!\"&\"b2:b1000\"))))","v":""},0,"",null,null,null,null,null,null,null,null,null,null,null,null,null,null,null,null,null,null,null,null,null,null,null,null,null,null,null,null,null,null,null,null,null,null,null,null,0]
[null,{"$f":"IF(C58=\"\",\"\",SUBTOTAL(3,$C$6:C58))","v":""},null,null,null,null,"",0,"",null,null,null,null,null,null,null,null,null,null,null,null,null,null,null,null,null,null,null,null,null,null,null,null,null,null,null,null,null,null,null,null,null,null,null,null,0]
[null,{"$f":"IF(C59=\"\",\"\",SUBTOTAL(3,$C$6:C59))","v":""},null,null,null,null,"",0,"",null,null,null,null,null,null,null,null,null,null,null,null,null,null,null,null,null,null,null,null,null,null,null,null,null,null,null,null,null,null,null,null,null,null,null,null,0]
[null,{"$f":"IF(C60=\"\",\"\",SUBTOTAL(3,$C$6:C60))","v":""},null,null,null,null,"",0,"",null,null,null,null,null,null,null,null,null,null,null,null,null,null,null,null,null,null,null,null,null,null,null,null,null,null,null,null,null,null,null,null,null,null,null,null,0]
[null,{"$f":"IF(C61=\"\",\"\",SUBTOTAL(3,$C$6:C61))","v":""},null,null,null,null,"",0,"",null,null,null,null,null,null,null,null,null,null,null,null,null,null,null,null,null,null,null,null,null,null,null,null,null,null,null,null,null,null,null,null,null,null,null,null,0]
[null,{"$f":"IF(C62=\"\",\"\",SUBTOTAL(3,$C$6:C62))","v":""},null,null,null,null,"",0,"",null,null,null,null,null,null,null,null,null,null,null,null,null,null,null,null,null,null,null,null,null,null,null,null,null,null,null,null,null,null,null,null,null,null,null,"",0,""]
[null,{"$f":"IF(C63=\"\",\"\",SUBTOTAL(3,$C$6:C63))","v":""},null,null,null,null,"",0,"",null,null,null,null,null,null,null,null,null,null,null,null,null,null,null,null,null,null,null,null,null,null,null,null,null,null,null,null,null,null,null,null,null,null,null,"",0,""]
[null,{"$f":"IF(C64=\"\",\"\",SUBTOTAL(3,$C$6:C64))","v":""},null,null,null,null,"",0,"",null,null,null,null,null,null,null,null,null,null,null,null,null,null,null,null,null,null,null,null,null,null,null,null,null,null,null,null,null,null,null,null,null,null,null,"",0,""]
[null,{"$f":"IF(C65=\"\",\"\",SUBTOTAL(3,$C$6:C65))","v":""},null,null,null,null,"",0,"",null,null,null,null,null,null,null,null,null,null,null,null,null,null,null,null,null,null,null,null,null,null,null,null,null,null,null,null,null,null,null,null,null,null,null,"",0,""]
[null,{"$f":"IF(C66=\"\",\"\",SUBTOTAL(3,$C$6:C66))","v":""},null,null,null,null,"",0,"",null,null,null,null,null,null,null,null,null,null,null,null,null,null,null,null,null,null,null,null,null,null,null,null,null,null,null,null,null,null,null,null,null,null,null,"",0,""]
[null,{"$f":"IF(C67=\"\",\"\",SUBTOTAL(3,$C$6:C67))","v":""},null,null,null,null,"",0,"",null,null,null,null,null,null,null,null,null,null,null,null,null,null,null,null,null,null,null,null,null,null,null,null,null,null,null,null,null,null,null,null,null,null,null,"",0,""]
[null,{"$f":"IF(C68=\"\",\"\",SUBTOTAL(3,$C$6:C68))","v":""},null,null,null,null,"",0,"",null,null,null,null,null,null,null,null,null,null,null,null,null,null,null,null,null,null,null,null,null,null,null,null,null,null,null,null,null,null,null,null,null,null,null,"",0,""]
[null,{"$f":"IF(C69=\"\",\"\",SUBTOTAL(3,$C$6:C69))","v":""},null,null,null,null,"",0,"",null,null,null,null,null,null,null,null,null,null,null,null,null,null,null,null,null,null,null,null,null,null,null,null,null,null,null,null,null,null,null,null,null,null,null,"",0,""]
[]
[null,"ملحوظة",null,null,null,null,null,"الاجمالي",{"$f":"SUM(I6:I69)","v":0},null,null,null,null,null,null,null,null,null,null,null,null,null,null,null,null,null,null,null,null,null,null,null,null,null,null,null,null,null,null,"ملحوظة",null,null,null,null,null,"الاجمالي"]
[null,null,null,null,null,null,null,"القديم",{"$f":"A6","v":0},null,null,null,null,null,null,null,null,null,null,null,null,null,null,null,null,null,null,null,null,null,null,null,null,null,null,null,null,null,null,null,null,null,null,null,null,"القديم",0]
[null,null,null,null,null,null,null,"تنزيل",{"$f":"A10","v":0},null,null,null,null,null,null,null,null,null,null,null,null,null,null,null,null,null,null,null,null,null,null,null,null,null,null,null,null,null,null,null,null,null,null,null,null,"تنزيل",0]
[null,null,null,null,null,null,null,"صافي الفاتورة",{"$f":"I71+I72-I73","v":0},null,null,null,null,null,null,null,null,null,null,null,null,null,null,null,null,null,null,null,null,null,null,null,null,null,null,null,null,null,null,null,null,null,null,null,null,"صافي الفاتورة"]

{"sheet":"الفاتورة رقم 3","index":6,"n_rows":74,"n_cols":47,"rows_kept":74,"cut":false,"hidden":true,"merged":[[1,1,1,6],[1,39,1,44],[2,1,2,2],[2,3,2,5],[2,7,2,8],[2,39,2,40],[2,41,2,43],[2,45,2,46],[3,0,4,0],[3,1,4,1],[3,2,3,3],[3,4,4,4],[3,5,4,5],[3,6,4,6],[3,7,4,7],[3,8,4,8],[3,46,4,46],[3,43,4,43],[3,44,4,44],[3,45,4,45],[3,40,3,41],[3,42,4,42],[11,0,12,0],[13,0,14,0],[15,0,16,0],[9,0,10,0],[3,39,4,39],[5,0,6,0],[7,0,8,0],[72,1,72,6],[72,39,72,44],[73,1,73,6],[73,39,73,44],[17,0,18,0],[70,1,70,6],[70,39,70,44],[71,1,71,6],[71,39,71,44]]}
[]
["اجمالي الفاتورة","اذن صرف",null,null,null,null,null,"رقم الفاتورة",{"$f":"'رقم الفواتير'!A2","v":348},"تسعير",null,null,null,null,null,null,null,null,null,null,null,null,null,null,null,null,null,null,null,null,null,null,null,null,null,null,null,null,null,"اذن صرف",null,null,null,null,null,"رقم الفاتورة",319]
[{"$f":"I71","v":0},"الاسم",null,null,null,null,"التاريخ","2021-03-25T21:16:36.740",null,"حسن",null,null,null,null,null,null,null,null,null,null,null,null,null,null,null,null,null,null,null,null,null,null,null,null,null,null,null,null,null,"الاسم",null,null,null,null,"التاريخ","2021-03-25T21:16:36.740"]
["قديم","م","المقاس",null,"الصنف","العدد","سعر المتر","متر م","اجمالي",null,null,null,null,null,"التاريخ","الاسم","رقم الفاتورة","اجمالي الفاتورة","قديم","تنزيل","صافي الفاتورة",null,null,null,null,null,null,null,null,null,null,null,null,null,null,null,null,null,null,"م","المقاس",null,"الصنف","العدد","سعر المتر","متر م","اجمالي"]
[null,null,"العرض ","الطول",null,null,null,null,null,null,null,null,null,null,{"$f":"H3","v":"2021-03-25T21:16:36.740"},{"$f":"J3","v":"حسن"},{"$f":"I2","v":348},{"$f":"A3","v":0},{"$f":"A6","v":0},{"$f":"A10","v":0},{"$f":"A14","v":0},null,null,null,null,null,null,null,null,null,null,null,null,null,null,null,null,null,null,null,"العرض ","الطول"]
[null,{"$f":"IF(C6=\"\",\"\",SUBTOTAL(3,$C$6:C6))","v":""},null,null,null,null,{"$f":"IF(E6=\"\",\"\",SUMPRODUCT(SUMIF(INDIRECT(\"'\"&$J$3&\"'!\"&\"a2:a1000\"),$E6,INDIRECT(\"'\"&$J$3&\"'!\"&\"b2:b1000\"))))","v":""},{"$f":"F6*C6*D6","v":0},{"$f":"IFERROR(G6*F6*(D6*C6),\"\")","v":""},null,null,null,null,null,{"$f":"O5","v":"2021-03-25T21:16:36.740"},{"$f":"P5","v":"حسن"},{"$f":"Q4&Q5","v":"رقم الفاتورة348"},{"$f":"R5","v":0},{"$f":"T5","v":0},null,null,null,null,null,null,null,null,null,null,null,null,null,null,null,null,null,null,null,null,null,null,null,null,null,"",0,""]
[null,{"$f":"IF(C7=\"\",\"\",SUBTOTAL(3,$C$6:C7))","v":""},null,null,null,null,{"$f":"IF(E7=\"\",\"\",SUMPRODUCT(SUMIF(INDIRECT(\"'\"&$J$3&\"'!\"&\"a2:a1000\"),$E7,INDIRECT(\"'\"&$J$3&\"'!\"&\"b2:b1000\"))))","v":""},{"$f":"F7*C7*D7","v":0},{"$f":"IFERROR(G7*F7*(D7*C7),\"\")","v":""},null,null,null,null,null,null,null,null,null,null,null,null,null,null,null,null,null,null,null,null,null,null,null,null,null,null,null,null,null,null,null,null,null,null,null,"",0,""]
["تنزيل",{"$f":"IF(C8=\"\",\"\",SUBTOTAL(3,$C$6:C8))","v":""},null,null,null,null,"",0,"",null,null,null,null,null,null,null,null,null,null,null,null,null,null,null,null,null,null,null,null,null,null,null,null,null,null,null,null,null,null,null,null,null,null,null,"",0,""]
[null,{"$f":"IF(C9=\"\",\"\",SUBTOTAL(3,$C$6:C9))","v":""},null,null,null,null,"",0,"",null,null,null,null,null,null,null,null,null,null,null,null,null,null,null,null,null,null,null,null,null,null,null,null,null,null,null,null,null,null,null,null,null,null,null,"",0,""]
[null,{"$f":"IF(C10=\"\",\"\",SUBTOTAL(3,$C$6:C10))","v":""},null,null,null,null,"",0,"",null,null,null,null,null,null,null,null,null,null,null,null,null,null,null,null,null,null,null,null,null,null,null,null,null,null,null,null,null,null,null,null,null,null,null,"",0,""]
[null,{"$f":"IF(C11=\"\",\"\",SUBTOTAL(3,$C$6:C11))","v":""},null,null,null,null,"",0,"",null,null,null,null,null,null,null,null,null,null,null,null,null,null,null,null,null,null,null,null,null,null,null,null,null,null,null,null,null,null,null,null,null,null,null,"",0,""]
["صافي الفاتورة",{"$f":"IF(C12=\"\",\"\",SUBTOTAL(3,$C$6:C12))","v":""},null,null,null,null,"",0,"",null,null,null,null,null,null,null,null,null,null,null,null,null,null,null,null,null,null,null,null,null,null,null,null,null,null,null,null,null,null,null,null,null,null,null,"",0,""]
[null,{"$f":"IF(C13=\"\",\"\",SUBTOTAL(3,$C$6:C13))","v":""},null,null,null,null,"",0,"",null,null,null,null,null,null,null,null,null,null,null,null,null,null,null,null,null,null,null,null,null,null,null,null,null,null,null,null,null,null,null,null,null,null,null,"",0,""]
[{"$f":"I74","v":0},{"$f":"IF(C14=\"\",\"\",SUBTOTAL(3,$C$6:C14))","v":""},null,null,null,null,"",0,"",null,null,null,null,null,null,null,null,null,null,null,null,null,null,null,null,null,null,null,null,null,null,null,null,null,null,null,null,null,null,null,null,null,null,null,"",0,""]
[null,{"$f":"IF(C15=\"\",\"\",SUBTOTAL(3,$C$6:C15))","v":""},null,null,null,null,"",0,"",null,null,null,null,null,null,null,null,null,null,null,null,null,null,null,null,null,null,null,null,null,null,null,null,null,null,null,null,null,null,null,null,null,null,null,"",0,""]
["متر مربع",{"$f":"IF(C16=\"\",\"\",SUBTOTAL(3,$C$6:C16))","v":""},null,null,null,null,"",0,"",null,null,null,null,null,null,null,null,null,null,null,null,null,null,null,null,null,null,null,null,null,null,null,null,null,null,null,null,null,null,null,null,null,null,null,"",0,""]
[null,{"$f":"IF(C17=\"\",\"\",SUBTOTAL(3,$C$6:C17))","v":""},null,null,null,null,"",0,"",null,null,null,null,null,null,null,null,null,null,null,null,null,null,null,null,null,null,null,null,null,null,null,null,null,null,null,null,null,null,null,null,null,null,null,"",0,""]
[{"$f":"SUM(H6:H69)","v":0},{"$f":"IF(C18=\"\",\"\",SUBTOTAL(3,$C$6:C18))","v":""},null,null,null,null,"",0,"",null,null,null,null,null,null,null,null,null,null,null,null,null,null,null,null,null,null,null,null,null,null,null,null,null,null,null,null,null,null,null,null,null,null,null,"",0,""]
[null,{"$f":"IF(C19=\"\",\"\",SUBTOTAL(3,$C$6:C19))","v":""},null,null,null,null,"",0,"",null,null,null,null,null,null,null,null,null,null,null,null,null,null,null,null,null,null,null,null,null,null,null,null,null,null,null,null,null,null,null,null,null,null,null,"",0,""]
[null,{"$f":"IF(C20=\"\",\"\",SUBTOTAL(3,$C$6:C20))","v":""},null,null,null,null,"",0,"",null,null,null,null,null,null,null,null,null,null,null,null,null,null,null,null,null,null,null,null,null,null,null,null,null,null,null,null,null,null,null,null,null,null,null,"",0,""]
[null,{"$f":"IF(C21=\"\",\"\",SUBTOTAL(3,$C$6:C21))","v":""},null,null,null,null,"",0,"",null,null,null,null,null,null,null,null,null,null,null,null,null,null,null,null,null,null,null,null,null,null,null,null,null,null,null,null,null,null,null,null,null,null,null,"",0,""]
[null,{"$f":"IF(C22=\"\",\"\",SUBTOTAL(3,$C$6:C22))","v":""},null,null,null,null,"",0,"",null,null,null,null,null,null,null,null,null,null,null,null,null,null,null,null,null,null,null,null,null,null,null,null,null,null,null,null,null,null,null,null,null,null,null,"",0,""]
[null,{"$f":"IF(C23=\"\",\"\",SUBTOTAL(3,$C$6:C23))","v":""},null,null,null,null,"",0,"",null,null,null,null,null,null,null,null,null,null,null,null,null,null,null,null,null,null,null,null,null,null,null,null,null,null,null,null,null,null,null,null,null,null,null,"",0,""]
[null,{"$f":"IF(C24=\"\",\"\",SUBTOTAL(3,$C$6:C24))","v":""},null,null,null,null,"",0,"",null,null,null,null,null,null,null,null,null,null,null,null,null,null,null,null,null,null,null,null,null,null,null,null,null,null,null,null,null,null,null,null,null,null,null,"",0,""]
[null,{"$f":"IF(C25=\"\",\"\",SUBTOTAL(3,$C$6:C25))","v":""},null,null,null,null,"",0,"",null,null,null,null,null,null,null,null,null,null,null,null,null,null,null,null,null,null,null,null,null,null,null,null,null,null,null,null,null,null,null,null,null,null,null,"",0,""]
[null,{"$f":"IF(C26=\"\",\"\",SUBTOTAL(3,$C$6:C26))","v":""},null,null,null,null,"",0,"",null,null,null,null,null,null,null,null,null,null,null,null,null,null,null,null,null,null,null,null,null,null,null,null,null,null,null,null,null,null,null,null,null,null,null,"",0,""]
[null,{"$f":"IF(C27=\"\",\"\",SUBTOTAL(3,$C$6:C27))","v":""},null,null,null,null,"",0,"",null,null,null,null,null,null,null,null,null,null,null,null,null,null,null,null,null,null,null,null,null,null,null,null,null,null,null,null,null,null,null,null,null,null,null,"",0,""]
[null,{"$f":"IF(C28=\"\",\"\",SUBTOTAL(3,$C$6:C28))","v":""},null,null,null,null,"",0,"",null,null,null,null,null,null,null,null,null,null,null,null,null,null,null,null,null,null,null,null,null,null,null,null,null,null,null,null,null,null,null,null,null,null,null,"",0,""]
[null,{"$f":"IF(C29=\"\",\"\",SUBTOTAL(3,$C$6:C29))","v":""},null,null,null,null,"",0,"",null,null,null,null,null,null,null,null,null,null,null,null,null,null,null,null,null,null,null,null,null,null,null,null,null,null,null,null,null,null,null,null,null,null,null,"",0,""]
[null,{"$f":"IF(C30=\"\",\"\",SUBTOTAL(3,$C$6:C30))","v":""},null,null,null,null,"",0,"",null,null,null,null,null,null,null,null,null,null,null,null,null,null,null,null,null,null,null,null,null,null,null,null,null,null,null,null,null,null,null,null,null,null,null,"",0,""]
[null,{"$f":"IF(C31=\"\",\"\",SUBTOTAL(3,$C$6:C31))","v":""},null,null,null,null,"",0,"",null,null,null,null,null,null,null,null,null,null,null,null,null,null,null,null,null,null,null,null,null,null,null,null,null,null,null,null,null,null,null,null,null,null,null,"",0,""]
[null,{"$f":"IF(C32=\"\",\"\",SUBTOTAL(3,$C$6:C32))","v":""},null,null,null,null,"",0,"",null,null,null,null,null,null,null,null,null,null,null,null,null,null,null,null,null,null,null,null,null,null,null,null,null,null,null,null,null,null,null,null,null,null,null,"",0,""]
[null,{"$f":"IF(C33=\"\",\"\",SUBTOTAL(3,$C$6:C33))","v":""},null,null,null,null,"",0,"",null,null,null,null,null,null,null,null,null,null,null,null,null,null,null,null,null,null,null,null,null,null,null,null,null,null,null,null,null,null,null,null,null,null,null,"",0,""]
[null,{"$f":"IF(C34=\"\",\"\",SUBTOTAL(3,$C$6:C34))","v":""},null,null,null,null,"",0,"",null,null,null,null,null,null,null,null,null,null,null,null,null,null,null,null,null,null,null,null,null,null,null,null,null,null,null,null,null,null,null,null,null,null,null,"",0,""]
[null,{"$f":"IF(C35=\"\",\"\",SUBTOTAL(3,$C$6:C35))","v":""},null,null,null,null,"",0,"",null,null,null,null,null,null,null,null,null,null,null,null,null,null,null,null,null,null,null,null,null,null,null,null,null,null,null,null,null,null,null,null,null,null,null,"",0,""]
[null,{"$f":"IF(C36=\"\",\"\",SUBTOTAL(3,$C$6:C36))","v":""},null,null,null,null,"",0,"",null,null,null,null,null,null,null,null,null,null,null,null,null,null,null,null,null,null,null,null,null,null,null,null,null,null,null,null,null,null,null,null,null,null,null,"",0,""]
[null,{"$f":"IF(C37=\"\",\"\",SUBTOTAL(3,$C$6:C37))","v":""},null,null,null,null,"",0,"",null,null,null,null,null,null,null,null,null,null,null,null,null,null,null,null,null,null,null,null,null,null,null,null,null,null,null,null,null,null,null,null,null,null,null,"",0,""]
[null,{"$f":"IF(C38=\"\",\"\",SUBTOTAL(3,$C$6:C38))","v":""},null,null,null,null,"",0,"",null,null,null,null,null,null,null,null,null,null,null,null,null,null,null,null,null,null,null,null,null,null,null,null,null,null,null,null,null,null,null,null,null,null,null,"",0,""]
[null,{"$f":"IF(C39=\"\",\"\",SUBTOTAL(3,$C$6:C39))","v":""},null,null,null,null,"",0,"",null,null,null,null,null,null,null,null,null,null,null,null,null,null,null,null,null,null,null,null,null,null,null,null,null,null,null,null,null,null,null,null,null,null,null,"",0,""]
[null,{"$f":"IF(C40=\"\",\"\",SUBTOTAL(3,$C$6:C40))","v":""},null,null,null,null,"",0,"",null,null,null,null,null,null,null,null,null,null,null,null,null,null,null,null,null,null,null,null,null,null,null,null,null,null,null,null,null,null,null,null,null,null,null,"",0,""]
[null,{"$f":"IF(C41=\"\",\"\",SUBTOTAL(3,$C$6:C41))","v":""},null,null,null,null,"",0,"",null,null,null,null,null,null,null,null,null,null,null,null,null,null,null,null,null,null,null,null,null,null,null,null,null,null,null,null,null,null,null,null,null,null,null,"",0,""]
[null,{"$f":"IF(C42=\"\",\"\",SUBTOTAL(3,$C$6:C42))","v":""},null,null,null,null,"",0,"",null,null,null,null,null,null,null,null,null,null,null,null,null,null,null,null,null,null,null,null,null,null,null,null,null,null,null,null,null,null,null,null,null,null,null,"",0,""]
[null,{"$f":"IF(C43=\"\",\"\",SUBTOTAL(3,$C$6:C43))","v":""},null,null,null,null,"",0,"",null,null,null,null,null,null,null,null,null,null,null,null,null,null,null,null,null,null,null,null,null,null,null,null,null,null,null,null,null,null,null,null,null,null,null,"",0,""]
[null,{"$f":"IF(C44=\"\",\"\",SUBTOTAL(3,$C$6:C44))","v":""},null,null,null,null,"",0,"",null,null,null,null,null,null,null,null,null,null,null,null,null,null,null,null,null,null,null,null,null,null,null,null,null,null,null,null,null,null,null,null,null,null,null,"",0,""]
[null,{"$f":"IF(C45=\"\",\"\",SUBTOTAL(3,$C$6:C45))","v":""},null,null,null,null,"",0,"",null,null,null,null,null,null,null,null,null,null,null,null,null,null,null,null,null,null,null,null,null,null,null,null,null,null,null,null,null,null,null,null,null,null,null,"",0,""]
[null,{"$f":"IF(C46=\"\",\"\",SUBTOTAL(3,$C$6:C46))","v":""},null,null,null,null,"",0,"",null,null,null,null,null,null,null,null,null,null,null,null,null,null,null,null,null,null,null,null,null,null,null,null,null,null,null,null,null,null,null,null,null,null,null,"",0,""]
[null,{"$f":"IF(C47=\"\",\"\",SUBTOTAL(3,$C$6:C47))","v":""},null,null,null,null,"",0,"",null,null,null,null,null,null,null,null,null,null,null,null,null,null,null,null,null,null,null,null,null,null,null,null,null,null,null,null,null,null,null,null,null,null,null,"",0,""]
[null,{"$f":"IF(C48=\"\",\"\",SUBTOTAL(3,$C$6:C48))","v":""},null,null,null,null,"",0,"",null,null,null,null,null,null,null,null,null,null,null,null,null,null,null,null,null,null,null,null,null,null,null,null,null,null,null,null,null,null,null,null,null,null,null,"",0,""]
[null,{"$f":"IF(C49=\"\",\"\",SUBTOTAL(3,$C$6:C49))","v":""},null,null,null,null,"",0,"",null,null,null,null,null,null,null,null,null,null,null,null,null,null,null,null,null,null,null,null,null,null,null,null,null,null,null,null,null,null,null,null,null,null,null,"",0,""]
[null,{"$f":"IF(C50=\"\",\"\",SUBTOTAL(3,$C$6:C50))","v":""},null,null,null,null,"",0,"",null,null,null,null,null,null,null,null,null,null,null,null,null,null,null,null,null,null,null,null,null,null,null,null,null,null,null,null,null,null,null,null,null,null,null,"",0,""]
[null,{"$f":"IF(C51=\"\",\"\",SUBTOTAL(3,$C$6:C51))","v":""},null,null,null,null,"",0,"",null,null,null,null,null,null,null,null,null,null,null,null,null,null,null,null,null,null,null,null,null,null,null,null,null,null,null,null,null,null,null,null,null,null,null,"",0,""]
[null,{"$f":"IF(C52=\"\",\"\",SUBTOTAL(3,$C$6:C52))","v":""},null,null,null,null,"",0,"",null,null,null,null,null,null,null,null,null,null,null,null,null,null,null,null,null,null,null,null,null,null,null,null,null,null,null,null,null,null,null,null,null,null,null,"",0,""]
[null,{"$f":"IF(C53=\"\",\"\",SUBTOTAL(3,$C$6:C53))","v":""},null,null,null,null,"",0,"",null,null,null,null,null,null,null,null,null,null,null,null,null,null,null,null,null,null,null,null,null,null,null,null,null,null,null,null,null,null,null,null,null,null,null,"",0,""]
[null,{"$f":"IF(C54=\"\",\"\",SUBTOTAL(3,$C$6:C54))","v":""},null,null,null,null,"",0,"",null,null,null,null,null,null,null,null,null,null,null,null,null,null,null,null,null,null,null,null,null,null,null,null,null,null,null,null,null,null,null,null,null,null,null,"",0,""]
[null,{"$f":"IF(C55=\"\",\"\",SUBTOTAL(3,$C$6:C55))","v":""},null,null,null,null,"",0,"",null,null,null,null,null,null,null,null,null,null,null,null,null,null,null,null,null,null,null,null,null,null,null,null,null,null,null,null,null,null,null,null,null,null,null,null,0]
[null,{"$f":"IF(C56=\"\",\"\",SUBTOTAL(3,$C$6:C56))","v":""},null,null,null,null,"",0,"",null,null,null,null,null,null,null,null,null,null,null,null,null,null,null,null,null,null,null,null,null,null,null,null,null,null,null,null,null,null,null,null,null,null,null,null,0]
[null,{"$f":"IF(C57=\"\",\"\",SUBTOTAL(3,$C$6:C57))","v":""},null,null,null,null,"",0,"",null,null,null,null,null,null,null,null,null,null,null,null,null,null,null,null,null,null,null,null,null,null,null,null,null,null,null,null,null,null,null,null,null,null,null,null,0]
[null,{"$f":"IF(C58=\"\",\"\",SUBTOTAL(3,$C$6:C58))","v":""},null,null,null,null,"",0,"",null,null,null,null,null,null,null,null,null,null,null,null,null,null,null,null,null,null,null,null,null,null,null,null,null,null,null,null,null,null,null,null,null,null,null,null,0]
[null,{"$f":"IF(C59=\"\",\"\",SUBTOTAL(3,$C$6:C59))","v":""},null,null,null,null,"",0,"",null,null,null,null,null,null,null,null,null,null,null,null,null,null,null,null,null,null,null,null,null,null,null,null,null,null,null,null,null,null,null,null,null,null,null,null,0]
[null,{"$f":"IF(C60=\"\",\"\",SUBTOTAL(3,$C$6:C60))","v":""},null,null,null,null,"",0,"",null,null,null,null,null,null,null,null,null,null,null,null,null,null,null,null,null,null,null,null,null,null,null,null,null,null,null,null,null,null,null,null,null,null,null,null,0]
[null,{"$f":"IF(C61=\"\",\"\",SUBTOTAL(3,$C$6:C61))","v":""},null,null,null,null,"",0,"",null,null,null,null,null,null,null,null,null,null,null,null,null,null,null,null,null,null,null,null,null,null,null,null,null,null,null,null,null,null,null,null,null,null,null,null,0]
[null,{"$f":"IF(C62=\"\",\"\",SUBTOTAL(3,$C$6:C62))","v":""},null,null,null,null,"",0,"",null,null,null,null,null,null,null,null,null,null,null,null,null,null,null,null,null,null,null,null,null,null,null,null,null,null,null,null,null,null,null,null,null,null,null,"",0,""]
[null,{"$f":"IF(C63=\"\",\"\",SUBTOTAL(3,$C$6:C63))","v":""},null,null,null,null,"",0,"",null,null,null,null,null,null,null,null,null,null,null,null,null,null,null,null,null,null,null,null,null,null,null,null,null,null,null,null,null,null,null,null,null,null,null,"",0,""]
[null,{"$f":"IF(C64=\"\",\"\",SUBTOTAL(3,$C$6:C64))","v":""},null,null,null,null,"",0,"",null,null,null,null,null,null,null,null,null,null,null,null,null,null,null,null,null,null,null,null,null,null,null,null,null,null,null,null,null,null,null,null,null,null,null,"",0,""]
[null,{"$f":"IF(C65=\"\",\"\",SUBTOTAL(3,$C$6:C65))","v":""},null,null,null,null,"",0,"",null,null,null,null,null,null,null,null,null,null,null,null,null,null,null,null,null,null,null,null,null,null,null,null,null,null,null,null,null,null,null,null,null,null,null,"",0,""]
[null,{"$f":"IF(C66=\"\",\"\",SUBTOTAL(3,$C$6:C66))","v":""},null,null,null,null,"",0,"",null,null,null,null,null,null,null,null,null,null,null,null,null,null,null,null,null,null,null,null,null,null,null,null,null,null,null,null,null,null,null,null,null,null,null,"",0,""]
[null,{"$f":"IF(C67=\"\",\"\",SUBTOTAL(3,$C$6:C67))","v":""},null,null,null,null,"",0,"",null,null,null,null,null,null,null,null,null,null,null,null,null,null,null,null,null,null,null,null,null,null,null,null,null,null,null,null,null,null,null,null,null,null,null,"",0,""]
[null,{"$f":"IF(C68=\"\",\"\",SUBTOTAL(3,$C$6:C68))","v":""},null,null,null,null,"",0,"",null,null,null,null,null,null,null,null,null,null,null,null,null,null,null,null,null,null,null,null,null,null,null,null,null,null,null,null,null,null,null,null,null,null,null,"",0,""]
[null,{"$f":"IF(C69=\"\",\"\",SUBTOTAL(3,$C$6:C69))","v":""},null,null,null,null,"",0,"",null,null,null,null,null,null,null,null,null,null,null,null,null,null,null,null,null,null,null,null,null,null,null,null,null,null,null,null,null,null,null,null,null,null,null,"",0,""]
[]
[null,"ملحوظة",null,null,null,null,null,"الاجمالي",{"$f":"SUM(I6:I69)","v":0},null,null,null,null,null,null,null,null,null,null,null,null,null,null,null,null,null,null,null,null,null,null,null,null,null,null,null,null,null,null,"ملحوظة",null,null,null,null,null,"الاجمالي"]
[null,null,null,null,null,null,null,"القديم",{"$f":"A6","v":0},null,null,null,null,null,null,null,null,null,null,null,null,null,null,null,null,null,null,null,null,null,null,null,null,null,null,null,null,null,null,null,null,null,null,null,null,"القديم"]
[null,null,null,null,null,null,null,"تنزيل",{"$f":"A10","v":0},null,null,null,null,null,null,null,null,null,null,null,null,null,null,null,null,null,null,null,null,null,null,null,null,null,null,null,null,null,null,null,null,null,null,null,null,"تنزيل"]
[null,null,null,null,null,null,null,"صافي الفاتورة",{"$f":"I71+I72-I73","v":0},null,null,null,null,null,null,null,null,null,null,null,null,null,null,null,null,null,null,null,null,null,null,null,null,null,null,null,null,null,null,null,null,null,null,null,null,"صافي الفاتورة"]

{"sheet":"الفاتورة الفرعية","index":7,"n_rows":74,"n_cols":47,"rows_kept":74,"cut":false,"hidden":true,"merged":[[1,1,1,6],[1,39,1,44],[2,1,2,2],[2,3,2,5],[2,7,2,8],[2,39,2,40],[2,41,2,43],[2,45,2,46],[3,0,4,0],[3,1,4,1],[3,2,3,3],[3,4,4,4],[3,5,4,5],[3,6,4,6],[3,7,4,7],[3,8,4,8],[3,46,4,46],[3,43,4,43],[3,44,4,44],[3,45,4,45],[3,40,3,41],[3,42,4,42],[11,0,12,0],[13,0,14,0],[15,0,16,0],[9,0,10,0],[3,39,4,39],[5,0,6,0],[7,0,8,0],[72,1,72,6],[72,39,72,44],[73,1,73,6],[73,39,73,44],[17,0,18,0],[70,1,70,6],[70,39,70,44],[71,1,71,6],[71,39,71,44]]}
[]
["اجمالي الفاتورة","اذن صرف",null,null,null,null,null,"رقم الفاتورة",{"$f":"'رقم الفواتير'!A2","v":348},null,null,null,null,null,null,null,null,null,null,null,null,null,null,null,null,null,null,null,null,null,null,null,null,null,null,null,null,null,null,"اذن صرف",null,null,null,null,null,"رقم الفاتورة",319]
[{"$f":"I71","v":0},"الاسم",null,null,null,null,"التاريخ","2021-03-25T21:16:36.740",null,null,null,null,null,null,null,null,null,null,null,null,null,null,null,null,null,null,null,null,null,null,null,null,null,null,null,null,null,null,null,"الاسم",null,null,null,null,"التاريخ","2021-03-25T21:16:36.740"]
["قديم","م","المقاس",null,"الصنف","العدد","سعر المتر","متر م","اجمالي",null,null,null,null,null,"التاريخ","الاسم","رقم الفاتورة","اجمالي الفاتورة","قديم","تنزيل","صافي الفاتورة",null,null,null,null,null,null,null,null,null,null,null,null,null,null,null,null,null,null,"م","المقاس",null,"الصنف","العدد","سعر المتر","متر م","اجمالي"]
[null,null,"العرض ","الطول",null,null,null,null,null,null,null,null,null,null,{"$f":"H3","v":"2021-03-25T21:16:36.740"},{"$f":"D3","v":0},{"$f":"I2","v":348},{"$f":"A3","v":0},{"$f":"A6","v":0},{"$f":"A10","v":0},{"$f":"A14","v":0},null,null,null,null,null,null,null,null,null,null,null,null,null,null,null,null,null,null,null,"العرض ","الطول"]
[null,{"$f":"IF(C6=\"\",\"\",SUBTOTAL(3,$C$6:C6))","v":""},null,null,null,null,null,{"$f":"F6*D6*C6","v":0},{"$f":"IFERROR(G6*F6*(D6*C6),\"\")","v":0},null,null,null,null,null,{"$f":"O5","v":"2021-03-25T21:16:36.740"},{"$f":"P5","v":0},{"$f":"Q4&Q5","v":"رقم الفاتورة348"},{"$f":"R5","v":0},{"$f":"T5","v":0},null,null,null,null,null,null,null,null,null,null,null,null,null,null,null,null,null,null,null,null,null,null,null,null,null,"",0,""]
[null,{"$f":"IF(C7=\"\",\"\",SUBTOTAL(3,$C$6:C7))","v":""},null,null,null,null,null,{"$f":"F7*D7*C7","v":0},{"$f":"IFERROR(G7*F7*(D7*C7),\"\")","v":0},null,null,null,null,null,null,null,null,null,null,null,null,null,null,null,null,null,null,null,null,null,null,null,null,null,null,null,null,null,null,null,null,null,null,null,"",0,""]
["تنزيل",{"$f":"IF(C8=\"\",\"\",SUBTOTAL(3,$C$6:C8))","v":""},null,null,null,null,null,0,0,null,null,null,null,null,null,null,null,null,null,null,null,null,null,null,null,null,null,null,null,null,null,null,null,null,null,null,null,null,null,null,null,null,null,null,"",0,""]
[null,{"$f":"IF(C9=\"\",\"\",SUBTOTAL(3,$C$6:C9))","v":""},null,null,null,null,null,0,0,null,null,null,null,null,null,null,null,null,null,null,null,null,null,null,null,null,null,null,null,null,null,null,null,null,null,null,null,null,null,null,null,null,null,null,"",0,""]
[null,{"$f":"IF(C10=\"\",\"\",SUBTOTAL(3,$C$6:C10))","v":""},null,null,null,null,null,0,0,null,null,null,null,null,null,null,null,null,null,null,null,null,null,null,null,null,null,null,null,null,null,null,null,null,null,null,null,null,null,null,null,null,null,null,"",0,""]
[null,{"$f":"IF(C11=\"\",\"\",SUBTOTAL(3,$C$6:C11))","v":""},null,null,null,null,null,0,0,null,null,null,null,null,null,null,null,null,null,null,null,null,null,null,null,null,null,null,null,null,null,null,null,null,null,null,null,null,null,null,null,null,null,null,"",0,""]
["صافي الفاتورة",{"$f":"IF(C12=\"\",\"\",SUBTOTAL(3,$C$6:C12))","v":""},null,null,null,null,null,0,0,null,null,null,null,null,null,null,null,null,null,null,null,null,null,null,null,null,null,null,null,null,null,null,null,null,null,null,null,null,null,null,null,null,null,null,"",0,""]
[null,{"$f":"IF(C13=\"\",\"\",SUBTOTAL(3,$C$6:C13))","v":""},null,null,null,null,null,0,0,null,null,null,null,null,null,null,null,null,null,null,null,null,null,null,null,null,null,null,null,null,null,null,null,null,null,null,null,null,null,null,null,null,null,null,"",0,""]
[{"$f":"I74","v":0},{"$f":"IF(C14=\"\",\"\",SUBTOTAL(3,$C$6:C14))","v":""},null,null,null,null,null,0,0,null,null,null,null,null,null,null,null,null,null,null,null,null,null,null,null,null,null,null,null,null,null,null,null,null,null,null,null,null,null,null,null,null,null,null,"",0,""]
[null,{"$f":"IF(C15=\"\",\"\",SUBTOTAL(3,$C$6:C15))","v":""},null,null,null,null,null,0,0,null,null,null,null,null,null,null,null,null,null,null,null,null,null,null,null,null,null,null,null,null,null,null,null,null,null,null,null,null,null,null,null,null,null,null,"",0,""]
["متر مربع",{"$f":"IF(C16=\"\",\"\",SUBTOTAL(3,$C$6:C16))","v":""},null,null,null,null,null,0,0,null,null,null,null,null,null,null,null,null,null,null,null,null,null,null,null,null,null,null,null,null,null,null,null,null,null,null,null,null,null,null,null,null,null,null,"",0,""]
[null,{"$f":"IF(C17=\"\",\"\",SUBTOTAL(3,$C$6:C17))","v":""},null,null,null,null,null,0,0,null,null,null,null,null,null,null,null,null,null,null,null,null,null,null,null,null,null,null,null,null,null,null,null,null,null,null,null,null,null,null,null,null,null,null,"",0,""]
[{"$f":"SUM(H6:H69)","v":0},{"$f":"IF(C18=\"\",\"\",SUBTOTAL(3,$C$6:C18))","v":""},null,null,null,null,null,0,0,null,null,null,null,null,null,null,null,null,null,null,null,null,null,null,null,null,null,null,null,null,null,null,null,null,null,null,null,null,null,null,null,null,null,null,"",0,""]
[null,{"$f":"IF(C19=\"\",\"\",SUBTOTAL(3,$C$6:C19))","v":""},null,null,null,null,null,0,0,null,null,null,null,null,null,null,null,null,null,null,null,null,null,null,null,null,null,null,null,null,null,null,null,null,null,null,null,null,null,null,null,null,null,null,"",0,""]
[null,{"$f":"IF(C20=\"\",\"\",SUBTOTAL(3,$C$6:C20))","v":""},null,null,null,null,null,0,0,null,null,null,null,null,null,null,null,null,null,null,null,null,null,null,null,null,null,null,null,null,null,null,null,null,null,null,null,null,null,null,null,null,null,null,"",0,""]
[null,{"$f":"IF(C21=\"\",\"\",SUBTOTAL(3,$C$6:C21))","v":""},null,null,null,null,null,0,0,null,null,null,null,null,null,null,null,null,null,null,null,null,null,null,null,null,null,null,null,null,null,null,null,null,null,null,null,null,null,null,null,null,null,null,"",0,""]
[null,{"$f":"IF(C22=\"\",\"\",SUBTOTAL(3,$C$6:C22))","v":""},null,null,null,null,null,0,0,null,null,null,null,null,null,null,null,null,null,null,null,null,null,null,null,null,null,null,null,null,null,null,null,null,null,null,null,null,null,null,null,null,null,null,"",0,""]
[null,{"$f":"IF(C23=\"\",\"\",SUBTOTAL(3,$C$6:C23))","v":""},null,null,null,null,null,0,0,null,null,null,null,null,null,null,null,null,null,null,null,null,null,null,null,null,null,null,null,null,null,null,null,null,null,null,null,null,null,null,null,null,null,null,"",0,""]
[null,{"$f":"IF(C24=\"\",\"\",SUBTOTAL(3,$C$6:C24))","v":""},null,null,null,null,null,0,0,null,null,null,null,null,null,null,null,null,null,null,null,null,null,null,null,null,null,null,null,null,null,null,null,null,null,null,null,null,null,null,null,null,null,null,"",0,""]
[null,{"$f":"IF(C25=\"\",\"\",SUBTOTAL(3,$C$6:C25))","v":""},null,null,null,null,null,0,0,null,null,null,null,null,null,null,null,null,null,null,null,null,null,null,null,null,null,null,null,null,null,null,null,null,null,null,null,null,null,null,null,null,null,null,"",0,""]
[null,{"$f":"IF(C26=\"\",\"\",SUBTOTAL(3,$C$6:C26))","v":""},null,null,null,null,null,0,0,null,null,null,null,null,null,null,null,null,null,null,null,null,null,null,null,null,null,null,null,null,null,null,null,null,null,null,null,null,null,null,null,null,null,null,"",0,""]
[null,{"$f":"IF(C27=\"\",\"\",SUBTOTAL(3,$C$6:C27))","v":""},null,null,null,null,null,0,0,null,null,null,null,null,null,null,null,null,null,null,null,null,null,null,null,null,null,null,null,null,null,null,null,null,null,null,null,null,null,null,null,null,null,null,"",0,""]
[null,{"$f":"IF(C28=\"\",\"\",SUBTOTAL(3,$C$6:C28))","v":""},null,null,null,null,null,0,0,null,null,null,null,null,null,null,null,null,null,null,null,null,null,null,null,null,null,null,null,null,null,null,null,null,null,null,null,null,null,null,null,null,null,null,"",0,""]
[null,{"$f":"IF(C29=\"\",\"\",SUBTOTAL(3,$C$6:C29))","v":""},null,null,null,null,null,0,0,null,null,null,null,null,null,null,null,null,null,null,null,null,null,null,null,null,null,null,null,null,null,null,null,null,null,null,null,null,null,null,null,null,null,null,"",0,""]
[null,{"$f":"IF(C30=\"\",\"\",SUBTOTAL(3,$C$6:C30))","v":""},null,null,null,null,null,0,0,null,null,null,null,null,null,null,null,null,null,null,null,null,null,null,null,null,null,null,null,null,null,null,null,null,null,null,null,null,null,null,null,null,null,null,"",0,""]
[null,{"$f":"IF(C31=\"\",\"\",SUBTOTAL(3,$C$6:C31))","v":""},null,null,null,null,null,0,0,null,null,null,null,null,null,null,null,null,null,null,null,null,null,null,null,null,null,null,null,null,null,null,null,null,null,null,null,null,null,null,null,null,null,null,"",0,""]
[null,{"$f":"IF(C32=\"\",\"\",SUBTOTAL(3,$C$6:C32))","v":""},null,null,null,null,null,0,0,null,null,null,null,null,null,null,null,null,null,null,null,null,null,null,null,null,null,null,null,null,null,null,null,null,null,null,null,null,null,null,null,null,null,null,"",0,""]
[null,{"$f":"IF(C33=\"\",\"\",SUBTOTAL(3,$C$6:C33))","v":""},null,null,null,null,null,0,0,null,null,null,null,null,null,null,null,null,null,null,null,null,null,null,null,null,null,null,null,null,null,null,null,null,null,null,null,null,null,null,null,null,null,null,"",0,""]
[null,{"$f":"IF(C34=\"\",\"\",SUBTOTAL(3,$C$6:C34))","v":""},null,null,null,null,null,0,0,null,null,null,null,null,null,null,null,null,null,null,null,null,null,null,null,null,null,null,null,null,null,null,null,null,null,null,null,null,null,null,null,null,null,null,"",0,""]
[null,{"$f":"IF(C35=\"\",\"\",SUBTOTAL(3,$C$6:C35))","v":""},null,null,null,null,null,0,0,null,null,null,null,null,null,null,null,null,null,null,null,null,null,null,null,null,null,null,null,null,null,null,null,null,null,null,null,null,null,null,null,null,null,null,"",0,""]
[null,{"$f":"IF(C36=\"\",\"\",SUBTOTAL(3,$C$6:C36))","v":""},null,null,null,null,null,0,0,null,null,null,null,null,null,null,null,null,null,null,null,null,null,null,null,null,null,null,null,null,null,null,null,null,null,null,null,null,null,null,null,null,null,null,"",0,""]
[null,{"$f":"IF(C37=\"\",\"\",SUBTOTAL(3,$C$6:C37))","v":""},null,null,null,null,null,0,0,null,null,null,null,null,null,null,null,null,null,null,null,null,null,null,null,null,null,null,null,null,null,null,null,null,null,null,null,null,null,null,null,null,null,null,"",0,""]
[null,{"$f":"IF(C38=\"\",\"\",SUBTOTAL(3,$C$6:C38))","v":""},null,null,null,null,null,0,0,null,null,null,null,null,null,null,null,null,null,null,null,null,null,null,null,null,null,null,null,null,null,null,null,null,null,null,null,null,null,null,null,null,null,null,"",0,""]
[null,{"$f":"IF(C39=\"\",\"\",SUBTOTAL(3,$C$6:C39))","v":""},null,null,null,null,null,0,0,null,null,null,null,null,null,null,null,null,null,null,null,null,null,null,null,null,null,null,null,null,null,null,null,null,null,null,null,null,null,null,null,null,null,null,"",0,""]
[null,{"$f":"IF(C40=\"\",\"\",SUBTOTAL(3,$C$6:C40))","v":""},null,null,null,null,null,0,0,null,null,null,null,null,null,null,null,null,null,null,null,null,null,null,null,null,null,null,null,null,null,null,null,null,null,null,null,null,null,null,null,null,null,null,"",0,""]
[null,{"$f":"IF(C41=\"\",\"\",SUBTOTAL(3,$C$6:C41))","v":""},null,null,null,null,null,0,0,null,null,null,null,null,null,null,null,null,null,null,null,null,null,null,null,null,null,null,null,null,null,null,null,null,null,null,null,null,null,null,null,null,null,null,"",0,""]
[null,{"$f":"IF(C42=\"\",\"\",SUBTOTAL(3,$C$6:C42))","v":""},null,null,null,null,null,0,0,null,null,null,null,null,null,null,null,null,null,null,null,null,null,null,null,null,null,null,null,null,null,null,null,null,null,null,null,null,null,null,null,null,null,null,"",0,""]
[null,{"$f":"IF(C43=\"\",\"\",SUBTOTAL(3,$C$6:C43))","v":""},null,null,null,null,null,0,0,null,null,null,null,null,null,null,null,null,null,null,null,null,null,null,null,null,null,null,null,null,null,null,null,null,null,null,null,null,null,null,null,null,null,null,"",0,""]
[null,{"$f":"IF(C44=\"\",\"\",SUBTOTAL(3,$C$6:C44))","v":""},null,null,null,null,null,0,0,null,null,null,null,null,null,null,null,null,null,null,null,null,null,null,null,null,null,null,null,null,null,null,null,null,null,null,null,null,null,null,null,null,null,null,"",0,""]
[null,{"$f":"IF(C45=\"\",\"\",SUBTOTAL(3,$C$6:C45))","v":""},null,null,null,null,null,0,0,null,null,null,null,null,null,null,null,null,null,null,null,null,null,null,null,null,null,null,null,null,null,null,null,null,null,null,null,null,null,null,null,null,null,null,"",0,""]
[null,{"$f":"IF(C46=\"\",\"\",SUBTOTAL(3,$C$6:C46))","v":""},null,null,null,null,null,0,0,null,null,null,null,null,null,null,null,null,null,null,null,null,null,null,null,null,null,null,null,null,null,null,null,null,null,null,null,null,null,null,null,null,null,null,"",0,""]
[null,{"$f":"IF(C47=\"\",\"\",SUBTOTAL(3,$C$6:C47))","v":""},null,null,null,null,null,0,0,null,null,null,null,null,null,null,null,null,null,null,null,null,null,null,null,null,null,null,null,null,null,null,null,null,null,null,null,null,null,null,null,null,null,null,"",0,""]
[null,{"$f":"IF(C48=\"\",\"\",SUBTOTAL(3,$C$6:C48))","v":""},null,null,null,null,null,0,0,null,null,null,null,null,null,null,null,null,null,null,null,null,null,null,null,null,null,null,null,null,null,null,null,null,null,null,null,null,null,null,null,null,null,null,"",0,""]
[null,{"$f":"IF(C49=\"\",\"\",SUBTOTAL(3,$C$6:C49))","v":""},null,null,null,null,null,0,0,null,null,null,null,null,null,null,null,null,null,null,null,null,null,null,null,null,null,null,null,null,null,null,null,null,null,null,null,null,null,null,null,null,null,null,"",0,""]
[null,{"$f":"IF(C50=\"\",\"\",SUBTOTAL(3,$C$6:C50))","v":""},null,null,null,null,null,0,0,null,null,null,null,null,null,null,null,null,null,null,null,null,null,null,null,null,null,null,null,null,null,null,null,null,null,null,null,null,null,null,null,null,null,null,"",0,""]
[null,{"$f":"IF(C51=\"\",\"\",SUBTOTAL(3,$C$6:C51))","v":""},null,null,null,null,null,0,0,null,null,null,null,null,null,null,null,null,null,null,null,null,null,null,null,null,null,null,null,null,null,null,null,null,null,null,null,null,null,null,null,null,null,null,"",0,""]
[null,{"$f":"IF(C52=\"\",\"\",SUBTOTAL(3,$C$6:C52))","v":""},null,null,null,null,null,0,0,null,null,null,null,null,null,null,null,null,null,null,null,null,null,null,null,null,null,null,null,null,null,null,null,null,null,null,null,null,null,null,null,null,null,null,"",0,""]
[null,{"$f":"IF(C53=\"\",\"\",SUBTOTAL(3,$C$6:C53))","v":""},null,null,null,null,null,0,0,null,null,null,null,null,null,null,null,null,null,null,null,null,null,null,null,null,null,null,null,null,null,null,null,null,null,null,null,null,null,null,null,null,null,null,"",0,""]
[null,{"$f":"IF(C54=\"\",\"\",SUBTOTAL(3,$C$6:C54))","v":""},null,null,null,null,null,0,0,null,null,null,null,null,null,null,null,null,null,null,null,null,null,null,null,null,null,null,null,null,null,null,null,null,null,null,null,null,null,null,null,null,null,null,"",0,""]
[null,{"$f":"IF(C55=\"\",\"\",SUBTOTAL(3,$C$6:C55))","v":""},null,null,null,null,null,0,0,null,null,null,null,null,null,null,null,null,null,null,null,null,null,null,null,null,null,null,null,null,null,null,null,null,null,null,null,null,null,null,null,null,null,null,null,0]
[null,{"$f":"IF(C56=\"\",\"\",SUBTOTAL(3,$C$6:C56))","v":""},null,null,null,null,null,0,0,null,null,null,null,null,null,null,null,null,null,null,null,null,null,null,null,null,null,null,null,null,null,null,null,null,null,null,null,null,null,null,null,null,null,null,null,0]
[null,{"$f":"IF(C57=\"\",\"\",SUBTOTAL(3,$C$6:C57))","v":""},null,null,null,null,null,0,0,null,null,null,null,null,null,null,null,null,null,null,null,null,null,null,null,null,null,null,null,null,null,null,null,null,null,null,null,null,null,null,null,null,null,null,null,0]
[null,{"$f":"IF(C58=\"\",\"\",SUBTOTAL(3,$C$6:C58))","v":""},null,null,null,null,null,0,0,null,null,null,null,null,null,null,null,null,null,null,null,null,null,null,null,null,null,null,null,null,null,null,null,null,null,null,null,null,null,null,null,null,null,null,null,0]
[null,{"$f":"IF(C59=\"\",\"\",SUBTOTAL(3,$C$6:C59))","v":""},null,null,null,null,null,0,0,null,null,null,null,null,null,null,null,null,null,null,null,null,null,null,null,null,null,null,null,null,null,null,null,null,null,null,null,null,null,null,null,null,null,null,null,0]
[null,{"$f":"IF(C60=\"\",\"\",SUBTOTAL(3,$C$6:C60))","v":""},null,null,null,null,null,0,0,null,null,null,null,null,null,null,null,null,null,null,null,null,null,null,null,null,null,null,null,null,null,null,null,null,null,null,null,null,null,null,null,null,null,null,null,0]
[null,{"$f":"IF(C61=\"\",\"\",SUBTOTAL(3,$C$6:C61))","v":""},null,null,null,null,null,0,0,null,null,null,null,null,null,null,null,null,null,null,null,null,null,null,null,null,null,null,null,null,null,null,null,null,null,null,null,null,null,null,null,null,null,null,null,0]
[null,{"$f":"IF(C62=\"\",\"\",SUBTOTAL(3,$C$6:C62))","v":""},null,null,null,null,null,0,0,null,null,null,null,null,null,null,null,null,null,null,null,null,null,null,null,null,null,null,null,null,null,null,null,null,null,null,null,null,null,null,null,null,null,null,"",0,""]
[null,{"$f":"IF(C63=\"\",\"\",SUBTOTAL(3,$C$6:C63))","v":""},null,null,null,null,null,0,0,null,null,null,null,null,null,null,null,null,null,null,null,null,null,null,null,null,null,null,null,null,null,null,null,null,null,null,null,null,null,null,null,null,null,null,"",0,""]
[null,{"$f":"IF(C64=\"\",\"\",SUBTOTAL(3,$C$6:C64))","v":""},null,null,null,null,null,0,0,null,null,null,null,null,null,null,null,null,null,null,null,null,null,null,null,null,null,null,null,null,null,null,null,null,null,null,null,null,null,null,null,null,null,null,"",0,""]
[null,{"$f":"IF(C65=\"\",\"\",SUBTOTAL(3,$C$6:C65))","v":""},null,null,null,null,null,0,0,null,null,null,null,null,null,null,null,null,null,null,null,null,null,null,null,null,null,null,null,null,null,null,null,null,null,null,null,null,null,null,null,null,null,null,"",0,""]
[null,{"$f":"IF(C66=\"\",\"\",SUBTOTAL(3,$C$6:C66))","v":""},null,null,null,null,null,0,0,null,null,null,null,null,null,null,null,null,null,null,null,null,null,null,null,null,null,null,null,null,null,null,null,null,null,null,null,null,null,null,null,null,null,null,"",0,""]
[null,{"$f":"IF(C67=\"\",\"\",SUBTOTAL(3,$C$6:C67))","v":""},null,null,null,null,null,0,0,null,null,null,null,null,null,null,null,null,null,null,null,null,null,null,null,null,null,null,null,null,null,null,null,null,null,null,null,null,null,null,null,null,null,null,"",0,""]
[null,{"$f":"IF(C68=\"\",\"\",SUBTOTAL(3,$C$6:C68))","v":""},null,null,null,null,null,0,0,null,null,null,null,null,null,null,null,null,null,null,null,null,null,null,null,null,null,null,null,null,null,null,null,null,null,null,null,null,null,null,null,null,null,null,"",0,""]
[null,{"$f":"IF(C69=\"\",\"\",SUBTOTAL(3,$C$6:C69))","v":""},null,null,null,null,null,0,0,null,null,null,null,null,null,null,null,null,null,null,null,null,null,null,null,null,null,null,null,null,null,null,null,null,null,null,null,null,null,null,null,null,null,null,"",0,""]
[]
[null,"ملحوظة",null,null,null,null,null,"الاجمالي",{"$f":"SUM(I6:I69)","v":0},null,null,null,null,null,null,null,null,null,null,null,null,null,null,null,null,null,null,null,null,null,null,null,null,null,null,null,null,null,null,"ملحوظة",null,null,null,null,null,"الاجمالي"]
[null,null,null,null,null,null,null,"القديم",{"$f":"A6","v":0},null,null,null,null,null,null,null,null,null,null,null,null,null,null,null,null,null,null,null,null,null,null,null,null,null,null,null,null,null,null,null,null,null,null,null,null,"القديم"]
[null,null,null,null,null,null,null,"تنزيل",{"$f":"A10","v":0},null,null,null,null,null,null,null,null,null,null,null,null,null,null,null,null,null,null,null,null,null,null,null,null,null,null,null,null,null,null,null,null,null,null,null,null,"تنزيل"]
[null,null,null,null,null,null,null,"صافي الفاتورة",{"$f":"I71+I72-I73","v":0},null,null,null,null,null,null,null,null,null,null,null,null,null,null,null,null,null,null,null,null,null,null,null,null,null,null,null,null,null,null,null,null,null,null,null,null,"صافي الفاتورة"]

{"sheet":"العملاء","index":8,"n_rows":14,"n_cols":8,"rows_kept":14,"cut":false,"hidden":true,"merged":[[1,6,3,7]]}
["كود العميل","الاسم","العنوان","رقم التليفون","رقم وتساب"]
[1,"حسن",null,"","",null,"اضافة عميل"]
[null,null,null,"",""]
[null,null,null,"",""]
[null,null,null,"","",null,"كود العميل",3]
[null,null,null,"","",null,"الاسم"]
[null,null,null,"","",null,"العنوان"]
[null,null,null,"","",null,"رقم التليفون",""]
[null,null,null,"","",null,"رقم وتساب",""]
[]
[null,null,null,null,null,null,null,{"$f":"IFERROR(H7*G7*(E7*D7),\"\")","v":""}]
[]
[]
[null,null,null,null,null,null,null,{"$f":"IFERROR(H7*G7*(E7*D7),\"\")","v":""}]

{"sheet":"ارشيف العملاء","index":9,"n_rows":5,"n_cols":8,"rows_kept":5,"cut":false,"hidden":true,"merged":[[0,0,0,7]]}
["ارشيف العملاء"]
[null,"2021-01-01"]
["كود العميل","تاريخ الاصدار","اسم العميل","رقم الفاتورة","اجمالي الفاتورة","قديم","تنزيل","صافي الفاتورة"]
[null,"2021-03-25T21:16:36.740","أ - احمد سمير",347,69039.759999999995,79287,0,148326.76]
[null,null,"سيد"]

{"sheet":"المخزن","index":10,"n_rows":52,"n_cols":3,"rows_kept":52,"cut":false,"hidden":false,"merged":[]}
["اسم الصنف","سعر المتر","الكمية بالمتر مربع"]
["ريذا"]
["مانشيستر",null,50.6]
["ليوناردو",null,100]
["ميجا استايل"]
["استايل",null,1000]
["لوسيدا"]
["كرنفال"]
["جاليري"]
["سانيل شاج"]
["كروز"]
["سيجما"]
["روكا"]
["موكا شاج"]
["موكا"]
["سلطانة"]
["بدر",null,500]
["كهرمان"]
["بانوراما"]
["فنسيا شاج"]
["ريماس"]
["اميرة"]
["فلوريدا"]
["شاج نمر"]
["اميرهان"]
["نيو اميرهان"]
["فيراري"]
["سراي"]
["دكار"]
["نايل"]
["مطابخ"]
["ريكسوس"]
["فلانتينو"]
["اطفال نمر"]
["روما"]
["زارا"]
["بريشكا"]
["ميرو"]
["اطفال جنز"]
["كلاس هوم"]
["عتب جلد مخرم"]
["طقم حمام شاج"]
["طقم حمام فل جنز"]
["عتب جلد تركي"]
["شنطه عجل"]
["شنطه كبيره"]
["نمر"]
["فاريدة"]
["ابداع"]
["هافانا"]
["سيمبا"]
["سدرة"]

{"sheet":"كشف حساب عميل","index":11,"n_rows":511,"n_cols":7,"rows_kept":511,"cut":false,"hidden":false,"merged":[[1,0,1,5],[2,0,2,1],[3,0,3,1],[5,6,5,7],[510,0,510,1],[6,6,6,7],[7,6,7,7],[8,6,8,7],[9,6,9,7],[10,6,10,7],[509,0,509,1]]}
[]
["كشف حساب"]
["اسم العميل",null,"حسن",null,"من تاريخ","2021-01-01"]
["اجمالي الدين",null,{"$f":"G7","v":0},null,"الي تاريخ",{"$f":"NOW()","v":"2021-04-20T17:46:01.840"}]
["مسلسل","تاريخ الاصدار","البيــــــــــان","مديـــن","دائـــن","الرصيد"]
[{"$f":"IF(B6=\"\",\"\",ROW()-5)","v":""},null,null,null,null,{"$f":"D6-E6","v":0},"اجمالي الدين"]
["",null,null,null,null,{"$f":"F6+D7-E7","v":0},{"$f":"G9-G11","v":0}]
["",null,null,null,null,{"$f":"F7+D8-E8","v":0},"اجمالي الفواتير"]
["",null,null,null,null,0,{"$f":"SUM(D6:D509)","v":0}]
["",null,null,null,null,0,"اجمالي التنزيلات"]
["",null,null,null,null,0,{"$f":"SUM(E6:E509)","v":0}]
["",null,null,null,null,0]
["",null,null,null,null,0]
["",null,null,null,null,0]
["",null,null,null,null,0]
["",null,null,null,null,0]
["",null,null,null,null,0]
["",null,null,null,null,0]
["",null,null,null,null,0]
["",null,null,null,null,0]
["",null,null,null,null,0]
["",null,null,null,null,0]
["",null,null,null,null,0]
["",null,null,null,null,0]
["",null,null,null,null,0]
["",null,null,null,null,0]
["",null,null,null,null,0]
["",null,null,null,null,0]
["",null,null,null,null,0]
["",null,null,null,null,0]
["",null,null,null,null,0]
["",null,null,null,null,0]
["",null,null,null,null,0]
["",null,null,null,null,0]
["",null,null,null,null,0]
["",null,null,null,null,0]
["",null,null,null,null,0]
["",null,null,null,null,0]
["",null,null,null,null,0]
["",null,null,null,null,0]
["",null,null,null,null,0]
["",null,null,null,null,0]
["",null,null,null,null,0]
["",null,null,null,null,0]
["",null,null,null,null,0]
["",null,null,null,null,0]
["",null,null,null,null,0]
["",null,null,null,null,0]
["",null,null,null,null,0]
["",null,null,null,null,0]
["",null,null,null,null,0]
["",null,null,null,null,0]
["",null,null,null,null,0]
["",null,null,null,null,0]
["",null,null,null,null,0]
["",null,null,null,null,0]
["",null,null,null,null,0]
["",null,null,null,null,0]
["",null,null,null,null,0]
["",null,null,null,null,0]
["",null,null,null,null,0]
["",null,null,null,null,0]
["",null,null,null,null,0]
["",null,null,null,null,0]
["",null,null,null,null,0]
["",null,null,null,null,0]
["",null,null,null,null,0]
["",null,null,null,null,0]
["",null,null,null,null,0]
[{"$f":"IF(B70=\"\",\"\",ROW()-5)","v":""},null,null,null,null,0]
["",null,null,null,null,0]
["",null,null,null,null,{"$f":"F71+D72-E72","v":0}]
["",null,null,null,null,0]
["",null,null,null,null,0]
["",null,null,null,null,0]
["",null,null,null,null,0]
["",null,null,null,null,0]
["",null,null,null,null,0]
["",null,null,null,null,0]
["",null,null,null,null,0]
["",null,null,null,null,0]
["",null,null,null,null,0]
["",null,null,null,null,0]
["",null,null,null,null,0]
["",null,null,null,null,0]
["",null,null,null,null,0]
["",null,null,null,null,0]
["",null,null,null,null,0]
["",null,null,null,null,0]
["",null,null,null,null,0]
["",null,null,null,null,0]
["",null,null,null,null,0]
["",null,null,null,null,0]
["",null,null,null,null,0]
["",null,null,null,null,0]
["",null,null,null,null,0]
["",null,null,null,null,0]
["",null,null,null,null,0]
["",null,null,null,null,0]
["",null,null,null,null,0]
["",null,null,null,null,0]
["",null,null,null,null,0]
["",null,null,null,null,0]
["",null,null,null,null,0]
["",null,null,null,null,0]
["",null,null,null,null,0]
["",null,null,null,null,0]
["",null,null,null,null,0]
["",null,null,null,null,0]
["",null,null,null,null,0]
["",null,null,null,null,0]
["",null,null,null,null,0]
["",null,null,null,null,0]
["",null,null,null,null,0]
["",null,null,null,null,0]
["",null,null,null,null,0]
["",null,null,null,null,0]
["",null,null,null,null,0]
["",null,null,null,null,0]
["",null,null,null,null,0]
["",null,null,null,null,0]
["",null,null,null,null,0]
["",null,null,null,null,0]
["",null,null,null,null,0]
["",null,null,null,null,0]
["",null,null,null,null,0]
["",null,null,null,null,0]
["",null,null,null,null,0]
["",null,null,null,null,0]
["",null,null,null,null,0]
["",null,null,null,null,0]
["",null,null,null,null,0]
["",null,null,null,null,0]
[{"$f":"IF(B134=\"\",\"\",ROW()-5)","v":""},null,null,null,null,0]
["",null,null,null,null,0]
["",null,null,null,null,{"$f":"F135+D136-E136","v":0}]
["",null,null,null,null,0]
["",null,null,null,null,0]
["",null,null,null,null,0]
["",null,null,null,null,0]
["",null,null,null,null,0]
["",null,null,null,null,0]
["",null,null,null,null,0]
["",null,null,null,null,0]
["",null,null,null,null,0]
["",null,null,null,null,0]
["",null,null,null,null,0]
["",null,null,null,null,0]
["",null,null,null,null,0]
["",null,null,null,null,0]
["",null,null,null,null,0]
["",null,null,null,null,0]
["",null,null,null,null,0]
["",null,null,null,null,0]
["",null,null,null,null,0]
["",null,null,null,null,0]
["",null,null,null,null,0]
["",null,null,null,null,0]
["",null,null,null,null,0]
["",null,null,null,null,0]
["",null,null,null,null,0]
["",null,null,null,null,0]
["",null,null,null,null,0]
["",null,null,null,null,0]
["",null,null,null,null,0]
["",null,null,null,null,0]
["",null,null,null,null,0]
["",null,null,null,null,0]
["",null,null,null,null,0]
["",null,null,null,null,0]
["",null,null,null,null,0]
["",null,null,null,null,0]
["",null,null,null,null,0]
["",null,null,null,null,0]
["",null,null,null,null,0]
["",null,null,null,null,0]
["",null,null,null,null,0]
["",null,null,null,null,0]
["",null,null,null,null,0]
["",null,null,null,null,0]
["",null,null,null,null,0]
["",null,null,null,null,0]
["",null,null,null,null,0]
["",null,null,null,null,0]
["",null,null,null,null,0]
["",null,null,null,null,0]
["",null,null,null,null,0]
["",null,null,null,null,0]
["",null,null,null,null,0]
["",null,null,null,null,0]
["",null,null,null,null,0]
["",null,null,null,null,0]
["",null,null,null,null,0]
["",null,null,null,null,0]
["",null,null,null,null,0]
["",null,null,null,null,0]
["",null,null,null,null,0]
[{"$f":"IF(B198=\"\",\"\",ROW()-5)","v":""},null,null,null,null,0]
["",null,null,null,null,0]
["",null,null,null,null,{"$f":"F199+D200-E200","v":0}]
["",null,null,null,null,0]
["",null,null,null,null,0]
["",null,null,null,null,0]
["",null,null,null,null,0]
["",null,null,null,null,0]
["",null,null,null,null,0]
["",null,null,null,null,0]
["",null,null,null,null,0]
["",null,null,null,null,0]
["",null,null,null,null,0]
["",null,null,null,null,0]
["",null,null,null,null,0]
["",null,null,null,null,0]
["",null,null,null,null,0]
["",null,null,null,null,0]
["",null,null,null,null,0]
["",null,null,null,null,0]
["",null,null,null,null,0]
["",null,null,null,null,0]
["",null,null,null,null,0]
["",null,null,null,null,0]
["",null,null,null,null,0]
["",null,null,null,null,0]
["",null,null,null,null,0]
["",null,null,null,null,0]
["",null,null,null,null,0]
["",null,null,null,null,0]
["",null,null,null,null,0]
["",null,null,null,null,0]
["",null,null,null,null,0]
["",null,null,null,null,0]
["",null,null,null,null,0]
["",null,null,null,null,0]
["",null,null,null,null,0]
["",null,null,null,null,0]
["",null,null,null,null,0]
["",null,null,null,null,0]
["",null,null,null,null,0]
["",null,null,null,null,0]
["",null,null,null,null,0]
["",null,null,null,null,0]
["",null,null,null,null,0]
["",null,null,null,null,0]
["",null,null,null,null,0]
["",null,null,null,null,0]
["",null,null,null,null,0]
["",null,null,null,null,0]
["",null,null,null,null,0]
["",null,null,null,null,0]
["",null,null,null,null,0]
["",null,null,null,null,0]
["",null,null,null,null,0]
["",null,null,null,null,0]
["",null,null,null,null,0]
["",null,null,null,null,0]
["",null,null,null,null,0]
["",null,null,null,null,0]
["",null,null,null,null,0]
["",null,null,null,null,0]
["",null,null,null,null,0]
["",null,null,null,null,0]
[{"$f":"IF(B262=\"\",\"\",ROW()-5)","v":""},null,null,null,null,0]
["",null,null,null,null,0]
["",null,null,null,null,{"$f":"F263+D264-E264","v":0}]
["",null,null,null,null,0]
["",null,null,null,null,0]
["",null,null,null,null,0]
["",null,null,null,null,0]
["",null,null,null,null,0]
["",null,null,null,null,0]
["",null,null,null,null,0]
["",null,null,null,null,0]
["",null,null,null,null,0]
["",null,null,null,null,0]
["",null,null,null,null,0]
["",null,null,null,null,0]
["",null,null,null,null,0]
["",null,null,null,null,0]
["",null,null,null,null,0]
["",null,null,null,null,0]
["",null,null,null,null,0]
["",null,null,null,null,0]
["",null,null,null,null,0]
["",null,null,null,null,0]
["",null,null,null,null,0]
["",null,null,null,null,0]
["",null,null,null,null,0]
["",null,null,null,null,0]
["",null,null,null,null,0]
["",null,null,null,null,0]
["",null,null,null,null,0]
["",null,null,null,null,0]
["",null,null,null,null,0]
["",null,null,null,null,0]
["",null,null,null,null,0]
["",null,null,null,null,0]
["",null,null,null,null,0]
["",null,null,null,null,0]
["",null,null,null,null,0]
["",null,null,null,null,0]
["",null,null,null,null,0]
["",null,null,null,null,0]
["",null,null,null,null,0]
["",null,null,null,null,0]
["",null,null,null,null,0]
["",null,null,null,null,0]
["",null,null,null,null,0]
["",null,null,null,null,0]
["",null,null,null,null,0]
["",null,null,null,null,0]
["",null,null,null,null,0]
["",null,null,null,null,0]
["",null,null,null,null,0]
["",null,null,null,null,0]
["",null,null,null,null,0]
["",null,null,null,null,0]
["",null,null,null,null,0]
["",null,null,null,null,0]
["",null,null,null,null,0]
["",null,null,null,null,0]
["",null,null,null,null,0]
["",null,null,null,null,0]
["",null,null,null,null,0]
["",null,null,null,null,0]
["",null,null,null,null,0]
[{"$f":"IF(B326=\"\",\"\",ROW()-5)","v":""},null,null,null,null,0]
["",null,null,null,null,0]
["",null,null,null,null,{"$f":"F327+D328-E328","v":0}]
["",null,null,null,null,0]
["",null,null,null,null,0]
["",null,null,null,null,0]
["",null,null,null,null,0]
["",null,null,null,null,0]
["",null,null,null,null,0]
["",null,null,null,null,0]
["",null,null,null,null,0]
["",null,null,null,null,0]
["",null,null,null,null,0]
["",null,null,null,null,0]
["",null,null,null,null,0]
["",null,null,null,null,0]
["",null,null,null,null,0]
["",null,null,null,null,0]
["",null,null,null,null,0]
["",null,null,null,null,0]
["",null,null,null,null,0]
["",null,null,null,null,0]
["",null,null,null,null,0]
["",null,null,null,null,0]
["",null,null,null,null,0]
["",null,null,null,null,0]
["",null,null,null,null,0]
["",null,null,null,null,0]
["",null,null,null,null,0]
["",null,null,null,null,0]
["",null,null,null,null,0]
["",null,null,null,null,0]
["",null,null,null,null,0]
["",null,null,null,null,0]
["",null,null,null,null,0]
["",null,null,null,null,0]
["",null,null,null,null,0]
["",null,null,null,null,0]
["",null,null,null,null,0]
["",null,null,null,null,0]
["",null,null,null,null,0]
["",null,null,null,null,0]
["",null,null,null,null,0]
["",null,null,null,null,0]
["",null,null,null,null,0]
["",null,null,null,null,0]
["",null,null,null,null,0]
["",null,null,null,null,0]
["",null,null,null,null,0]
["",null,null,null,null,0]
["",null,null,null,null,0]
["",null,null,null,null,0]
["",null,null,null,null,0]
["",null,null,null,null,0]
["",null,null,null,null,0]
["",null,null,null,null,0]
["",null,null,null,null,0]
["",null,null,null,null,0]
["",null,null,null,null,0]
["",null,null,null,null,0]
["",null,null,null,null,0]
["",null,null,null,null,0]
["",null,null,null,null,0]
["",null,null,null,null,0]
[{"$f":"IF(B390=\"\",\"\",ROW()-5)","v":""},null,null,null,null,0]
["",null,null,null,null,0]
["",null,null,null,null,{"$f":"F391+D392-E392","v":0}]
["",null,null,null,null,0]
["",null,null,null,null,0]
["",null,null,null,null,0]
["",null,null,null,null,0]
["",null,null,null,null,0]
["",null,null,null,null,0]
["",null,null,null,null,0]
["",null,null,null,null,0]
["",null,null,null,null,0]
["",null,null,null,null,0]
["",null,null,null,null,0]
["",null,null,null,null,0]
["",null,null,null,null,0]
["",null,null,null,null,0]
["",null,null,null,null,0]
["",null,null,null,null,0]
["",null,null,null,null,0]
["",null,null,null,null,0]
["",null,null,null,null,0]
["",null,null,null,null,0]
["",null,null,null,null,0]
["",null,null,null,null,0]
["",null,null,null,null,0]
["",null,null,null,null,0]
["",null,null,null,null,0]
["",null,null,null,null,0]
["",null,null,null,null,0]
["",null,null,null,null,0]
["",null,null,null,null,0]
["",null,null,null,null,0]
["",null,null,null,null,0]
["",null,null,null,null,0]
["",null,null,null,null,0]
["",null,null,null,null,0]
["",null,null,null,null,0]
["",null,null,null,null,0]
["",null,null,null,null,0]
["",null,null,null,null,0]
["",null,null,null,null,0]
["",null,null,null,null,0]
["",null,null,null,null,0]
["",null,null,null,null,0]
["",null,null,null,null,0]
["",null,null,null,null,0]
["",null,null,null,null,0]
["",null,null,null,null,0]
["",null,null,null,null,0]
["",null,null,null,null,0]
["",null,null,null,null,0]
["",null,null,null,null,0]
["",null,null,null,null,0]
["",null,null,null,null,0]
["",null,null,null,null,0]
["",null,null,null,null,0]
["",null,null,null,null,0]
["",null,null,null,null,0]
["",null,null,null,null,0]
["",null,null,null,null,0]
["",null,null,null,null,0]
["",null,null,null,null,0]
["",null,null,null,null,0]
[{"$f":"IF(B454=\"\",\"\",ROW()-5)","v":""},null,null,null,null,0]
["",null,null,null,null,0]
["",null,null,null,null,{"$f":"F455+D456-E456","v":0}]
["",null,null,null,null,0]
["",null,null,null,null,0]
["",null,null,null,null,0]
["",null,null,null,null,0]
["",null,null,null,null,0]
["",null,null,null,null,0]
["",null,null,null,null,0]
["",null,null,null,null,0]
["",null,null,null,null,0]
["",null,null,null,null,0]
["",null,null,null,null,0]
["",null,null,null,null,0]
["",null,null,null,null,0]
["",null,null,null,null,0]
["",null,null,null,null,0]
["",null,null,null,null,0]
["",null,null,null,null,0]
["",null,null,null,null,0]
["",null,null,null,null,0]
["",null,null,null,null,0]
["",null,null,null,null,0]
["",null,null,null,null,0]
["",null,null,null,null,0]
["",null,null,null,null,0]
["",null,null,null,null,0]
["",null,null,null,null,0]
["",null,null,null,null,0]
["",null,null,null,null,0]
["",null,null,null,null,0]
["",null,null,null,null,0]
["",null,null,null,null,0]
["",null,null,null,null,0]
["",null,null,null,null,0]
["",null,null,null,null,0]
["",null,null,null,null,0]
["",null,null,null,null,0]
["",null,null,null,null,0]
["",null,null,null,null,0]
["",null,null,null,null,0]
["",null,null,null,null,0]
["",null,null,null,null,0]
["",null,null,null,null,0]
["",null,null,null,null,0]
["",null,null,null,null,0]
["",null,null,null,null,0]
["",null,null,null,null,0]
["",null,null,null,null,0]
["",null,null,null,null,0]
["",null,null,null,null,0]
["",null,null,null,null,0]
["",null,null,null,null,0]
["",null,null,null,null,0]
["",null,null,null,null,0]
["مديــــــــن",null,null,null,null,0]
[{"$f":"G7","v":0},null,null,null,null,0]

{"sheet":"تبويب التنيلات للعملاء","index":12,"n_rows":12,"n_cols":22,"rows_kept":12,"cut":false,"hidden":true,"merged":[]}
[]
[null,null,null,null,null,null,null,null,null,null,null,null,null,null,null,null,"التاريخ","اسم العميل ","البيان",null,null,"تنزيل"]
[null,null,null,null,null,null,null,null,null,null,null,null,null,null,null,null,{"$f":"C3","v":"00:00:00"},{"$f":"C4","v":0},{"$f":"C5","v":0},null,null,{"$f":"C6","v":0}]
[]
[]
[]
[]
[]
[]
[]
[]
["*"]

{"sheet":"مجمع حساب العملاء الاعدادات","index":13,"n_rows":32,"n_cols":5,"rows_kept":32,"cut":false,"hidden":false,"merged":[[0,0,0,4]]}
["اعدادات كشف الحساب"]
["2021-01-01"]
["تاريخ الاصدار","اسم العميل","البيــــــــــان","مديـــن","دائـــن"]
["2021-01-01","حسن","سحب2*2.8كهرمان العدد 5",3080]
["2021-01-01","حسن","سحب2*2.8كهرمان العدد 5",3080]
["2021-02-02","محمد","سحب2*22 العدد 2",16]
["2021-02-03","محمد","سحب5*55 العدد 5",625]
["2021-02-04","محمد","تنزيل مرتجع5*65 العدد 6",null,1080]
["2021-02-05","محمد","تنزيل مرتجع9*99 العدد 9",null,6561]
["2021-01-01","حسن","سحب 1 * 1بدر العدد 2",20]
["2021-01-01","حسن","سحب 2 * 1بدر العدد 2",40]
["2021-01-01","حسن","سحب 3 * 1بدر العدد 2",60]
["2021-01-01","حسن","سحب 4 * 1بدر العدد 2",80]
["2021-01-01","حسن","سحب 5 * 1بدر العدد 2",100]
["2021-01-01","حسن","سحب 6 * 1بدر العدد 2",120]
["2021-01-01","حسن","سحب 7 * 1بدر العدد 2",140]
["2021-01-01","حسن","سحب 8 * 1بدر العدد 2",160]
["2021-01-01","حسن","سحب 9 * 1بدر العدد 2",180]
["2021-01-01","حسن","سحب 10 * 1بدر العدد 2",200]
["2021-01-01","حسن","سحب 1 * 11 العدد 1",1]
["2021-01-01","حسن","سحب 2 * 2.8بدر العدد 5",2240]
["2021-01-01","حسن","سحب  *  العدد ",0]
["2021-01-01","حسن","تنزيل مرتجع 2 * 2بدر العدد 2",null,640]
["2021-01-01","حسن","تنزيل مرتجع 2 * 2بدر العدد 2",null,640]
["2021-01-01","حسن","تنزيل مرتجع  *  العدد ",null,""]
["2021-01-01","حسن","تنزيل مرتجع  *  العدد ",null,""]
["2021-01-01","حسن","تنزيل مرتجع  *  العدد ",null,""]
["2021-01-01","حسن","تنزيل مرتجع  *  العدد ",null,""]
["2021-01-01","حسن","ايداع البريد المصري ",null,5000]
["00:00:00",0,"",null,0]
["2021-02-02","حسن","ا","ات","ات"]
["2021-03-25T21:16:36.740","أ - احمد سمير","رقم الفاتورة347",69039.759999999995,0]

{"sheet":"الموردين","index":14,"n_rows":13,"n_cols":8,"rows_kept":13,"cut":false,"hidden":true,"merged":[[8,7,8,10],[1,6,3,10],[4,7,4,10],[5,7,5,10],[6,7,6,10],[7,7,7,10]]}
["كود","الاسم","العنوان","رقم التليفون","رقم وتساب"]
[null,null,null,null,null,"","اضافة عميل"]
[]
[]
[null,null,null,null,null,null,"كود العميل",4]
[null,null,null,null,null,null,"الاسم"]
[null,null,null,null,null,null,"العنوان"]
[null,null,null,null,null,null,"رقم التليفون"]
[null,null,null,null,null,null,"رقم وتساب"]
[]
[]
[]
[null,null,null,null,null,null,null,{"$f":"IFERROR(H6*G6*(E6*D6),\"\")","v":""}]

{"sheet":"ارشيف الموردين","index":15,"n_rows":1,"n_cols":8,"rows_kept":1,"cut":false,"hidden":true,"merged":[]}
["تاريخ الاصدار","الاسم ","رقم الفاتورة","اجمالي الفاتورة","قديم","تنزيل","صافي الفاتورة","فتح الفاتورة"]

{"sheet":"كشف حساب مورد","index":16,"n_rows":511,"n_cols":7,"rows_kept":511,"cut":false,"hidden":true,"merged":[[510,0,510,1],[6,6,6,7],[7,6,7,7],[8,6,8,7],[9,6,9,7],[10,6,10,7],[509,0,509,1],[5,6,5,7],[1,0,1,5],[2,0,2,1],[2,2,2,3],[3,0,3,1],[3,2,3,3]]}
[]
["كشف حساب"]
["اسم العميل",null,null,null,"من تاريخ","2021-01-01"]
["اجمالي الدين",null,{"$f":"G7","v":0},null,"الي تاريخ",{"$f":"NOW()","v":"2021-04-20T17:46:01.840"}]
["مسلسل","تاريخ الاصدار","البيـــــــــان","مديـــن","دائـــن","الرصيد"]
[{"$f":"IF(B6=\"\",\"\",ROW()-5)","v":""},null,null,null,null,null,"اجمالي الدين"]
["",null,null,null,null,null,{"$f":"G9-G11","v":0}]
["",null,null,null,null,null,"اجمالي الفواتير"]
["",null,null,null,null,null,{"$f":"SUM(D6:D509)","v":0}]
["",null,null,null,null,null,"اجمالي التنزيلات"]
["",null,null,null,null,null,{"$f":"SUM(E6:E509)","v":0}]
[""]
[""]
[""]
[""]
[""]
[""]
[""]
[""]
[""]
[""]
[""]
[""]
[""]
[""]
[""]
[""]
[""]
[""]
[""]
[""]
[""]
[""]
[""]
[""]
[""]
[""]
[""]
[""]
[""]
[""]
[""]
[""]
[""]
[""]
[""]
[""]
[""]
[""]
[""]
[""]
[""]
[""]
[""]
[""]
[""]
[""]
[""]
[""]
[""]
[""]
[""]
[""]
[""]
[""]
[""]
[""]
[""]
[""]
[{"$f":"IF(B70=\"\",\"\",ROW()-5)","v":""}]
[""]
[""]
[""]
[""]
[""]
[""]
[""]
[""]
[""]
[""]
[""]
[""]
[""]
[""]
[""]
[""]
[""]
[""]
[""]
[""]
[""]
[""]
[""]
[""]
[""]
[""]
[""]
[""]
[""]
[""]
[""]
[""]
[""]
[""]
[""]
[""]
[""]
[""]
[""]
[""]
[""]
[""]
[""]
[""]
[""]
[""]
[""]
[""]
[""]
[""]
[""]
[""]
[""]
[""]
[""]
[""]
[""]
[""]
[""]
[""]
[""]
[""]
[""]
[{"$f":"IF(B134=\"\",\"\",ROW()-5)","v":""}]
[""]
[""]
[""]
[""]
[""]
[""]
[""]
[""]
[""]
[""]
[""]
[""]
[""]
[""]
[""]
[""]
[""]
[""]
[""]
[""]
[""]
[""]
[""]
[""]
[""]
[""]
[""]
[""]
[""]
[""]
[""]
[""]
[""]
[""]
[""]
[""]
[""]
[""]
[""]
[""]
[""]
[""]
[""]
[""]
[""]
[""]
[""]
[""]
[""]
[""]
[""]
[""]
[""]
[""]
[""]
[""]
[""]
[""]
[""]
[""]
[""]
[""]
[""]
[{"$f":"IF(B198=\"\",\"\",ROW()-5)","v":""}]
[""]
[""]
[""]
[""]
[""]
[""]
[""]
[""]
[""]
[""]
[""]
[""]
[""]
[""]
[""]
[""]
[""]
[""]
[""]
[""]
[""]
[""]
[""]
[""]
[""]
[""]
[""]
[""]
[""]
[""]
[""]
[""]
[""]
[""]
[""]
[""]
[""]
[""]
[""]
[""]
[""]
[""]
[""]
[""]
[""]
[""]
[""]
[""]
[""]
[""]
[""]
[""]
[""]
[""]
[""]
[""]
[""]
[""]
[""]
[""]
[""]
[""]
[""]
[{"$f":"IF(B262=\"\",\"\",ROW()-5)","v":""}]
[""]
[""]
[""]
[""]
[""]
[""]
[""]
[""]
[""]
[""]
[""]
[""]
[""]
[""]
[""]
[""]
[""]
[""]
[""]
[""]
[""]
[""]
[""]
[""]
[""]
[""]
[""]
[""]
[""]
[""]
[""]
[""]
[""]
[""]
[""]
[""]
[""]
[""]
[""]
[""]
[""]
[""]
[""]
[""]
[""]
[""]
[""]
[""]
[""]
[""]
[""]
[""]
[""]
[""]
[""]
[""]
[""]
[""]
[""]
[""]
[""]
[""]
[""]
[{"$f":"IF(B326=\"\",\"\",ROW()-5)","v":""}]
[""]
[""]
[""]
[""]
[""]
[""]
[""]
[""]
[""]
[""]
[""]
[""]
[""]
[""]
[""]
[""]
[""]
[""]
[""]
[""]
[""]
[""]
[""]
[""]
[""]
[""]
[""]
[""]
[""]
[""]
[""]
[""]
[""]
[""]
[""]
[""]
[""]
[""]
[""]
[""]
[""]
[""]
[""]
[""]
[""]
[""]
[""]
[""]
[""]
[""]
[""]
[""]
[""]
[""]
[""]
[""]
[""]
[""]
[""]
[""]
[""]
[""]
[""]
[{"$f":"IF(B390=\"\",\"\",ROW()-5)","v":""}]
[""]
[""]
[""]
[""]
[""]
[""]
[""]
[""]
[""]
[""]
[""]
[""]
[""]
[""]
[""]
[""]
[""]
[""]
[""]
[""]
[""]
[""]
[""]
[""]
[""]
[""]
[""]
[""]
[""]
[""]
[""]
[""]
[""]
[""]
[""]
[""]
[""]
[""]
[""]
[""]
[""]
[""]
[""]
[""]
[""]
[""]
[""]
[""]
[""]
[""]
[""]
[""]
[""]
[""]
[""]
[""]
[""]
[""]
[""]
[""]
[""]
[""]
[""]
[{"$f":"IF(B454=\"\",\"\",ROW()-5)","v":""}]
[""]
[""]
[""]
[""]
[""]
[""]
[""]
[""]
[""]
[""]
[""]
[""]
[""]
[""]
[""]
[""]
[""]
[""]
[""]
[""]
[""]
[""]
[""]
[""]
[""]
[""]
[""]
[""]
[""]
[""]
[""]
[""]
[""]
[""]
[""]
[""]
[""]
[""]
[""]
[""]
[""]
[""]
[""]
[""]
[""]
[""]
[""]
[""]
[""]
[""]
[""]
[""]
[""]
[""]
[""]
["مديــــــــن"]
[{"$f":"G7","v":0}]

{"sheet":"سحب وتنزيل الموردين","index":17,"n_rows":6,"n_cols":22,"rows_kept":6,"cut":false,"hidden":true,"merged":[[1,1,1,2]]}
[]
[null,"التنزيلات",null,null,null,null,null,null,null,null,null,null,null,null,null,null,"التاريخ","اسم العميل ","البيان",null,null,"تنزيل"]
[null,"التاريخ","2021-03-28",null,null,null,null,null,null,null,null,null,null,null,null,null,{"$f":"C3","v":"2021-03-28"},{"$f":"C4","v":"احمد شبين الكوم"},{"$f":"C5","v":0},null,null,{"$f":"C6","v":0}]
[null,"اسم العميل","احمد شبين الكوم"]
[null,"الحركة"]
[null,"المبلغ"]

{"sheet":"مجمع حساب الموردين الاعدادات","index":18,"n_rows":3,"n_cols":6,"rows_kept":3,"cut":false,"hidden":true,"merged":[]}
[]
[]
["تاريخ الاصدار","اسم العميل","البيــــــــــان","مديـــن","قديم ","دائـــن"]

{"sheet":"استعلام عن اسعار عميل","index":19,"n_rows":5,"n_cols":5,"rows_kept":5,"cut":false,"hidden":true,"merged":[[4,4,6,4]]}
[]
[]
[]
[]
[null,null,null,null,"استعلام عن اسعار عميل"]

{"sheet":"الاستعلام عن اسعار مورد","index":20,"n_rows":5,"n_cols":5,"rows_kept":5,"cut":false,"hidden":true,"merged":[[4,4,6,4]]}
[]
[]
[]
[]
[null,null,null,null,"استعلام عن اسعار عميل"]

{"sheet":"فاتورة مورد فرعية","index":21,"n_rows":74,"n_cols":47,"rows_kept":74,"cut":false,"hidden":true,"merged":[[1,1,1,6],[1,39,1,44],[2,1,2,2],[2,3,2,5],[2,7,2,8],[2,39,2,40],[2,41,2,43],[2,45,2,46],[3,0,4,0],[3,1,4,1],[3,2,3,3],[3,4,4,4],[3,5,4,5],[3,6,4,6],[3,7,4,7],[3,8,4,8],[3,46,4,46],[3,43,4,43],[3,44,4,44],[3,45,4,45],[3,40,3,41],[3,42,4,42],[11,0,12,0],[13,0,14,0],[15,0,16,0],[9,0,10,0],[3,39,4,39],[5,0,6,0],[7,0,8,0],[72,1,72,6],[72,39,72,44],[73,1,73,6],[73,39,73,44],[17,0,18,0],[70,1,70,6],[70,39,70,44],[71,1,71,6],[71,39,71,44]]}
[]
["اجمالي الفاتورة","اذن توريد",null,null,null,null,null,"رقم الفاتورة",{"$f":"'رقم فاتورة الموردين'!B3","v":20},null,null,null,null,null,null,null,null,null,null,null,null,null,null,null,null,null,null,null,null,null,null,null,null,null,null,null,null,null,null,"اذن صرف",null,null,null,null,null,"رقم الفاتورة",319]
[{"$f":"I71","v":0},"الاسم",null,null,null,null,"التاريخ","2021-03-25T21:16:36.740",null,null,null,null,null,null,null,null,null,null,null,null,null,null,null,null,null,null,null,null,null,null,null,null,null,null,null,null,null,null,null,"الاسم",null,null,null,null,"التاريخ","2021-03-25T21:16:36.740"]
["قديم","م","المقاس",null,"الصنف","العدد","سعر المتر","متر م","اجمالي",null,null,null,null,null,null,null,null,null,null,null,null,null,null,null,null,null,null,null,null,null,null,null,null,null,null,null,null,null,null,"م","المقاس",null,"الصنف","العدد","سعر المتر","متر م","اجمالي"]
[null,null,"العرض ","الطول",null,null,null,null,null,null,null,null,null,null,null,null,null,null,null,null,null,null,null,null,null,null,null,null,null,null,null,null,null,null,null,null,null,null,null,null,"العرض ","الطول"]
[null,{"$f":"IF(C6=\"\",\"\",SUBTOTAL(3,$C$6:C6))","v":""},null,null,null,null,null,{"$f":"F6*D6*C6","v":0},{"$f":"IFERROR(G6*F6*(D6*C6),\"\")","v":0},null,null,null,null,null,null,null,null,null,null,null,null,null,null,null,null,null,null,null,null,null,null,null,null,null,null,null,null,null,null,null,null,null,null,null,"",0,""]
[null,{"$f":"IF(C7=\"\",\"\",SUBTOTAL(3,$C$6:C7))","v":""},null,null,null,null,null,{"$f":"F7*D7*C7","v":0},{"$f":"IFERROR(G7*F7*(D7*C7),\"\")","v":0},null,null,null,null,null,null,null,null,null,null,null,null,null,null,null,null,null,null,null,null,null,null,null,null,null,null,null,null,null,null,null,null,null,null,null,"",0,""]
["تنزيل",{"$f":"IF(C8=\"\",\"\",SUBTOTAL(3,$C$6:C8))","v":""},null,null,null,null,"",0,"",null,null,null,null,null,null,null,null,null,null,null,null,null,null,null,null,null,null,null,null,null,null,null,null,null,null,null,null,null,null,null,null,null,null,null,"",0,""]
[null,{"$f":"IF(C9=\"\",\"\",SUBTOTAL(3,$C$6:C9))","v":""},null,null,null,null,"",0,"",null,null,null,null,null,null,null,null,null,null,null,null,null,null,null,null,null,null,null,null,null,null,null,null,null,null,null,null,null,null,null,null,null,null,null,"",0,""]
[null,{"$f":"IF(C10=\"\",\"\",SUBTOTAL(3,$C$6:C10))","v":""},null,null,null,null,"",0,"",null,null,null,null,null,null,null,null,null,null,null,null,null,null,null,null,null,null,null,null,null,null,null,null,null,null,null,null,null,null,null,null,null,null,null,"",0,""]
[null,{"$f":"IF(C11=\"\",\"\",SUBTOTAL(3,$C$6:C11))","v":""},null,null,null,null,"",0,"",null,null,null,null,null,null,null,null,null,null,null,null,null,null,null,null,null,null,null,null,null,null,null,null,null,null,null,null,null,null,null,null,null,null,null,"",0,""]
["صافي الفاتورة",{"$f":"IF(C12=\"\",\"\",SUBTOTAL(3,$C$6:C12))","v":""},null,null,null,null,"",0,"",null,null,null,null,null,null,null,null,null,null,null,null,null,null,null,null,null,null,null,null,null,null,null,null,null,null,null,null,null,null,null,null,null,null,null,"",0,""]
[null,{"$f":"IF(C13=\"\",\"\",SUBTOTAL(3,$C$6:C13))","v":""},null,null,null,null,"",0,"",null,null,null,null,null,null,null,null,null,null,null,null,null,null,null,null,null,null,null,null,null,null,null,null,null,null,null,null,null,null,null,null,null,null,null,"",0,""]
[{"$f":"I74","v":0},{"$f":"IF(C14=\"\",\"\",SUBTOTAL(3,$C$6:C14))","v":""},null,null,null,null,"",0,"",null,null,null,null,null,null,null,null,null,null,null,null,null,null,null,null,null,null,null,null,null,null,null,null,null,null,null,null,null,null,null,null,null,null,null,"",0,""]
[null,{"$f":"IF(C15=\"\",\"\",SUBTOTAL(3,$C$6:C15))","v":""},null,null,null,null,"",0,"",null,null,null,null,null,null,null,null,null,null,null,null,null,null,null,null,null,null,null,null,null,null,null,null,null,null,null,null,null,null,null,null,null,null,null,"",0,""]
["متر مربع",{"$f":"IF(C16=\"\",\"\",SUBTOTAL(3,$C$6:C16))","v":""},null,null,null,null,"",0,"",null,null,null,null,null,null,null,null,null,null,null,null,null,null,null,null,null,null,null,null,null,null,null,null,null,null,null,null,null,null,null,null,null,null,null,"",0,""]
[null,{"$f":"IF(C17=\"\",\"\",SUBTOTAL(3,$C$6:C17))","v":""},null,null,null,null,"",0,"",null,null,null,null,null,null,null,null,null,null,null,null,null,null,null,null,null,null,null,null,null,null,null,null,null,null,null,null,null,null,null,null,null,null,null,"",0,""]
[{"$f":"SUM(H6:H69)","v":0},{"$f":"IF(C18=\"\",\"\",SUBTOTAL(3,$C$6:C18))","v":""},null,null,null,null,"",0,"",null,null,null,null,null,null,null,null,null,null,null,null,null,null,null,null,null,null,null,null,null,null,null,null,null,null,null,null,null,null,null,null,null,null,null,"",0,""]
[null,{"$f":"IF(C19=\"\",\"\",SUBTOTAL(3,$C$6:C19))","v":""},null,null,null,null,"",0,"",null,null,null,null,null,null,null,null,null,null,null,null,null,null,null,null,null,null,null,null,null,null,null,null,null,null,null,null,null,null,null,null,null,null,null,"",0,""]
[null,{"$f":"IF(C20=\"\",\"\",SUBTOTAL(3,$C$6:C20))","v":""},null,null,null,null,"",0,"",null,null,null,null,null,null,null,null,null,null,null,null,null,null,null,null,null,null,null,null,null,null,null,null,null,null,null,null,null,null,null,null,null,null,null,"",0,""]
[null,{"$f":"IF(C21=\"\",\"\",SUBTOTAL(3,$C$6:C21))","v":""},null,null,null,null,"",0,"",null,null,null,null,null,null,null,null,null,null,null,null,null,null,null,null,null,null,null,null,null,null,null,null,null,null,null,null,null,null,null,null,null,null,null,"",0,""]
[null,{"$f":"IF(C22=\"\",\"\",SUBTOTAL(3,$C$6:C22))","v":""},null,null,null,null,"",0,"",null,null,null,null,null,null,null,null,null,null,null,null,null,null,null,null,null,null,null,null,null,null,null,null,null,null,null,null,null,null,null,null,null,null,null,"",0,""]
[null,{"$f":"IF(C23=\"\",\"\",SUBTOTAL(3,$C$6:C23))","v":""},null,null,null,null,"",0,"",null,null,null,null,null,null,null,null,null,null,null,null,null,null,null,null,null,null,null,null,null,null,null,null,null,null,null,null,null,null,null,null,null,null,null,"",0,""]
[null,{"$f":"IF(C24=\"\",\"\",SUBTOTAL(3,$C$6:C24))","v":""},null,null,null,null,"",0,"",null,null,null,null,null,null,null,null,null,null,null,null,null,null,null,null,null,null,null,null,null,null,null,null,null,null,null,null,null,null,null,null,null,null,null,"",0,""]
[null,{"$f":"IF(C25=\"\",\"\",SUBTOTAL(3,$C$6:C25))","v":""},null,null,null,null,"",0,"",null,null,null,null,null,null,null,null,null,null,null,null,null,null,null,null,null,null,null,null,null,null,null,null,null,null,null,null,null,null,null,null,null,null,null,"",0,""]
[null,{"$f":"IF(C26=\"\",\"\",SUBTOTAL(3,$C$6:C26))","v":""},null,null,null,null,"",0,"",null,null,null,null,null,null,null,null,null,null,null,null,null,null,null,null,null,null,null,null,null,null,null,null,null,null,null,null,null,null,null,null,null,null,null,"",0,""]
[null,{"$f":"IF(C27=\"\",\"\",SUBTOTAL(3,$C$6:C27))","v":""},null,null,null,null,"",0,"",null,null,null,null,null,null,null,null,null,null,null,null,null,null,null,null,null,null,null,null,null,null,null,null,null,null,null,null,null,null,null,null,null,null,null,"",0,""]
[null,{"$f":"IF(C28=\"\",\"\",SUBTOTAL(3,$C$6:C28))","v":""},null,null,null,null,"",0,"",null,null,null,null,null,null,null,null,null,null,null,null,null,null,null,null,null,null,null,null,null,null,null,null,null,null,null,null,null,null,null,null,null,null,null,"",0,""]
[null,{"$f":"IF(C29=\"\",\"\",SUBTOTAL(3,$C$6:C29))","v":""},null,null,null,null,"",0,"",null,null,null,null,null,null,null,null,null,null,null,null,null,null,null,null,null,null,null,null,null,null,null,null,null,null,null,null,null,null,null,null,null,null,null,"",0,""]
[null,{"$f":"IF(C30=\"\",\"\",SUBTOTAL(3,$C$6:C30))","v":""},null,null,null,null,"",0,"",null,null,null,null,null,null,null,null,null,null,null,null,null,null,null,null,null,null,null,null,null,null,null,null,null,null,null,null,null,null,null,null,null,null,null,"",0,""]
[null,{"$f":"IF(C31=\"\",\"\",SUBTOTAL(3,$C$6:C31))","v":""},null,null,null,null,"",0,"",null,null,null,null,null,null,null,null,null,null,null,null,null,null,null,null,null,null,null,null,null,null,null,null,null,null,null,null,null,null,null,null,null,null,null,"",0,""]
[null,{"$f":"IF(C32=\"\",\"\",SUBTOTAL(3,$C$6:C32))","v":""},null,null,null,null,"",0,"",null,null,null,null,null,null,null,null,null,null,null,null,null,null,null,null,null,null,null,null,null,null,null,null,null,null,null,null,null,null,null,null,null,null,null,"",0,""]
[null,{"$f":"IF(C33=\"\",\"\",SUBTOTAL(3,$C$6:C33))","v":""},null,null,null,null,"",0,"",null,null,null,null,null,null,null,null,null,null,null,null,null,null,null,null,null,null,null,null,null,null,null,null,null,null,null,null,null,null,null,null,null,null,null,"",0,""]
[null,{"$f":"IF(C34=\"\",\"\",SUBTOTAL(3,$C$6:C34))","v":""},null,null,null,null,"",0,"",null,null,null,null,null,null,null,null,null,null,null,null,null,null,null,null,null,null,null,null,null,null,null,null,null,null,null,null,null,null,null,null,null,null,null,"",0,""]
[null,{"$f":"IF(C35=\"\",\"\",SUBTOTAL(3,$C$6:C35))","v":""},null,null,null,null,"",0,"",null,null,null,null,null,null,null,null,null,null,null,null,null,null,null,null,null,null,null,null,null,null,null,null,null,null,null,null,null,null,null,null,null,null,null,"",0,""]
[null,{"$f":"IF(C36=\"\",\"\",SUBTOTAL(3,$C$6:C36))","v":""},null,null,null,null,"",0,"",null,null,null,null,null,null,null,null,null,null,null,null,null,null,null,null,null,null,null,null,null,null,null,null,null,null,null,null,null,null,null,null,null,null,null,"",0,""]
[null,{"$f":"IF(C37=\"\",\"\",SUBTOTAL(3,$C$6:C37))","v":""},null,null,null,null,"",0,"",null,null,null,null,null,null,null,null,null,null,null,null,null,null,null,null,null,null,null,null,null,null,null,null,null,null,null,null,null,null,null,null,null,null,null,"",0,""]
[null,{"$f":"IF(C38=\"\",\"\",SUBTOTAL(3,$C$6:C38))","v":""},null,null,null,null,"",0,"",null,null,null,null,null,null,null,null,null,null,null,null,null,null,null,null,null,null,null,null,null,null,null,null,null,null,null,null,null,null,null,null,null,null,null,"",0,""]
[null,{"$f":"IF(C39=\"\",\"\",SUBTOTAL(3,$C$6:C39))","v":""},null,null,null,null,"",0,"",null,null,null,null,null,null,null,null,null,null,null,null,null,null,null,null,null,null,null,null,null,null,null,null,null,null,null,null,null,null,null,null,null,null,null,"",0,""]
[null,{"$f":"IF(C40=\"\",\"\",SUBTOTAL(3,$C$6:C40))","v":""},null,null,null,null,"",0,"",null,null,null,null,null,null,null,null,null,null,null,null,null,null,null,null,null,null,null,null,null,null,null,null,null,null,null,null,null,null,null,null,null,null,null,"",0,""]
[null,{"$f":"IF(C41=\"\",\"\",SUBTOTAL(3,$C$6:C41))","v":""},null,null,null,null,"",0,"",null,null,null,null,null,null,null,null,null,null,null,null,null,null,null,null,null,null,null,null,null,null,null,null,null,null,null,null,null,null,null,null,null,null,null,"",0,""]
[null,{"$f":"IF(C42=\"\",\"\",SUBTOTAL(3,$C$6:C42))","v":""},null,null,null,null,"",0,"",null,null,null,null,null,null,null,null,null,null,null,null,null,null,null,null,null,null,null,null,null,null,null,null,null,null,null,null,null,null,null,null,null,null,null,"",0,""]
[null,{"$f":"IF(C43=\"\",\"\",SUBTOTAL(3,$C$6:C43))","v":""},null,null,null,null,"",0,"",null,null,null,null,null,null,null,null,null,null,null,null,null,null,null,null,null,null,null,null,null,null,null,null,null,null,null,null,null,null,null,null,null,null,null,"",0,""]
[null,{"$f":"IF(C44=\"\",\"\",SUBTOTAL(3,$C$6:C44))","v":""},null,null,null,null,"",0,"",null,null,null,null,null,null,null,null,null,null,null,null,null,null,null,null,null,null,null,null,null,null,null,null,null,null,null,null,null,null,null,null,null,null,null,"",0,""]
[null,{"$f":"IF(C45=\"\",\"\",SUBTOTAL(3,$C$6:C45))","v":""},null,null,null,null,"",0,"",null,null,null,null,null,null,null,null,null,null,null,null,null,null,null,null,null,null,null,null,null,null,null,null,null,null,null,null,null,null,null,null,null,null,null,"",0,""]
[null,{"$f":"IF(C46=\"\",\"\",SUBTOTAL(3,$C$6:C46))","v":""},null,null,null,null,"",0,"",null,null,null,null,null,null,null,null,null,null,null,null,null,null,null,null,null,null,null,null,null,null,null,null,null,null,null,null,null,null,null,null,null,null,null,"",0,""]
[null,{"$f":"IF(C47=\"\",\"\",SUBTOTAL(3,$C$6:C47))","v":""},null,null,null,null,"",0,"",null,null,null,null,null,null,null,null,null,null,null,null,null,null,null,null,null,null,null,null,null,null,null,null,null,null,null,null,null,null,null,null,null,null,null,"",0,""]
[null,{"$f":"IF(C48=\"\",\"\",SUBTOTAL(3,$C$6:C48))","v":""},null,null,null,null,"",0,"",null,null,null,null,null,null,null,null,null,null,null,null,null,null,null,null,null,null,null,null,null,null,null,null,null,null,null,null,null,null,null,null,null,null,null,"",0,""]
[null,{"$f":"IF(C49=\"\",\"\",SUBTOTAL(3,$C$6:C49))","v":""},null,null,null,null,"",0,"",null,null,null,null,null,null,null,null,null,null,null,null,null,null,null,null,null,null,null,null,null,null,null,null,null,null,null,null,null,null,null,null,null,null,null,"",0,""]
[null,{"$f":"IF(C50=\"\",\"\",SUBTOTAL(3,$C$6:C50))","v":""},null,null,null,null,"",0,"",null,null,null,null,null,null,null,null,null,null,null,null,null,null,null,null,null,null,null,null,null,null,null,null,null,null,null,null,null,null,null,null,null,null,null,"",0,""]
[null,{"$f":"IF(C51=\"\",\"\",SUBTOTAL(3,$C$6:C51))","v":""},null,null,null,null,"",0,"",null,null,null,null,null,null,null,null,null,null,null,null,null,null,null,null,null,null,null,null,null,null,null,null,null,null,null,null,null,null,null,null,null,null,null,"",0,""]
[null,{"$f":"IF(C52=\"\",\"\",SUBTOTAL(3,$C$6:C52))","v":""},null,null,null,null,"",0,"",null,null,null,null,null,null,null,null,null,null,null,null,null,null,null,null,null,null,null,null,null,null,null,null,null,null,null,null,null,null,null,null,null,null,null,"",0,""]
[null,{"$f":"IF(C53=\"\",\"\",SUBTOTAL(3,$C$6:C53))","v":""},null,null,null,null,"",0,"",null,null,null,null,null,null,null,null,null,null,null,null,null,null,null,null,null,null,null,null,null,null,null,null,null,null,null,null,null,null,null,null,null,null,null,"",0,""]
[null,{"$f":"IF(C54=\"\",\"\",SUBTOTAL(3,$C$6:C54))","v":""},null,null,null,null,"",0,"",null,null,null,null,null,null,null,null,null,null,null,null,null,null,null,null,null,null,null,null,null,null,null,null,null,null,null,null,null,null,null,null,null,null,null,"",0,""]
[null,{"$f":"IF(C55=\"\",\"\",SUBTOTAL(3,$C$6:C55))","v":""},null,null,null,null,null,0,0,null,null,null,null,null,null,null,null,null,null,null,null,null,null,null,null,null,null,null,null,null,null,null,null,null,null,null,null,null,null,null,null,null,null,null,null,0]
[null,{"$f":"IF(C56=\"\",\"\",SUBTOTAL(3,$C$6:C56))","v":""},null,null,null,null,null,0,0,null,null,null,null,null,null,null,null,null,null,null,null,null,null,null,null,null,null,null,null,null,null,null,null,null,null,null,null,null,null,null,null,null,null,null,null,0]
[null,{"$f":"IF(C57=\"\",\"\",SUBTOTAL(3,$C$6:C57))","v":""},null,null,null,null,null,0,0,null,null,null,null,null,null,null,null,null,null,null,null,null,null,null,null,null,null,null,null,null,null,null,null,null,null,null,null,null,null,null,null,null,null,null,null,0]
[null,{"$f":"IF(C58=\"\",\"\",SUBTOTAL(3,$C$6:C58))","v":""},null,null,null,null,null,0,0,null,null,null,null,null,null,null,null,null,null,null,null,null,null,null,null,null,null,null,null,null,null,null,null,null,null,null,null,null,null,null,null,null,null,null,null,0]
[null,{"$f":"IF(C59=\"\",\"\",SUBTOTAL(3,$C$6:C59))","v":""},null,null,null,null,null,0,0,null,null,null,null,null,null,null,null,null,null,null,null,null,null,null,null,null,null,null,null,null,null,null,null,null,null,null,null,null,null,null,null,null,null,null,null,0]
[null,{"$f":"IF(C60=\"\",\"\",SUBTOTAL(3,$C$6:C60))","v":""},null,null,null,null,null,0,0,null,null,null,null,null,null,null,null,null,null,null,null,null,null,null,null,null,null,null,null,null,null,null,null,null,null,null,null,null,null,null,null,null,null,null,null,0]
[null,{"$f":"IF(C61=\"\",\"\",SUBTOTAL(3,$C$6:C61))","v":""},null,null,null,null,null,0,0,null,null,null,null,null,null,null,null,null,null,null,null,null,null,null,null,null,null,null,null,null,null,null,null,null,null,null,null,null,null,null,null,null,null,null,null,0]
[null,{"$f":"IF(C62=\"\",\"\",SUBTOTAL(3,$C$6:C62))","v":""},null,null,null,null,"",0,"",null,null,null,null,null,null,null,null,null,null,null,null,null,null,null,null,null,null,null,null,null,null,null,null,null,null,null,null,null,null,null,null,null,null,null,"",0,""]
[null,{"$f":"IF(C63=\"\",\"\",SUBTOTAL(3,$C$6:C63))","v":""},null,null,null,null,"",0,"",null,null,null,null,null,null,null,null,null,null,null,null,null,null,null,null,null,null,null,null,null,null,null,null,null,null,null,null,null,null,null,null,null,null,null,"",0,""]
[null,{"$f":"IF(C64=\"\",\"\",SUBTOTAL(3,$C$6:C64))","v":""},null,null,null,null,"",0,"",null,null,null,null,null,null,null,null,null,null,null,null,null,null,null,null,null,null,null,null,null,null,null,null,null,null,null,null,null,null,null,null,null,null,null,"",0,""]
[null,{"$f":"IF(C65=\"\",\"\",SUBTOTAL(3,$C$6:C65))","v":""},null,null,null,null,"",0,"",null,null,null,null,null,null,null,null,null,null,null,null,null,null,null,null,null,null,null,null,null,null,null,null,null,null,null,null,null,null,null,null,null,null,null,"",0,""]
[null,{"$f":"IF(C66=\"\",\"\",SUBTOTAL(3,$C$6:C66))","v":""},null,null,null,null,"",0,"",null,null,null,null,null,null,null,null,null,null,null,null,null,null,null,null,null,null,null,null,null,null,null,null,null,null,null,null,null,null,null,null,null,null,null,"",0,""]
[null,{"$f":"IF(C67=\"\",\"\",SUBTOTAL(3,$C$6:C67))","v":""},null,null,null,null,"",0,"",null,null,null,null,null,null,null,null,null,null,null,null,null,null,null,null,null,null,null,null,null,null,null,null,null,null,null,null,null,null,null,null,null,null,null,"",0,""]
[null,{"$f":"IF(C68=\"\",\"\",SUBTOTAL(3,$C$6:C68))","v":""},null,null,null,null,"",0,"",null,null,null,null,null,null,null,null,null,null,null,null,null,null,null,null,null,null,null,null,null,null,null,null,null,null,null,null,null,null,null,null,null,null,null,"",0,""]
[null,{"$f":"IF(C69=\"\",\"\",SUBTOTAL(3,$C$6:C69))","v":""},null,null,null,null,"",0,"",null,null,null,null,null,null,null,null,null,null,null,null,null,null,null,null,null,null,null,null,null,null,null,null,null,null,null,null,null,null,null,null,null,null,null,"",0,""]
[]
[null,"ملحوظة",null,null,null,null,null,"الاجمالي",{"$f":"SUM(I6:I69)","v":0},null,null,null,null,null,null,null,null,null,null,null,null,null,null,null,null,null,null,null,null,null,null,null,null,null,null,null,null,null,null,"ملحوظة",null,null,null,null,null,"الاجمالي"]
[null,null,null,null,null,null,null,"القديم",{"$f":"A6","v":0},null,null,null,null,null,null,null,null,null,null,null,null,null,null,null,null,null,null,null,null,null,null,null,null,null,null,null,null,null,null,null,null,null,null,null,null,"القديم",0]
[null,null,null,null,null,null,null,"تنزيل",{"$f":"A10","v":0},null,null,null,null,null,null,null,null,null,null,null,null,null,null,null,null,null,null,null,null,null,null,null,null,null,null,null,null,null,null,null,null,null,null,null,null,"تنزيل",0]
[null,null,null,null,null,null,null,"صافي الفاتورة",{"$f":"I71+I72-I73","v":0},null,null,null,null,null,null,null,null,null,null,null,null,null,null,null,null,null,null,null,null,null,null,null,null,null,null,null,null,null,null,null,null,null,null,null,null,"صافي الفاتورة"]

{"sheet":"فاتورة مورد 1","index":22,"n_rows":74,"n_cols":47,"rows_kept":74,"cut":false,"hidden":true,"merged":[[73,1,73,6],[73,39,73,44],[17,0,18,0],[70,1,70,6],[70,39,70,44],[71,1,71,6],[71,39,71,44],[11,0,12,0],[13,0,14,0],[15,0,16,0],[72,1,72,6],[72,39,72,44],[9,0,10,0],[3,39,4,39],[3,40,3,41],[3,42,4,42],[5,0,6,0],[7,0,8,0],[2,45,2,46],[3,0,4,0],[3,1,4,1],[3,2,3,3],[3,4,4,4],[3,5,4,5],[3,6,4,6],[3,7,4,7],[3,8,4,8],[3,46,4,46],[3,43,4,43],[3,44,4,44],[3,45,4,45],[1,1,1,6],[1,39,1,44],[2,1,2,2],[2,3,2,5],[2,7,2,8],[2,39,2,40],[2,41,2,43]]}
[]
["اجمالي الفاتورة","اذن توريد",null,null,null,null,null,"رقم الفاتورة",{"$f":"'رقم فاتورة الموردين'!B3","v":20},"اسم المورد",null,null,null,null,null,null,null,null,null,null,null,null,null,null,null,null,null,null,null,null,null,null,null,null,null,null,null,null,null,"اذن صرف",null,null,null,null,null,"رقم الفاتورة",319]
[{"$f":"I71","v":0},"الاسم",null,null,null,null,"التاريخ","2021-03-25T21:16:36.740",null,null,null,null,null,null,null,null,null,null,null,null,null,null,null,null,null,null,null,null,null,null,null,null,null,null,null,null,null,null,null,"الاسم",null,{"$f":"AV3","v":0},null,null,"التاريخ","2021-03-25T21:16:36.740"]
["قديم","م","المقاس",null,"الصنف","العدد","سعر المتر","متر م","اجمالي",null,null,null,null,null,null,null,null,null,null,null,null,null,null,null,null,null,null,null,null,null,null,null,null,null,null,null,null,null,null,"م","المقاس",null,"الصنف","العدد","سعر المتر","متر م","اجمالي"]
[null,null,"العرض ","الطول",null,null,null,null,null,null,null,null,null,null,null,null,null,null,null,null,null,null,null,null,null,null,null,null,null,null,null,null,null,null,null,null,null,null,null,null,"العرض ","الطول"]
[null,{"$f":"IF(C6=\"\",\"\",SUBTOTAL(3,$C$6:C6))","v":""},null,null,null,null,{"$f":"IF(E6=\"\",\"\",SUMPRODUCT(SUMIF(INDIRECT(\"'\"&$J$3&\"'!\"&\"a2:a1000\"),$E6,INDIRECT(\"'\"&$J$3&\"'!\"&\"b2:b1000\"))))","v":""},{"$f":"F6*D6*C6","v":0},{"$f":"IFERROR(G6*F6*(D6*C6),\"\")","v":""},null,null,null,null,null,null,null,null,null,null,null,null,null,null,null,null,null,null,null,null,null,null,null,null,null,null,null,null,null,null,null,null,null,null,null,"",0,""]
[null,{"$f":"IF(C7=\"\",\"\",SUBTOTAL(3,$C$6:C7))","v":""},null,null,null,null,{"$f":"IF(E7=\"\",\"\",SUMPRODUCT(SUMIF(INDIRECT(\"'\"&$J$3&\"'!\"&\"a2:a1000\"),$E7,INDIRECT(\"'\"&$J$3&\"'!\"&\"b2:b1000\"))))","v":""},{"$f":"F7*D7*C7","v":0},{"$f":"IFERROR(G7*F7*(D7*C7),\"\")","v":""},null,null,null,null,null,null,null,null,null,null,null,null,null,null,null,null,null,null,null,null,null,null,null,null,null,null,null,null,null,null,null,null,null,null,null,"",0,""]
["تنزيل",{"$f":"IF(C8=\"\",\"\",SUBTOTAL(3,$C$6:C8))","v":""},null,null,null,null,"",0,"",null,null,null,null,null,null,null,null,null,null,null,null,null,null,null,null,null,null,null,null,null,null,null,null,null,null,null,null,null,null,null,null,null,null,null,"",0,""]
[null,{"$f":"IF(C9=\"\",\"\",SUBTOTAL(3,$C$6:C9))","v":""},null,null,null,null,"",0,"",null,null,null,null,null,null,null,null,null,null,null,null,null,null,null,null,null,null,null,null,null,null,null,null,null,null,null,null,null,null,null,null,null,null,null,"",0,""]
[null,{"$f":"IF(C10=\"\",\"\",SUBTOTAL(3,$C$6:C10))","v":""},null,null,null,null,"",0,"",null,null,null,null,null,null,null,null,null,null,null,null,null,null,null,null,null,null,null,null,null,null,null,null,null,null,null,null,null,null,null,null,null,null,null,"",0,""]
[null,{"$f":"IF(C11=\"\",\"\",SUBTOTAL(3,$C$6:C11))","v":""},null,null,null,null,"",0,"",null,null,null,null,null,null,null,null,null,null,null,null,null,null,null,null,null,null,null,null,null,null,null,null,null,null,null,null,null,null,null,null,null,null,null,"",0,""]
["صافي الفاتورة",{"$f":"IF(C12=\"\",\"\",SUBTOTAL(3,$C$6:C12))","v":""},null,null,null,null,"",0,"",null,null,null,null,null,null,null,null,null,null,null,null,null,null,null,null,null,null,null,null,null,null,null,null,null,null,null,null,null,null,null,null,null,null,null,"",0,""]
[null,{"$f":"IF(C13=\"\",\"\",SUBTOTAL(3,$C$6:C13))","v":""},null,null,null,null,"",0,"",null,null,null,null,null,null,null,null,null,null,null,null,null,null,null,null,null,null,null,null,null,null,null,null,null,null,null,null,null,null,null,null,null,null,null,"",0,""]
[{"$f":"I74","v":0},{"$f":"IF(C14=\"\",\"\",SUBTOTAL(3,$C$6:C14))","v":""},null,null,null,null,"",0,"",null,null,null,null,null,null,null,null,null,null,null,null,null,null,null,null,null,null,null,null,null,null,null,null,null,null,null,null,null,null,null,null,null,null,null,"",0,""]
[null,{"$f":"IF(C15=\"\",\"\",SUBTOTAL(3,$C$6:C15))","v":""},null,null,null,null,"",0,"",null,null,null,null,null,null,null,null,null,null,null,null,null,null,null,null,null,null,null,null,null,null,null,null,null,null,null,null,null,null,null,null,null,null,null,"",0,""]
["متر مربع",{"$f":"IF(C16=\"\",\"\",SUBTOTAL(3,$C$6:C16))","v":""},null,null,null,null,"",0,"",null,null,null,null,null,null,null,null,null,null,null,null,null,null,null,null,null,null,null,null,null,null,null,null,null,null,null,null,null,null,null,null,null,null,null,"",0,""]
[null,{"$f":"IF(C17=\"\",\"\",SUBTOTAL(3,$C$6:C17))","v":""},null,null,null,null,"",0,"",null,null,null,null,null,null,null,null,null,null,null,null,null,null,null,null,null,null,null,null,null,null,null,null,null,null,null,null,null,null,null,null,null,null,null,"",0,""]
[{"$f":"SUM(H6:H69)","v":0},{"$f":"IF(C18=\"\",\"\",SUBTOTAL(3,$C$6:C18))","v":""},null,null,null,null,"",0,"",null,null,null,null,null,null,null,null,null,null,null,null,null,null,null,null,null,null,null,null,null,null,null,null,null,null,null,null,null,null,null,null,null,null,null,"",0,""]
[null,{"$f":"IF(C19=\"\",\"\",SUBTOTAL(3,$C$6:C19))","v":""},null,null,null,null,"",0,"",null,null,null,null,null,null,null,null,null,null,null,null,null,null,null,null,null,null,null,null,null,null,null,null,null,null,null,null,null,null,null,null,null,null,null,"",0,""]
[null,{"$f":"IF(C20=\"\",\"\",SUBTOTAL(3,$C$6:C20))","v":""},null,null,null,null,"",0,"",null,null,null,null,null,null,null,null,null,null,null,null,null,null,null,null,null,null,null,null,null,null,null,null,null,null,null,null,null,null,null,null,null,null,null,"",0,""]
[null,{"$f":"IF(C21=\"\",\"\",SUBTOTAL(3,$C$6:C21))","v":""},null,null,null,null,"",0,"",null,null,null,null,null,null,null,null,null,null,null,null,null,null,null,null,null,null,null,null,null,null,null,null,null,null,null,null,null,null,null,null,null,null,null,"",0,""]
[null,{"$f":"IF(C22=\"\",\"\",SUBTOTAL(3,$C$6:C22))","v":""},null,null,null,null,"",0,"",null,null,null,null,null,null,null,null,null,null,null,null,null,null,null,null,null,null,null,null,null,null,null,null,null,null,null,null,null,null,null,null,null,null,null,"",0,""]
[null,{"$f":"IF(C23=\"\",\"\",SUBTOTAL(3,$C$6:C23))","v":""},null,null,null,null,"",0,"",null,null,null,null,null,null,null,null,null,null,null,null,null,null,null,null,null,null,null,null,null,null,null,null,null,null,null,null,null,null,null,null,null,null,null,"",0,""]
[null,{"$f":"IF(C24=\"\",\"\",SUBTOTAL(3,$C$6:C24))","v":""},null,null,null,null,"",0,"",null,null,null,null,null,null,null,null,null,null,null,null,null,null,null,null,null,null,null,null,null,null,null,null,null,null,null,null,null,null,null,null,null,null,null,"",0,""]
[null,{"$f":"IF(C25=\"\",\"\",SUBTOTAL(3,$C$6:C25))","v":""},null,null,null,null,"",0,"",null,null,null,null,null,null,null,null,null,null,null,null,null,null,null,null,null,null,null,null,null,null,null,null,null,null,null,null,null,null,null,null,null,null,null,"",0,""]
[null,{"$f":"IF(C26=\"\",\"\",SUBTOTAL(3,$C$6:C26))","v":""},null,null,null,null,"",0,"",null,null,null,null,null,null,null,null,null,null,null,null,null,null,null,null,null,null,null,null,null,null,null,null,null,null,null,null,null,null,null,null,null,null,null,"",0,""]
[null,{"$f":"IF(C27=\"\",\"\",SUBTOTAL(3,$C$6:C27))","v":""},null,null,null,null,"",0,"",null,null,null,null,null,null,null,null,null,null,null,null,null,null,null,null,null,null,null,null,null,null,null,null,null,null,null,null,null,null,null,null,null,null,null,"",0,""]
[null,{"$f":"IF(C28=\"\",\"\",SUBTOTAL(3,$C$6:C28))","v":""},null,null,null,null,"",0,"",null,null,null,null,null,null,null,null,null,null,null,null,null,null,null,null,null,null,null,null,null,null,null,null,null,null,null,null,null,null,null,null,null,null,null,"",0,""]
[null,{"$f":"IF(C29=\"\",\"\",SUBTOTAL(3,$C$6:C29))","v":""},null,null,null,null,"",0,"",null,null,null,null,null,null,null,null,null,null,null,null,null,null,null,null,null,null,null,null,null,null,null,null,null,null,null,null,null,null,null,null,null,null,null,"",0,""]
[null,{"$f":"IF(C30=\"\",\"\",SUBTOTAL(3,$C$6:C30))","v":""},null,null,null,null,"",0,"",null,null,null,null,null,null,null,null,null,null,null,null,null,null,null,null,null,null,null,null,null,null,null,null,null,null,null,null,null,null,null,null,null,null,null,"",0,""]
[null,{"$f":"IF(C31=\"\",\"\",SUBTOTAL(3,$C$6:C31))","v":""},null,null,null,null,"",0,"",null,null,null,null,null,null,null,null,null,null,null,null,null,null,null,null,null,null,null,null,null,null,null,null,null,null,null,null,null,null,null,null,null,null,null,"",0,""]
[null,{"$f":"IF(C32=\"\",\"\",SUBTOTAL(3,$C$6:C32))","v":""},null,null,null,null,"",0,"",null,null,null,null,null,null,null,null,null,null,null,null,null,null,null,null,null,null,null,null,null,null,null,null,null,null,null,null,null,null,null,null,null,null,null,"",0,""]
[null,{"$f":"IF(C33=\"\",\"\",SUBTOTAL(3,$C$6:C33))","v":""},null,null,null,null,"",0,"",null,null,null,null,null,null,null,null,null,null,null,null,null,null,null,null,null,null,null,null,null,null,null,null,null,null,null,null,null,null,null,null,null,null,null,"",0,""]
[null,{"$f":"IF(C34=\"\",\"\",SUBTOTAL(3,$C$6:C34))","v":""},null,null,null,null,"",0,"",null,null,null,null,null,null,null,null,null,null,null,null,null,null,null,null,null,null,null,null,null,null,null,null,null,null,null,null,null,null,null,null,null,null,null,"",0,""]
[null,{"$f":"IF(C35=\"\",\"\",SUBTOTAL(3,$C$6:C35))","v":""},null,null,null,null,"",0,"",null,null,null,null,null,null,null,null,null,null,null,null,null,null,null,null,null,null,null,null,null,null,null,null,null,null,null,null,null,null,null,null,null,null,null,"",0,""]
[null,{"$f":"IF(C36=\"\",\"\",SUBTOTAL(3,$C$6:C36))","v":""},null,null,null,null,"",0,"",null,null,null,null,null,null,null,null,null,null,null,null,null,null,null,null,null,null,null,null,null,null,null,null,null,null,null,null,null,null,null,null,null,null,null,"",0,""]
[null,{"$f":"IF(C37=\"\",\"\",SUBTOTAL(3,$C$6:C37))","v":""},null,null,null,null,"",0,"",null,null,null,null,null,null,null,null,null,null,null,null,null,null,null,null,null,null,null,null,null,null,null,null,null,null,null,null,null,null,null,null,null,null,null,"",0,""]
[null,{"$f":"IF(C38=\"\",\"\",SUBTOTAL(3,$C$6:C38))","v":""},null,null,null,null,"",0,"",null,null,null,null,null,null,null,null,null,null,null,null,null,null,null,null,null,null,null,null,null,null,null,null,null,null,null,null,null,null,null,null,null,null,null,"",0,""]
[null,{"$f":"IF(C39=\"\",\"\",SUBTOTAL(3,$C$6:C39))","v":""},null,null,null,null,"",0,"",null,null,null,null,null,null,null,null,null,null,null,null,null,null,null,null,null,null,null,null,null,null,null,null,null,null,null,null,null,null,null,null,null,null,null,"",0,""]
[null,{"$f":"IF(C40=\"\",\"\",SUBTOTAL(3,$C$6:C40))","v":""},null,null,null,null,"",0,"",null,null,null,null,null,null,null,null,null,null,null,null,null,null,null,null,null,null,null,null,null,null,null,null,null,null,null,null,null,null,null,null,null,null,null,"",0,""]
[null,{"$f":"IF(C41=\"\",\"\",SUBTOTAL(3,$C$6:C41))","v":""},null,null,null,null,"",0,"",null,null,null,null,null,null,null,null,null,null,null,null,null,null,null,null,null,null,null,null,null,null,null,null,null,null,null,null,null,null,null,null,null,null,null,"",0,""]
[null,{"$f":"IF(C42=\"\",\"\",SUBTOTAL(3,$C$6:C42))","v":""},null,null,null,null,"",0,"",null,null,null,null,null,null,null,null,null,null,null,null,null,null,null,null,null,null,null,null,null,null,null,null,null,null,null,null,null,null,null,null,null,null,null,"",0,""]
[null,{"$f":"IF(C43=\"\",\"\",SUBTOTAL(3,$C$6:C43))","v":""},null,null,null,null,"",0,"",null,null,null,null,null,null,null,null,null,null,null,null,null,null,null,null,null,null,null,null,null,null,null,null,null,null,null,null,null,null,null,null,null,null,null,"",0,""]
[null,{"$f":"IF(C44=\"\",\"\",SUBTOTAL(3,$C$6:C44))","v":""},null,null,null,null,"",0,"",null,null,null,null,null,null,null,null,null,null,null,null,null,null,null,null,null,null,null,null,null,null,null,null,null,null,null,null,null,null,null,null,null,null,null,"",0,""]
[null,{"$f":"IF(C45=\"\",\"\",SUBTOTAL(3,$C$6:C45))","v":""},null,null,null,null,"",0,"",null,null,null,null,null,null,null,null,null,null,null,null,null,null,null,null,null,null,null,null,null,null,null,null,null,null,null,null,null,null,null,null,null,null,null,"",0,""]
[null,{"$f":"IF(C46=\"\",\"\",SUBTOTAL(3,$C$6:C46))","v":""},null,null,null,null,"",0,"",null,null,null,null,null,null,null,null,null,null,null,null,null,null,null,null,null,null,null,null,null,null,null,null,null,null,null,null,null,null,null,null,null,null,null,"",0,""]
[null,{"$f":"IF(C47=\"\",\"\",SUBTOTAL(3,$C$6:C47))","v":""},null,null,null,null,"",0,"",null,null,null,null,null,null,null,null,null,null,null,null,null,null,null,null,null,null,null,null,null,null,null,null,null,null,null,null,null,null,null,null,null,null,null,"",0,""]
[null,{"$f":"IF(C48=\"\",\"\",SUBTOTAL(3,$C$6:C48))","v":""},null,null,null,null,"",0,"",null,null,null,null,null,null,null,null,null,null,null,null,null,null,null,null,null,null,null,null,null,null,null,null,null,null,null,null,null,null,null,null,null,null,null,"",0,""]
[null,{"$f":"IF(C49=\"\",\"\",SUBTOTAL(3,$C$6:C49))","v":""},null,null,null,null,"",0,"",null,null,null,null,null,null,null,null,null,null,null,null,null,null,null,null,null,null,null,null,null,null,null,null,null,null,null,null,null,null,null,null,null,null,null,"",0,""]
[null,{"$f":"IF(C50=\"\",\"\",SUBTOTAL(3,$C$6:C50))","v":""},null,null,null,null,"",0,"",null,null,null,null,null,null,null,null,null,null,null,null,null,null,null,null,null,null,null,null,null,null,null,null,null,null,null,null,null,null,null,null,null,null,null,"",0,""]
[null,{"$f":"IF(C51=\"\",\"\",SUBTOTAL(3,$C$6:C51))","v":""},null,null,null,null,"",0,"",null,null,null,null,null,null,null,null,null,null,null,null,null,null,null,null,null,null,null,null,null,null,null,null,null,null,null,null,null,null,null,null,null,null,null,"",0,""]
[null,{"$f":"IF(C52=\"\",\"\",SUBTOTAL(3,$C$6:C52))","v":""},null,null,null,null,"",0,"",null,null,null,null,null,null,null,null,null,null,null,null,null,null,null,null,null,null,null,null,null,null,null,null,null,null,null,null,null,null,null,null,null,null,null,"",0,""]
[null,{"$f":"IF(C53=\"\",\"\",SUBTOTAL(3,$C$6:C53))","v":""},null,null,null,null,"",0,"",null,null,null,null,null,null,null,null,null,null,null,null,null,null,null,null,null,null,null,null,null,null,null,null,null,null,null,null,null,null,null,null,null,null,null,"",0,""]
[null,{"$f":"IF(C54=\"\",\"\",SUBTOTAL(3,$C$6:C54))","v":""},null,null,null,null,"",0,"",null,null,null,null,null,null,null,null,null,null,null,null,null,null,null,null,null,null,null,null,null,null,null,null,null,null,null,null,null,null,null,null,null,null,null,"",0,""]
[null,{"$f":"IF(C55=\"\",\"\",SUBTOTAL(3,$C$6:C55))","v":""},null,null,null,null,{"$f":"IF(E55=\"\",\"\",SUMPRODUCT(SUMIF(INDIRECT(\"'\"&$J$3&\"'!\"&\"a2:a1000\"),$E55,INDIRECT(\"'\"&$J$3&\"'!\"&\"b2:b1000\"))))","v":""},0,"",null,null,null,null,null,null,null,null,null,null,null,null,null,null,null,null,null,null,null,null,null,null,null,null,null,null,null,null,null,null,null,null,null,null,null,null,0]
[null,{"$f":"IF(C56=\"\",\"\",SUBTOTAL(3,$C$6:C56))","v":""},null,null,null,null,"",0,"",null,null,null,null,null,null,null,null,null,null,null,null,null,null,null,null,null,null,null,null,null,null,null,null,null,null,null,null,null,null,null,null,null,null,null,null,0]
[null,{"$f":"IF(C57=\"\",\"\",SUBTOTAL(3,$C$6:C57))","v":""},null,null,null,null,"",0,"",null,null,null,null,null,null,null,null,null,null,null,null,null,null,null,null,null,null,null,null,null,null,null,null,null,null,null,null,null,null,null,null,null,null,null,null,0]
[null,{"$f":"IF(C58=\"\",\"\",SUBTOTAL(3,$C$6:C58))","v":""},null,null,null,null,"",0,"",null,null,null,null,null,null,null,null,null,null,null,null,null,null,null,null,null,null,null,null,null,null,null,null,null,null,null,null,null,null,null,null,null,null,null,null,0]
[null,{"$f":"IF(C59=\"\",\"\",SUBTOTAL(3,$C$6:C59))","v":""},null,null,null,null,"",0,"",null,null,null,null,null,null,null,null,null,null,null,null,null,null,null,null,null,null,null,null,null,null,null,null,null,null,null,null,null,null,null,null,null,null,null,null,0]
[null,{"$f":"IF(C60=\"\",\"\",SUBTOTAL(3,$C$6:C60))","v":""},null,null,null,null,"",0,"",null,null,null,null,null,null,null,null,null,null,null,null,null,null,null,null,null,null,null,null,null,null,null,null,null,null,null,null,null,null,null,null,null,null,null,null,0]
[null,{"$f":"IF(C61=\"\",\"\",SUBTOTAL(3,$C$6:C61))","v":""},null,null,null,null,"",0,"",null,null,null,null,null,null,null,null,null,null,null,null,null,null,null,null,null,null,null,null,null,null,null,null,null,null,null,null,null,null,null,null,null,null,null,null,0]
[null,{"$f":"IF(C62=\"\",\"\",SUBTOTAL(3,$C$6:C62))","v":""},null,null,null,null,"",0,"",null,null,null,null,null,null,null,null,null,null,null,null,null,null,null,null,null,null,null,null,null,null,null,null,null,null,null,null,null,null,null,null,null,null,null,"",0,""]
[null,{"$f":"IF(C63=\"\",\"\",SUBTOTAL(3,$C$6:C63))","v":""},null,null,null,null,"",0,"",null,null,null,null,null,null,null,null,null,null,null,null,null,null,null,null,null,null,null,null,null,null,null,null,null,null,null,null,null,null,null,null,null,null,null,"",0,""]
[null,{"$f":"IF(C64=\"\",\"\",SUBTOTAL(3,$C$6:C64))","v":""},null,null,null,null,"",0,"",null,null,null,null,null,null,null,null,null,null,null,null,null,null,null,null,null,null,null,null,null,null,null,null,null,null,null,null,null,null,null,null,null,null,null,"",0,""]
[null,{"$f":"IF(C65=\"\",\"\",SUBTOTAL(3,$C$6:C65))","v":""},null,null,null,null,"",0,"",null,null,null,null,null,null,null,null,null,null,null,null,null,null,null,null,null,null,null,null,null,null,null,null,null,null,null,null,null,null,null,null,null,null,null,"",0,""]
[null,{"$f":"IF(C66=\"\",\"\",SUBTOTAL(3,$C$6:C66))","v":""},null,null,null,null,"",0,"",null,null,null,null,null,null,null,null,null,null,null,null,null,null,null,null,null,null,null,null,null,null,null,null,null,null,null,null,null,null,null,null,null,null,null,"",0,""]
[null,{"$f":"IF(C67=\"\",\"\",SUBTOTAL(3,$C$6:C67))","v":""},null,null,null,null,"",0,"",null,null,null,null,null,null,null,null,null,null,null,null,null,null,null,null,null,null,null,null,null,null,null,null,null,null,null,null,null,null,null,null,null,null,null,"",0,""]
[null,{"$f":"IF(C68=\"\",\"\",SUBTOTAL(3,$C$6:C68))","v":""},null,null,null,null,"",0,"",null,null,null,null,null,null,null,null,null,null,null,null,null,null,null,null,null,null,null,null,null,null,null,null,null,null,null,null,null,null,null,null,null,null,null,"",0,""]
[null,{"$f":"IF(C69=\"\",\"\",SUBTOTAL(3,$C$6:C69))","v":""},null,null,null,null,"",0,"",null,null,null,null,null,null,null,null,null,null,null,null,null,null,null,null,null,null,null,null,null,null,null,null,null,null,null,null,null,null,null,null,null,null,null,"",0,""]
[]
[null,"ملحوظة",null,null,null,null,null,"الاجمالي",{"$f":"SUM(I6:I69)","v":0},null,null,null,null,null,null,null,null,null,null,null,null,null,null,null,null,null,null,null,null,null,null,null,null,null,null,null,null,null,null,"ملحوظة",null,null,null,null,null,"الاجمالي"]
[null,null,null,null,null,null,null,"القديم",{"$f":"A6","v":0},null,null,null,null,null,null,null,null,null,null,null,null,null,null,null,null,null,null,null,null,null,null,null,null,null,null,null,null,null,null,null,null,null,null,null,null,"القديم"]
[null,null,null,null,null,null,null,"تنزيل",{"$f":"A10","v":0},null,null,null,null,null,null,null,null,null,null,null,null,null,null,null,null,null,null,null,null,null,null,null,null,null,null,null,null,null,null,null,null,null,null,null,null,"تنزيل"]
[null,null,null,null,null,null,null,"صافي الفاتورة",{"$f":"I71+I72-I73","v":0},null,null,null,null,null,null,null,null,null,null,null,null,null,null,null,null,null,null,null,null,null,null,null,null,null,null,null,null,null,null,null,null,null,null,null,null,"صافي الفاتورة"]

{"sheet":"رقم الفواتير","index":23,"n_rows":6,"n_cols":1,"rows_kept":6,"cut":false,"hidden":true,"merged":[]}
[]
[{"$f":"A3+1","v":348}]
[347]
[]
[{"$f":"A6-1","v":346}]
[347]

{"sheet":"اسعار لعملاء","index":24,"n_rows":7,"n_cols":3,"rows_kept":7,"cut":false,"hidden":true,"merged":[[6,4,7,4],[4,2,5,4],[6,2,7,3]]}
[]
[]
[]
[]
[null,null,"كشف باسعار العملاء"]
[]
[null,null,"اسم العميل"]

{"sheet":"تبويب انشاء فاتورة مورد","index":25,"n_rows":0,"n_cols":0,"rows_kept":0,"cut":false,"hidden":true,"merged":[]}

{"sheet":"اسعار الموردين","index":26,"n_rows":7,"n_cols":3,"rows_kept":7,"cut":false,"hidden":true,"merged":[[4,2,5,8],[6,2,7,3],[6,4,7,8]]}
[]
[]
[]
[]
[null,null,"كشف باسعر العملاء"]
[]
[null,null,"اسم العميل"]

{"sheet":"طباعة ظرف فاتورة عملاء 1","index":27,"n_rows":6,"n_cols":5,"rows_kept":6,"cut":false,"hidden":true,"merged":[[5,4,6,4]]}
[]
[]
[]
[]
[null,null,null,null,{"$f":"'الفاتورة رقم 1'!D3","v":"حسن"}]
[null,null,null,null,{"$f":"'الفاتورة رقم 1'!I74","v":5056}]

{"sheet":"اعدادات رقم الفاتورة","index":28,"n_rows":11,"n_cols":6,"rows_kept":11,"cut":false,"hidden":true,"merged":[]}
[]
[]
[]
[]
[]
[]
[]
[]
[]
[null,null,null,null,null,"الرقم الفعلي"]
[null,null,null,null,null,{"$f":"'رقم الفواتير'!A2","v":348}]

{"sheet":"حسن","index":29,"n_rows":52,"n_cols":5,"rows_kept":52,"cut":false,"hidden":true,"merged":[]}
["اسم الصنف","سعر المتر",null,null,"اسم العميل"]
["ريذا",null,null,null,"حسن"]
["مانشيستر"]
["ليوناردو"]
["ميجا استايل"]
["استايل"]
["لوسيدا"]
["كرنفال"]
["جاليري"]
["سانيل شاج"]
["كروز"]
["سيجما"]
["روكا"]
["موكا شاج"]
["موكا"]
["سلطانة"]
["بدر",80]
["كهرمان"]
["بانوراما"]
["فنسيا شاج"]
["ريماس"]
["اميرة"]
["فلوريدا"]
["شاج نمر"]
["اميرهان"]
["نيو اميرهان"]
["فيراري"]
["سراي"]
["دكار"]
["نايل"]
["مطابخ"]
["ريكسوس"]
["فلانتينو"]
["اطفال نمر"]
["روما"]
["زارا"]
["بريشكا"]
["ميرو"]
["اطفال جنز"]
["كلاس هوم"]
["عتب جلد مخرم"]
["طقم حمام شاج"]
["طقم حمام فل جنز"]
["عتب جلد تركي"]
["شنطه عجل"]
["شنطه كبيره"]
["نمر"]
["فاريدة"]
["ابداع"]
["هافانا"]
["سيمبا"]
["سدرة"]

{"sheet":"سحب العملاء","index":30,"n_rows":26,"n_cols":15,"rows_kept":26,"cut":false,"hidden":true,"merged":[[10,8,11,8],[10,9,11,9],[10,4,10,5],[8,6,8,7],[8,4,8,5],[10,6,11,6],[10,7,11,7]]}
[]
[]
[]
[]
[]
[]
[]
[]
[null,null,null,null,"اسم العميل",null,null,null,"التاريخ","2021-01-01"]
[]
[null,null,null,null,"المقاس",null,"الصنف"," العدد ","سعر المتر","القيمة"]
[null,null,null,null,"الطول","العرض"]
[null,null,null,null,null,null,null,null,{"$f":"IF(G13=\"\",\"\",SUMPRODUCT(SUMIF(INDIRECT(\"'\"&$G$9&\"'!\"&\"a2:a1000\"),$G13,INDIRECT(\"'\"&$G$9&\"'!\"&\"b2:b1000\"))))","v":""},{"$f":"IFERROR(I13*H13*(F13*E13),\"\")","v":""}]
[]
[]
[]
[]
[]
[]
[]
[]
[]
[]
[null,null,null,null,null,null,null,null,null,null,null,null,null,null,"سحب "]
[null,null,null,null,null,null,null,null,null,null,null,null,null,null," * "]
[null,null,null,null,{"$f":"J9","v":"2021-01-01"},{"$f":"G9","v":0},{"$f":"O24&E13&O25&F13&G13&H11&H13","v":"سحب  *  العدد "},{"$f":"E13*F13*H13*I13","v":{"$error":"#VALUE!"}}]

{"sheet":"مرتجع العملاء","index":31,"n_rows":26,"n_cols":15,"rows_kept":26,"cut":false,"hidden":true,"merged":[[10,9,11,9],[8,4,8,5],[8,6,8,7],[10,4,10,5],[10,6,11,6],[10,7,11,7],[10,8,11,8]]}
[]
[]
[]
[]
[]
[]
[]
[]
[null,null,null,null,"اسم العميل",null,null,null,"التاريخ","2021-01-01"]
[]
[null,null,null,null,"المقاس",null,"الصنف"," العدد ","سعر المتر","القيمة"]
[null,null,null,null,"الطول","العرض"]
[null,null,null,null,null,null,null,null,{"$f":"IF(G13=\"\",\"\",SUMPRODUCT(SUMIF(INDIRECT(\"'\"&$G$9&\"'!\"&\"a2:a1000\"),$G13,INDIRECT(\"'\"&$G$9&\"'!\"&\"b2:b1000\"))))","v":""},{"$f":"IFERROR(I13*H13*(F13*E13),\"\")","v":""}]
[]
[]
[]
[]
[]
[]
[]
[]
[]
[]
[null,null,null,null,null,null,null,null,null,null,null,null,null,null,"تنزيل مرتجع "]
[null,null,null,null,null,null,null,null,null,null,null,null,null,null," * "]
[null,null,null,null,{"$f":"J9","v":"2021-01-01"},{"$f":"G9","v":0},{"$f":"O24&E13&O25&F13&G13&H11&H13","v":"تنزيل مرتجع  *  العدد "},null,{"$f":"J13","v":""}]

{"sheet":"تنزيل نقد العملاء","index":32,"n_rows":37,"n_cols":15,"rows_kept":37,"cut":false,"hidden":true,"merged":[[11,5,12,5],[9,5,10,5],[9,6,10,6],[11,6,12,6],[13,6,14,6],[17,5,18,5],[17,6,18,6],[15,5,16,5],[15,6,16,6],[13,5,14,5]]}
[]
[]
[]
[]
[]
[]
[]
[]
[null,null,null,null,null,null,null,null,null,null,null,null,null,null,"البيان"]
[null,null,null,null,null,"التاريخ",null,null,null,null,null,null,null,null,"ايداع بنك مصر "]
[null,null,null,null,null,null,null,null,null,null,null,null,null,null,"ايداع بنك القاهرة "]
[null,null,null,null,null,"اسم العميل",null,null,null,null,null,null,null,null,"ايداع البريد المصري "]
[null,null,null,null,null,null,null,null,null,null,null,null,null,null,"ايداع نقد داخل المخزن "]
[null,null,null,null,null,"البيان",null,null,null,null,null,null,null,null,"اعدام "]
[]
[null,null,null,null,null,"القيمة النقدية"]
[]
[null,null,null,null,null,"باقي البيان"]
[]
[]
[]
[]
[]
[]
[]
[]
[]
[]
[]
[]
[]
[]
[]
[]
[]
[]
[null,null,null,null,{"$f":"G10","v":"00:00:00"},{"$f":"G12","v":0},{"$f":"G14&G18","v":""},null,{"$f":"G16","v":0}]

{"sheet":"بحث عن فاتورة داخل الارشيف","index":33,"n_rows":5,"n_cols":351,"rows_kept":5,"cut":false,"hidden":true,"merged":[]}
[null,null,null,null,null,null,null,null,null,null,null,null,null,null,null,null,null,null,null,null,null,null,null,null,null,null,null,null,null,null,null,null,null,null,null,null,null,null,null,null,null,null,null,null,null,null,null,null,null,null,null,null,null,null,null,null,null,null,null,null,null,null,null,null,null,null,null,null,null,null,null,null,null,null,null,null,null,null,null,null,null,null,null,null,null,null,null,null,null,null,null,null,null,null,null,null,null,null,null,null,null,null,null,null,null,null,null,null,null,null,null,null,null,null,null,null,null,null,null,null,null,null,null,null,null,null,null,null,null,null,null,null,null,null,null,null,null,null,null,null,null,null,null,null,null,null,null,null,null,null,null,null,null,null,null,null,null,null,null,null,null,null,null,null,null,null,null,null,null,null,null,null,null,null,null,null,null,null,null,null,null,null,null,null,null,null,null,null,null,null,null,null,null,null,null,null,null,null,null,null,null,null,null,null,null,null,null,null,null,null,null,null,null,null,null,null,null,null,null,null,null,null,null,null,null,null,null,null,null,null,null,null,null,null,null,null,null,null,null,null,null,null,null,null,null,null,null,null,null,null,null,null,null,null,null,null,null,null,null,null,null,null,null,null,null,null,null,null,null,null,null,null,null,null,null,null,null,null,null,null,null,null,null,null,null,null,null,null,null,null,null,null,null,null,null,null,null,null,null,null,null,null,null,null,null,null,null,null,null,null,null,null,null,null,null,null,null,null,null,null,null,null,null,null,null,null,null,null,null,null,null,null,null,null,null,null,null,null,null,null,null,null,null,null,null,null,null,null,null,null,"حسن"]
[]
[]
[null,null,"مسلسل","تاريخ الاصدار","اسم العميل","رقم الفاتورة","اجمالي الفاتورة","قديم","تنزيل","صافي الفاتورة"]
[null,null,1,null,"حسن"]

{"sheet":"رقم فاتورة الموردين","index":34,"n_rows":7,"n_cols":2,"rows_kept":7,"cut":false,"hidden":true,"merged":[]}
[]
[]
[null,{"$f":"B4+1","v":20}]
[null,19]
[]
[null,{"$f":"B7-1","v":19}]
[null,20]

{"sheet":"اعدادات رقم فاتورة الموردين","index":35,"n_rows":11,"n_cols":6,"rows_kept":11,"cut":false,"hidden":true,"merged":[]}
[]
[]
[]
[]
[]
[]
[]
[]
[]
[null,null,null,null,null,"الرقم الفعلي"]
[null,null,null,null,null,{"$f":"'رقم فاتورة الموردين'!B3","v":20}]